Service Heads (T),Executive (T),Director (T),Service Managers (T),Cost centre,Cost centre (T),Account,Account (T),Transaction number,Transaction Date,Period,Amount,Customer/supplier ID,Customer/supplier Name
Adult Services,Revenue Budgets,Adult Services,Adult Social Care,A0764,Assisted Living Centre,A40080,Health & Safety Equipment,30014617,10/03/2022,202203,590.18,104008,Performance Health
Adult Services,Revenue Budgets,Adult Services,Adult Social Care,A0764,Assisted Living Centre,A40080,Health & Safety Equipment,30014615,04/04/2022,202203,"2,045.91",101715,Nottingham Rehab Limited
Adult Services,Revenue Budgets,Adult Services,Adult Social Care,A0764,Assisted Living Centre,A40080,Health & Safety Equipment,30016809,11/04/2022,202203,571.00,1000433,The Windmill Special Needs Company LTD
Adult Services,Revenue Budgets,Adult Services,Adult Social Care,A0764,Assisted Living Centre,A40920,Purchase of Equipment,30015786,19/04/2022,202203,330.78,139184,Ambre-Stone Ltd
Adult Services,Revenue Budgets,Adult Services,Adult Social Care,A0764,Assisted Living Centre,A40920,Purchase of Equipment,30018337,19/04/2022,202203,"2,770.66",139184,Ambre-Stone Ltd
Adult Services,Revenue Budgets,Adult Services,Adult Social Care,A0764,Assisted Living Centre,A40920,Purchase of Equipment,30014815,26/04/2022,202203,"3,128.88",139184,Ambre-Stone Ltd
Adult Services,Revenue Budgets,Adult Services,Adult Social Care,A0764,Assisted Living Centre,A40080,Health & Safety Equipment,30018370,01/05/2022,202203,"1,505.00",103615,Durasak Ltd
Adult Services,Revenue Budgets,Adult Services,Adult Social Care,A0764,Assisted Living Centre,A40920,Purchase of Equipment,30021683,16/05/2022,202203,500.00,139289,Sumed International Uk Ltd
Adult Services,Revenue Budgets,Adult Services,Adult Social Care,A0764,Assisted Living Centre,A40920,Purchase of Equipment,30021683,16/05/2022,202203,500.00,139289,Sumed International Uk Ltd
Adult Services,Revenue Budgets,Adult Services,Adult Social Care,A0764,Assisted Living Centre,A40080,Health & Safety Equipment,30016657,20/05/2022,202203,378.00,1000580,Newsmith Stainless Limited
Adult Services,Revenue Budgets,Adult Services,Adult Social Care,A0764,Assisted Living Centre,A40920,Purchase of Equipment,30016756,30/05/2022,202203,325.50,1000987,Scanflex Ltd
Adult Services,Revenue Budgets,Adult Services,Adult Social Care,A0764,Assisted Living Centre,A40080,Health & Safety Equipment,30017630,31/05/2022,202203,"6,882.00",101785,Lisclare Ltd
Adult Services,Revenue Budgets,Adult Services,Adult Social Care,A0764,Assisted Living Centre,A40080,Health & Safety Equipment,30017693,31/05/2022,202203,"1,738.50",101715,Nottingham Rehab Limited
Adult Services,Revenue Budgets,Adult Services,Adult Social Care,A0764,Assisted Living Centre,A40080,Health & Safety Equipment,30017809,31/05/2022,202203,996.45,101627,Drive Devilbiss Healthcare Ltd
Adult Services,Revenue Budgets,Adult Services,Adult Social Care,A0764,Assisted Living Centre,A40080,Health & Safety Equipment,30013641,06/06/2022,202203,"2,690.63",101710,Etac Limited
Adult Services,Revenue Budgets,Adult Services,Adult Social Care,A0764,Assisted Living Centre,A40920,Purchase of Equipment,30013932,06/06/2022,202203,300.00,112666,Obam Lift Services Ltd
Adult Services,Revenue Budgets,Adult Services,Adult Social Care,A0764,Assisted Living Centre,A40080,Health & Safety Equipment,30017684,07/06/2022,202203,"6,090.00",139289,Sumed International Uk Ltd
Adult Services,Revenue Budgets,Adult Services,Adult Social Care,A0764,Assisted Living Centre,A40920,Purchase of Equipment,30018407,08/06/2022,202203,807.90,104008,Performance Health
Adult Services,Revenue Budgets,Adult Services,Adult Social Care,A0764,Assisted Living Centre,A40080,Health & Safety Equipment,30019686,08/06/2022,202203,581.71,109432,Northgate Vehicle Hire Ltd
Adult Services,Revenue Budgets,Adult Services,Prevention And Wellbeing,A1452,Prevention And Ageing Well,A57115,Payments to Private Contractors,30022038,08/06/2022,202203,"35,000.00",108515,Friendship At Home
Adult Services,Revenue Budgets,Adult Services,Adult Social Care,A0764,Assisted Living Centre,A40920,Purchase of Equipment,30016138,10/06/2022,202203,258.87,101715,Nottingham Rehab Limited
Adult Services,Revenue Budgets,Adult Services,Adult Social Care,A0764,Assisted Living Centre,A40920,Purchase of Equipment,30015234,13/06/2022,202203,510.00,101134,The Helping Hand Company (Ledbury) Ltd
Adult Services,Revenue Budgets,Adult Services,Adult Social Care,A0764,Assisted Living Centre,A40080,Health & Safety Equipment,30018630,15/06/2022,202203,910.00,101715,Nottingham Rehab Limited
Adult Services,Revenue Budgets,Adult Services,Adult Social Care,A0764,Assisted Living Centre,A40920,Purchase of Equipment,30016575,16/06/2022,202203,283.33,101260,Silvalea Ltd
Adult Services,Revenue Budgets,Adult Services,Adult Social Care,A0764,Assisted Living Centre,A40920,Purchase of Equipment,30016598,16/06/2022,202203,308.33,101260,Silvalea Ltd
Adult Services,Revenue Budgets,Adult Services,Adult Social Care,A0764,Assisted Living Centre,A40920,Purchase of Equipment,30016840,20/06/2022,202203,"1,931.00",101710,Etac Limited
Adult Services,Revenue Budgets,Adult Services,Prevention And Wellbeing,A1857,Ukraine Scheme,A56000,Other Establishments,30017782,21/06/2022,202203,"1,160.00",1001576,Gary Smith
Adult Services,Revenue Budgets,Adult Services,Adult Social Care,A0764,Assisted Living Centre,A40080,Health & Safety Equipment,30017816,21/06/2022,202203,611.25,101715,Nottingham Rehab Limited
Adult Services,Revenue Budgets,Adult Services,Adult Social Care,A0764,Assisted Living Centre,A40920,Purchase of Equipment,30018395,23/06/2022,202203,325.00,112666,Obam Lift Services Ltd
Adult Services,Revenue Budgets,Adult Services,Adult Social Care,A0764,Assisted Living Centre,A40920,Purchase of Equipment,30018481,23/06/2022,202203,"1,669.00",101710,Etac Limited
Adult Services,Revenue Budgets,Adult Services,Adult Social Care,A0764,Assisted Living Centre,A40080,Health & Safety Equipment,30019101,24/06/2022,202203,555.00,101715,Nottingham Rehab Limited
Adult Services,Revenue Budgets,Adult Services,Adult Social Care,A0764,Assisted Living Centre,A40080,Health & Safety Equipment,30022503,27/06/2022,202203,"1,170.00",139289,Sumed International Uk Ltd
Adult Services,Revenue Budgets,Adult Services,Adult Social Care,A0764,Assisted Living Centre,A40080,Health & Safety Equipment,30020417,29/06/2022,202203,600.00,101792,Viking Hardware Ltd
Adult Services,Revenue Budgets,Adult Services,Adult Social Care,A0764,Assisted Living Centre,A40080,Health & Safety Equipment,30020417,29/06/2022,202203,650.00,101792,Viking Hardware Ltd
Adult Services,Revenue Budgets,Adult Services,Adult Social Care,A0764,Assisted Living Centre,A40080,Health & Safety Equipment,30020417,29/06/2022,202203,850.00,101792,Viking Hardware Ltd
Adult Services,Revenue Budgets,Adult Services,Adult Social Care,A0764,Assisted Living Centre,A40080,Health & Safety Equipment,30020417,29/06/2022,202203,850.00,101792,Viking Hardware Ltd
Adult Services,Revenue Budgets,Adult Services,Adult Social Care,A0764,Assisted Living Centre,A40080,Health & Safety Equipment,30020859,29/06/2022,202203,547.80,139266,Frontier Therapeutics
Asc - Care Trust Plus,Revenue Budgets,Asc - Care Trust Plus,Ld Direct Payment Scheme,A0115,Dps Learning Disability,A56000,Other Establishments,30020038,26/11/2021,202203,"3,182.13",Redacted Personal Information,Redacted Personal Information
Asc - Care Trust Plus,Revenue Budgets,Asc - Care Trust Plus,Home Care,A0055,Dps Physical Disability,A57215,Domicilary Care Direct Payment,30020030,18/01/2022,202203,974.74,Redacted Personal Information,Redacted Personal Information
Asc - Care Trust Plus,Revenue Budgets,Asc - Care Trust Plus,Home Care,A1397,Dps - Chc,A57215,Domicilary Care Direct Payment,30014556,18/03/2022,202203,611.40,Redacted Personal Information,Redacted Personal Information
Asc - Care Trust Plus,Revenue Budgets,Asc - Care Trust Plus,Ld Direct Payment Scheme,A0115,Dps Learning Disability,A57215,Domicilary Care Direct Payment,30019683,17/05/2022,202203,398.83,Redacted Personal Information,Redacted Personal Information
Asc - Care Trust Plus,Revenue Budgets,Asc - Care Trust Plus,Ld Supported Accommodation,A0131,Supported Living - Learn Dis,A93060,Home Care Income,30019671,13/06/2022,202203,502.12,Redacted Personal Information,Redacted Personal Information
Asc - Care Trust Plus,Revenue Budgets,Asc - Care Trust Plus,Ld Direct Payment Scheme,A0115,Dps Learning Disability,A57215,Domicilary Care Direct Payment,30021456,29/06/2022,202203,"1,548.96",Redacted Personal Information,Redacted Personal Information
Assistant Chief Executive,Revenue Budgets,Resources,Elections Team,A0219,Elections,A22005,Building Rents,30019366,28/01/2022,202203,360.00,1000112,Trinity Methodist Church Immingham
Assistant Chief Executive,Revenue Budgets,Resources,Elections Team,A0219,Elections,A22005,Building Rents,30016716,01/02/2022,202203,425.00,101662,Grimsby Neighbourhood Centre
Assistant Chief Executive,Revenue Budgets,Resources,Emergency Planning,A1845,Household Support Fund,A49105,Other Supplies & Services,30015907,27/04/2022,202203,800.00,112919,Allpay Limited
Assistant Chief Executive,Revenue Budgets,Resources,Elections Team,A0219,Elections,A22005,Building Rents,30015822,03/05/2022,202203,552.00,105081,Mobile Mini Uk Ltd
Assistant Chief Executive,Revenue Budgets,Resources,Elections Team,A0219,Elections,A22005,Building Rents,30019373,05/05/2022,202203,270.00,1001374,The Haven Methodist Church
Assistant Chief Executive,Revenue Budgets,Resources,Assistant Chief Executive,A0770,Dem Improvement And Engagement,A56000,Other Establishments,30012432,09/05/2022,202203,"40,000.00",101013,Gy/Clee & Dist Citizens
Assistant Chief Executive,Revenue Budgets,Resources,Registrars & Civic Services,A0222,Civic & Caretaking,A46020,Hospitality,30013033,21/05/2022,202203,531.00,101903,Deli-Licious
Assistant Chief Executive,Revenue Budgets,Resources,Elections Team,A0219,Elections,A22005,Building Rents,30016654,26/05/2022,202203,"2,510.03",128160,Grimsby Auditorium >>>>
Assistant Chief Executive,Revenue Budgets,Resources,Elections Team,A0219,Elections,A45015,Postages,30016632,30/05/2022,202203,"1,675.38",101082,Royal Mail Group Plc
Assistant Chief Executive,Revenue Budgets,Resources,Emergency Planning,A1845,Household Support Fund,A55005,Payments to Voluntary Organisations,30013211,31/05/2022,202203,"20,000.00",102869,Foresight Nel Ltd
Assistant Chief Executive,Revenue Budgets,Resources,Elections Team,A0219,Elections,A40100,Books,30016626,01/06/2022,202203,314.00,110059,Thomson Reuters
Assistant Chief Executive,Revenue Budgets,Resources,Registrars & Civic Services,A0222,Civic & Caretaking,A46020,Hospitality,30014787,07/06/2022,202203,"1,215.00",108412,Abbys Wine Bar & Bistro Ltd
Assistant Chief Executive,Revenue Budgets,Resources,Elections Team,A0218,Electoral Registration,A16015,Staff Training Expenses,30016635,07/06/2022,202203,475.00,107770,The Association Of Electoral Administrators
Assistant Chief Executive,Revenue Budgets,Resources,Registrars & Civic Services,A0222,Civic & Caretaking,A46020,Hospitality,30014773,08/06/2022,202203,903.00,101903,Deli-Licious
Assistant Chief Executive,Revenue Budgets,Resources,Registrars & Civic Services,A0222,Civic & Caretaking,A41905,Catering,30014939,10/06/2022,202203,263.96,121021,Holdsworth Ltd
Assistant Chief Executive,Revenue Budgets,Resources,Emergency Planning,A1845,Household Support Fund,A49105,Other Supplies & Services,30021575,22/06/2022,202203,"539,000.00",150373,Wonde Ltd
Deputy s151,Revenue Budgets,Resources,Accountancy,A0176,Accountancy Section,A44025,Legal Expenses,30018103,23/07/2021,202203,687.80,124689,Weightmans Llp - Office Account
Deputy s151,Revenue Budgets,Resources,Accountancy,A0176,Accountancy Section,A44025,Legal Expenses,30018101,28/07/2021,202203,250.70,124689,Weightmans Llp - Office Account
Deputy s151,Revenue Budgets,Resources,Accountancy,A0176,Accountancy Section,A44025,Legal Expenses,30017628,12/10/2021,202203,583.90,124689,Weightmans Llp - Office Account
Deputy s151,Revenue Budgets,Resources,Accountancy,A0176,Accountancy Section,A44025,Legal Expenses,30018124,28/01/2022,202203,798.00,124689,Weightmans Llp - Office Account
Deputy s151,Revenue Budgets,Resources,Local Taxation & Benefits - Shared,A0187,Debt Collection,A49053,Debt Recovery Costs,30002964,31/01/2022,202203,"-2,983.30",101373,Rossendales Ltd
Deputy s151,Revenue Budgets,Resources,Local Taxation & Benefits - Shared,A0187,Debt Collection,A49053,Debt Recovery Costs,30002964,31/01/2022,202203,"2,983.30",101373,Rossendales Ltd
Deputy s151,Revenue Budgets,Resources,Accountancy,A0176,Accountancy Section,A47010,Subscriptions (non staff),30021551,16/02/2022,202203,"4,685.00",102338,Cipfa Business Limited
Deputy s151,Revenue Budgets,Resources,Accountancy,A1837,Humber Freeport,A44065,Consultancy Services,30012888,25/04/2022,202203,"10,800.00",151270,Holmes Noble Ltd
Deputy s151,Revenue Budgets,Resources,Accountancy,A0176,Accountancy Section,A44025,Legal Expenses,30015502,25/04/2022,202203,273.70,124689,Weightmans Llp - Office Account
Deputy s151,Revenue Budgets,Resources,Accountancy,A0235,Audit Commission Fees,A56000,Other Establishments,30021189,28/04/2022,202203,"22,966.00",141538,Mazars Llp
Deputy s151,Revenue Budgets,Resources,Accountancy,A0176,Accountancy Section,A44025,Legal Expenses,30016149,29/04/2022,202203,"-2,702.50",124689,Weightmans Llp - Office Account
Deputy s151,Revenue Budgets,Resources,Accountancy,A0176,Accountancy Section,A44025,Legal Expenses,30016149,29/04/2022,202203,"2,702.50",124689,Weightmans Llp - Office Account
Deputy s151,Revenue Budgets,Resources,Accountancy,A1647,Accountancy -  Non Shared,A33005,Public Transport - Non Staff,30013055,30/04/2022,202203,623.98,127476,Click Travel
Deputy s151,Revenue Budgets,Resources,Accountancy,A1647,Accountancy -  Non Shared,A33010,Public Transport - Staff,30013055,30/04/2022,202203,"4,422.70",127476,Click Travel
Deputy s151,Revenue Budgets,Resources,Accountancy,A1647,Accountancy -  Non Shared,A46050,Conference Expenses,30013055,30/04/2022,202203,"4,773.62",127476,Click Travel
Deputy s151,Revenue Budgets,Resources,Local Taxation & Benefits - Shared,A0187,Debt Collection,A49053,Debt Recovery Costs,30013735,09/05/2022,202203,"2,901.88",101788,Jacobs Certified Bailiffs
Deputy s151,Revenue Budgets,Resources,Accountancy,A0176,Accountancy Section,A44025,Legal Expenses,30016152,19/05/2022,202203,"-1,621.50",124689,Weightmans Llp - Office Account
Deputy s151,Revenue Budgets,Resources,Accountancy,A0176,Accountancy Section,A44025,Legal Expenses,30016152,19/05/2022,202203,"1,621.50",124689,Weightmans Llp - Office Account
Deputy s151,Revenue Budgets,Resources,Local Taxation & Benefits - Shared,A0187,Debt Collection,A49053,Debt Recovery Costs,30013692,23/05/2022,202203,460.00,101788,Jacobs Certified Bailiffs
Deputy s151,Revenue Budgets,Resources,Local Taxation & Benefits - Shared,A0187,Debt Collection,A49053,Debt Recovery Costs,30013891,28/05/2022,202203,"-10,417.37",123422,Newlyn
Deputy s151,Revenue Budgets,Resources,Local Taxation & Benefits - Shared,A0187,Debt Collection,A49053,Debt Recovery Costs,30013891,28/05/2022,202203,"10,579.65",123422,Newlyn
Deputy s151,Revenue Budgets,Resources,Local Taxation & Benefits - Shared,A0187,Debt Collection,A49053,Debt Recovery Costs,30013900,28/05/2022,202203,"-2,065.53",123422,Newlyn
Deputy s151,Revenue Budgets,Resources,Local Taxation & Benefits - Shared,A0187,Debt Collection,A49053,Debt Recovery Costs,30013900,28/05/2022,202203,"2,065.53",123422,Newlyn
Deputy s151,Revenue Budgets,Resources,Local Taxation & Benefits - Shared,A0184,Control & Monitoring,A45015,Postages,30012817,30/05/2022,202203,"9,905.74",102314,Capita Business Services Ltd
Deputy s151,Revenue Budgets,Resources,Accountancy,A1837,Humber Freeport,A44065,Consultancy Services,30014456,31/05/2022,202203,"2,058.75",100785,Solace In Business
Deputy s151,Revenue Budgets,Resources,Local Taxation & Benefits - Shared,A0187,Debt Collection,A49053,Debt Recovery Costs,30013895,06/06/2022,202203,-779.22,101788,Jacobs Certified Bailiffs
Deputy s151,Revenue Budgets,Resources,Local Taxation & Benefits - Shared,A0187,Debt Collection,A49053,Debt Recovery Costs,30013895,06/06/2022,202203,779.22,101788,Jacobs Certified Bailiffs
Deputy s151,Revenue Budgets,Resources,Local Taxation & Benefits - Shared,A0187,Debt Collection,A49053,Debt Recovery Costs,30013908,06/06/2022,202203,"2,226.72",101788,Jacobs Certified Bailiffs
Deputy s151,Revenue Budgets,Resources,Local Taxation & Benefits - Shared,A0187,Debt Collection,A49053,Debt Recovery Costs,30016466,13/06/2022,202203,531.00,110675,Wilkin Chapman Llp
Deputy s151,Revenue Budgets,Resources,Local Taxation & Benefits - Shared,A0184,Control & Monitoring,A45015,Postages,30019670,28/06/2022,202203,"13,178.59",102314,Capita Business Services Ltd
Deputy s151,Revenue Budgets,Resources,Local Taxation & Benefits - Shared,A0184,Control & Monitoring,A45015,Postages,30021460,30/06/2022,202203,"6,378.50",102314,Capita Business Services Ltd
Director Childrens Services,Revenue Budgets,Childrens Services,Director Children & Fam Serv,A0284,Director Children / Fam Serv,A56000,Other Establishments,30022335,22/02/2022,202203,"6,400.00",1001649,City of York Council
Director Childrens Services,Revenue Budgets,Childrens Services,Director Children & Fam Serv,A0284,Director Children / Fam Serv,A18005,Lump Sum Net Redundancy/Settlement Payments,30018748,20/04/2022,202203,"5,305.24",106467,Care Plus Group
Director Childrens Services,Revenue Budgets,Childrens Services,Director Children & Fam Serv,A1847,Recovery Plan,A11015,Other Agency Staff,30016016,15/06/2022,202203,398.25,146503,Attenti Consulting
Director Childrens Services,Revenue Budgets,Childrens Services,Director Children & Fam Serv,A1847,Recovery Plan,A11015,Other Agency Staff,30016030,15/06/2022,202203,"1,008.90",146503,Attenti Consulting
Director Childrens Services,Revenue Budgets,Childrens Services,Director Children & Fam Serv,A1847,Recovery Plan,A11015,Other Agency Staff,30017785,22/06/2022,202203,"1,964.70",146503,Attenti Consulting
Director Childrens Services,Revenue Budgets,Childrens Services,Director Children & Fam Serv,A1847,Recovery Plan,A11015,Other Agency Staff,30020363,29/06/2022,202203,"1,964.70",146503,Attenti Consulting
Director Childrens Services,Revenue Budgets,Childrens Services,Director Children & Fam Serv,A0284,Director Children / Fam Serv,A56000,Other Establishments,30022345,07/07/2022,202203,"5,000.00",1001649,City of York Council
Education and Inclusion,Revenue Budgets,Childrens Services,Sen/Inclusion,A0621,Resource Based Provision,A01002,Pay - Teachers Supply Cover,30019579,27/02/2022,202203,595.00,142253,Reed Specialist Recruitment Ltd
Education and Inclusion,Revenue Budgets,Childrens Services,Sen/Inclusion,A1784,Other La Top-Up,A52005,Payments to Other Local Authorities,30021489,17/03/2022,202203,"11,881.67",Redacted Personal Information,Redacted Personal Information
Education and Inclusion,Revenue Budgets,Childrens Services,Sen/Inclusion,A0621,Resource Based Provision,A01002,Pay - Teachers Supply Cover,30015624,20/03/2022,202203,595.00,142253,Reed Specialist Recruitment Ltd
Education and Inclusion,Revenue Budgets,Childrens Services,Sen/Inclusion,A1715,Early Years Inclusion Fund,A47008,Contributions - Other,30014817,23/03/2022,202203,"1,336.50",101322,St Peters Children Centre
Education and Inclusion,Capital Spend,Childrens Services,New Nursery Places,Y1799,Grange New Nursery Places,C01009,"New Construction, conversion & renovation",30014168,28/03/2022,202203,"13,589.02",100786,Kes Building Maintenance Limited
Education and Inclusion,Revenue Budgets,Childrens Services,Sen/Inclusion,A1565,Top Up Funding Academies & Fre,A49105,Other Supplies & Services,30006803,31/03/2022,202203,"2,080.00",146662,Targeted Provision Ltd
Education and Inclusion,Revenue Budgets,Childrens Services,Sen/Inclusion,A1565,Top Up Funding Academies & Fre,A49105,Other Supplies & Services,30006805,31/03/2022,202203,990.00,146662,Targeted Provision Ltd
Education and Inclusion,Revenue Budgets,Childrens Services,Education Transport,A0254,Home To School Transport Sen,A32020,Home to School Transport,30013114,31/03/2022,202203,639.87,100546,Links Taxis
Education and Inclusion,Revenue Budgets,Childrens Services,Education Transport,A0249,Excluded And Ap Transport,A32020,Home to School Transport,30013114,31/03/2022,202203,"1,299.13",100546,Links Taxis
Education and Inclusion,Revenue Budgets,Childrens Services,Education Transport,A0254,Home To School Transport Sen,A32020,Home to School Transport,30012993,01/04/2022,202203,"1,125.00",141297,Smt (Lincs) Enterprises Ltd
Education and Inclusion,Revenue Budgets,Childrens Services,Education Transport,A0254,Home To School Transport Sen,A32020,Home to School Transport,30012999,01/04/2022,202203,"1,550.00",141297,Smt (Lincs) Enterprises Ltd
Education and Inclusion,Capital Spend,Childrens Services,Cap Alloc Devolved To Schools,Y0799,Grange Primary Dfcg,C01009,"New Construction, conversion & renovation",30014398,01/04/2022,202203,855.00,101059,Education Lincs Ltd
Education and Inclusion,Revenue Budgets,Childrens Services,Sen/Inclusion,A1783,Top-Up Non-Maintained & Indepe,A52005,Payments to Other Local Authorities,30005775,11/04/2022,202203,"33,776.00",Redacted Personal Information,Redacted Personal Information
Education and Inclusion,Revenue Budgets,Childrens Services,Sen/Inclusion,A1783,Top-Up Non-Maintained & Indepe,A52005,Payments to Other Local Authorities,30005776,11/04/2022,202203,"37,941.00",Redacted Personal Information,Redacted Personal Information
Education and Inclusion,Revenue Budgets,Childrens Services,Sen/Inclusion,A1783,Top-Up Non-Maintained & Indepe,A52005,Payments to Other Local Authorities,30005777,11/04/2022,202203,"31,291.00",Redacted Personal Information,Redacted Personal Information
Education and Inclusion,Revenue Budgets,Childrens Services,Sen/Inclusion,A1783,Top-Up Non-Maintained & Indepe,A52005,Payments to Other Local Authorities,30005778,11/04/2022,202203,"28,992.00",Redacted Personal Information,Redacted Personal Information
Education and Inclusion,Revenue Budgets,Childrens Services,Sen/Inclusion,A1783,Top-Up Non-Maintained & Indepe,A52005,Payments to Other Local Authorities,30005779,11/04/2022,202203,"37,941.00",Redacted Personal Information,Redacted Personal Information
Education and Inclusion,Revenue Budgets,Childrens Services,Sen/Inclusion,A1783,Top-Up Non-Maintained & Indepe,A52005,Payments to Other Local Authorities,30005780,11/04/2022,202203,"28,992.00",Redacted Personal Information,Redacted Personal Information
Education and Inclusion,Revenue Budgets,Childrens Services,Sen/Inclusion,A1783,Top-Up Non-Maintained & Indepe,A52005,Payments to Other Local Authorities,30005781,11/04/2022,202203,"28,992.00",Redacted Personal Information,Redacted Personal Information
Education and Inclusion,Revenue Budgets,Childrens Services,Sen/Inclusion,A1783,Top-Up Non-Maintained & Indepe,A52005,Payments to Other Local Authorities,30005782,11/04/2022,202203,"33,776.00",Redacted Personal Information,Redacted Personal Information
Education and Inclusion,Revenue Budgets,Childrens Services,Sen/Inclusion,A1783,Top-Up Non-Maintained & Indepe,A52005,Payments to Other Local Authorities,30005783,11/04/2022,202203,"33,776.00",Redacted Personal Information,Redacted Personal Information
Education and Inclusion,Revenue Budgets,Childrens Services,Sen/Inclusion,A1783,Top-Up Non-Maintained & Indepe,A52005,Payments to Other Local Authorities,30005784,11/04/2022,202203,"33,776.00",Redacted Personal Information,Redacted Personal Information
Education and Inclusion,Revenue Budgets,Childrens Services,Sen/Inclusion,A1783,Top-Up Non-Maintained & Indepe,A52005,Payments to Other Local Authorities,30005785,11/04/2022,202203,"33,776.00",Redacted Personal Information,Redacted Personal Information
Education and Inclusion,Revenue Budgets,Childrens Services,Education Transport,A0248,Exceptional Circumstances,A32020,Home to School Transport,30014847,12/04/2022,202203,250.88,101404,Stagecoach Services
Education and Inclusion,Revenue Budgets,Childrens Services,Education Transport,A0253,Home To Sch Transport Sec-Gy,A32020,Home to School Transport,30014847,12/04/2022,202203,"1,326.08",101404,Stagecoach Services
Education and Inclusion,Revenue Budgets,Childrens Services,Education Transport,A0249,Excluded And Ap Transport,A32020,Home to School Transport,30014847,12/04/2022,202203,"1,720.32",101404,Stagecoach Services
Education and Inclusion,Revenue Budgets,Childrens Services,Education Transport,A0248,Exceptional Circumstances,A32020,Home to School Transport,30014856,12/04/2022,202203,250.88,101404,Stagecoach Services
Education and Inclusion,Revenue Budgets,Childrens Services,Education Transport,A0253,Home To Sch Transport Sec-Gy,A32020,Home to School Transport,30014856,12/04/2022,202203,"1,326.08",101404,Stagecoach Services
Education and Inclusion,Revenue Budgets,Childrens Services,Education Transport,A0249,Excluded And Ap Transport,A32020,Home to School Transport,30014856,12/04/2022,202203,"1,720.32",101404,Stagecoach Services
Education and Inclusion,Capital Spend,Childrens Services,Cap Alloc Devolved To Schools,Y0803,Coomb Briggs Primary Dfcg,C01009,"New Construction, conversion & renovation",30015214,19/04/2022,202203,"1,485.00",102044,Lincs Electrical Services Ltd
Education and Inclusion,Revenue Budgets,Childrens Services,Education Transport,A0254,Home To School Transport Sen,A32020,Home to School Transport,30012851,20/04/2022,202203,"1,701.00",100389,Lincolnshire County Council
Education and Inclusion,Revenue Budgets,Childrens Services,Education Transport,A0254,Home To School Transport Sen,A32020,Home to School Transport,30012853,20/04/2022,202203,"1,575.00",100389,Lincolnshire County Council
Education and Inclusion,Revenue Budgets,Childrens Services,Education Transport,A0247,Post 16 Sen,A32020,Home to School Transport,30012855,20/04/2022,202203,"4,328.73",100389,Lincolnshire County Council
Education and Inclusion,Revenue Budgets,Childrens Services,Education Transport,A0254,Home To School Transport Sen,A32020,Home to School Transport,30012857,20/04/2022,202203,"1,890.00",100389,Lincolnshire County Council
Education and Inclusion,Revenue Budgets,Childrens Services,Sen/Inclusion,A1564,Top Up Funding Ap Provision,A52005,Payments to Other Local Authorities,30016721,20/04/2022,202203,"112,682.66",Redacted Personal Information,Redacted Personal Information
Education and Inclusion,Revenue Budgets,Childrens Services,Sen/Inclusion,A0621,Resource Based Provision,A01002,Pay - Teachers Supply Cover,30015644,24/04/2022,202203,479.60,142253,Reed Specialist Recruitment Ltd
Education and Inclusion,Revenue Budgets,Childrens Services,Education Transport,A0253,Home To Sch Transport Sec-Gy,A32020,Home to School Transport,30012940,26/04/2022,202203,"1,701.00",101030,Amvale Limited
Education and Inclusion,Revenue Budgets,Childrens Services,Education Transport,A0253,Home To Sch Transport Sec-Gy,A32020,Home to School Transport,30012941,26/04/2022,202203,"1,777.50",101030,Amvale Limited
Education and Inclusion,Revenue Budgets,Childrens Services,Education Transport,A0253,Home To Sch Transport Sec-Gy,A32020,Home to School Transport,30012943,26/04/2022,202203,"1,701.00",101030,Amvale Limited
Education and Inclusion,Revenue Budgets,Childrens Services,Education Transport,A0253,Home To Sch Transport Sec-Gy,A32020,Home to School Transport,30012945,26/04/2022,202203,"1,701.00",101030,Amvale Limited
Education and Inclusion,Revenue Budgets,Childrens Services,Education Transport,A0254,Home To School Transport Sen,A32020,Home to School Transport,30013902,26/04/2022,202203,966.00,101030,Amvale Limited
Education and Inclusion,Revenue Budgets,Childrens Services,Education Transport,A0254,Home To School Transport Sen,A32020,Home to School Transport,30013906,26/04/2022,202203,903.00,101030,Amvale Limited
Education and Inclusion,Revenue Budgets,Childrens Services,Education Transport,A0254,Home To School Transport Sen,A32020,Home to School Transport,30013916,26/04/2022,202203,973.00,101030,Amvale Limited
Education and Inclusion,Revenue Budgets,Childrens Services,Education Transport,A0254,Home To School Transport Sen,A32020,Home to School Transport,30015898,26/04/2022,202203,973.00,101030,Amvale Limited
Education and Inclusion,Revenue Budgets,Childrens Services,Sen/Inclusion,A1565,Top Up Funding Academies & Fre,A47007,Contributions - Third Sector,30013631,28/04/2022,202203,435.00,101710,Etac Limited
Education and Inclusion,Revenue Budgets,Childrens Services,Sen/Inclusion,A1783,Top-Up Non-Maintained & Indepe,A52005,Payments to Other Local Authorities,30006227,30/04/2022,202203,"1,495.00",Redacted Personal Information,Redacted Personal Information
Education and Inclusion,Revenue Budgets,Childrens Services,Sen/Inclusion,A1783,Top-Up Non-Maintained & Indepe,A52005,Payments to Other Local Authorities,30006228,30/04/2022,202203,"2,415.00",Redacted Personal Information,Redacted Personal Information
Education and Inclusion,Revenue Budgets,Childrens Services,Sen/Inclusion,A1565,Top Up Funding Academies & Fre,A49105,Other Supplies & Services,30008806,30/04/2022,202203,550.00,146662,Targeted Provision Ltd
Education and Inclusion,Revenue Budgets,Childrens Services,Education Transport,A0254,Home To School Transport Sen,A32020,Home to School Transport,30013372,30/04/2022,202203,718.00,100546,Links Taxis
Education and Inclusion,Revenue Budgets,Childrens Services,Education Transport,A0254,Home To School Transport Sen,A32020,Home to School Transport,30013374,30/04/2022,202203,631.00,100546,Links Taxis
Education and Inclusion,Revenue Budgets,Childrens Services,Education Transport,A0254,Home To School Transport Sen,A32020,Home to School Transport,30013375,30/04/2022,202203,403.00,100546,Links Taxis
Education and Inclusion,Revenue Budgets,Childrens Services,Education Transport,A0248,Exceptional Circumstances,A32020,Home to School Transport,30013380,30/04/2022,202203,277.25,100546,Links Taxis
Education and Inclusion,Revenue Budgets,Childrens Services,Education Transport,A0254,Home To School Transport Sen,A32020,Home to School Transport,30013380,30/04/2022,202203,831.75,100546,Links Taxis
Education and Inclusion,Revenue Budgets,Childrens Services,Education Transport,A0254,Home To School Transport Sen,A32020,Home to School Transport,30013382,30/04/2022,202203,615.03,100546,Links Taxis
Education and Inclusion,Revenue Budgets,Childrens Services,Education Transport,A0247,Post 16 Sen,A32020,Home to School Transport,30013384,30/04/2022,202203,364.00,100546,Links Taxis
Education and Inclusion,Revenue Budgets,Childrens Services,Education Transport,A0254,Home To School Transport Sen,A32020,Home to School Transport,30013385,30/04/2022,202203,376.00,100546,Links Taxis
Education and Inclusion,Revenue Budgets,Childrens Services,Education Transport,A0252,Home To Sch Transport Pri-Grim,A32020,Home to School Transport,30013387,30/04/2022,202203,620.00,100546,Links Taxis
Education and Inclusion,Revenue Budgets,Childrens Services,Education Transport,A0254,Home To School Transport Sen,A32020,Home to School Transport,30013391,30/04/2022,202203,270.00,100546,Links Taxis
Education and Inclusion,Revenue Budgets,Childrens Services,Education Transport,A0254,Home To School Transport Sen,A32020,Home to School Transport,30013392,30/04/2022,202203,678.04,100546,Links Taxis
Education and Inclusion,Revenue Budgets,Childrens Services,Education Transport,A0254,Home To School Transport Sen,A32020,Home to School Transport,30013394,30/04/2022,202203,576.00,100546,Links Taxis
Education and Inclusion,Revenue Budgets,Childrens Services,Education Transport,A0254,Home To School Transport Sen,A32020,Home to School Transport,30013398,30/04/2022,202203,390.00,100546,Links Taxis
Education and Inclusion,Revenue Budgets,Childrens Services,Education Transport,A0248,Exceptional Circumstances,A32020,Home to School Transport,30013399,30/04/2022,202203,285.00,100546,Links Taxis
Education and Inclusion,Revenue Budgets,Childrens Services,Education Transport,A0254,Home To School Transport Sen,A32020,Home to School Transport,30013399,30/04/2022,202203,285.00,100546,Links Taxis
Education and Inclusion,Revenue Budgets,Childrens Services,Education Transport,A0254,Home To School Transport Sen,A32020,Home to School Transport,30013401,30/04/2022,202203,414.40,100546,Links Taxis
Education and Inclusion,Revenue Budgets,Childrens Services,Education Transport,A0254,Home To School Transport Sen,A32020,Home to School Transport,30013404,30/04/2022,202203,281.40,100546,Links Taxis
Education and Inclusion,Revenue Budgets,Childrens Services,Education Transport,A0254,Home To School Transport Sen,A32020,Home to School Transport,30013406,30/04/2022,202203,278.52,100546,Links Taxis
Education and Inclusion,Revenue Budgets,Childrens Services,Education Transport,A0249,Excluded And Ap Transport,A32020,Home to School Transport,30013406,30/04/2022,202203,565.48,100546,Links Taxis
Education and Inclusion,Revenue Budgets,Childrens Services,Education Transport,A0254,Home To School Transport Sen,A32020,Home to School Transport,30013408,30/04/2022,202203,456.00,100546,Links Taxis
Education and Inclusion,Revenue Budgets,Childrens Services,Education Transport,A0253,Home To Sch Transport Sec-Gy,A32020,Home to School Transport,30013409,30/04/2022,202203,860.00,100546,Links Taxis
Education and Inclusion,Revenue Budgets,Childrens Services,Education Transport,A0254,Home To School Transport Sen,A32020,Home to School Transport,30013411,30/04/2022,202203,456.00,100546,Links Taxis
Education and Inclusion,Revenue Budgets,Childrens Services,Education Transport,A0254,Home To School Transport Sen,A32020,Home to School Transport,30013413,30/04/2022,202203,517.00,100546,Links Taxis
Education and Inclusion,Revenue Budgets,Childrens Services,Education Transport,A0254,Home To School Transport Sen,A32020,Home to School Transport,30013415,30/04/2022,202203,720.00,100546,Links Taxis
Education and Inclusion,Revenue Budgets,Childrens Services,Education Transport,A0252,Home To Sch Transport Pri-Grim,A32020,Home to School Transport,30013416,30/04/2022,202203,720.00,100546,Links Taxis
Education and Inclusion,Revenue Budgets,Childrens Services,Education Transport,A0254,Home To School Transport Sen,A32020,Home to School Transport,30013420,30/04/2022,202203,282.00,100546,Links Taxis
Education and Inclusion,Revenue Budgets,Childrens Services,Education Transport,A0254,Home To School Transport Sen,A32020,Home to School Transport,30013421,30/04/2022,202203,696.00,100546,Links Taxis
Education and Inclusion,Revenue Budgets,Childrens Services,Education Transport,A0254,Home To School Transport Sen,A32020,Home to School Transport,30013422,30/04/2022,202203,333.00,100546,Links Taxis
Education and Inclusion,Revenue Budgets,Childrens Services,Education Transport,A0254,Home To School Transport Sen,A32020,Home to School Transport,30013423,30/04/2022,202203,333.00,100546,Links Taxis
Education and Inclusion,Revenue Budgets,Childrens Services,Education Transport,A0254,Home To School Transport Sen,A32020,Home to School Transport,30013426,30/04/2022,202203,336.00,100546,Links Taxis
Education and Inclusion,Revenue Budgets,Childrens Services,Education Transport,A0254,Home To School Transport Sen,A32020,Home to School Transport,30013427,30/04/2022,202203,720.00,100546,Links Taxis
Education and Inclusion,Revenue Budgets,Childrens Services,Education Transport,A0254,Home To School Transport Sen,A32020,Home to School Transport,30013428,30/04/2022,202203,975.00,100546,Links Taxis
Education and Inclusion,Revenue Budgets,Childrens Services,Education Transport,A0253,Home To Sch Transport Sec-Gy,A32020,Home to School Transport,30015921,30/04/2022,202203,551.52,101404,Stagecoach Services
Education and Inclusion,Revenue Budgets,Childrens Services,Education Transport,A0249,Excluded And Ap Transport,A32020,Home to School Transport,30015921,30/04/2022,202203,715.49,101404,Stagecoach Services
Education and Inclusion,Revenue Budgets,Childrens Services,Sen/Inclusion,A0621,Resource Based Provision,A01002,Pay - Teachers Supply Cover,30015652,01/05/2022,202203,599.50,142253,Reed Specialist Recruitment Ltd
Education and Inclusion,Revenue Budgets,Childrens Services,Education Transport,A0254,Home To School Transport Sen,A32020,Home to School Transport,30020644,01/05/2022,202203,570.00,141297,Smt (Lincs) Enterprises Ltd
Education and Inclusion,Revenue Budgets,Childrens Services,Sen/Inclusion,A1565,Top Up Funding Academies & Fre,A49105,Other Supplies & Services,30021530,05/05/2022,202203,"3,885.66",147934,For Under Fives Central Childrens Centre
Education and Inclusion,Revenue Budgets,Childrens Services,Sen/Inclusion,A1784,Other La Top-Up,A52005,Payments to Other Local Authorities,30021476,09/05/2022,202203,"21,911.66",Redacted Personal Information,Redacted Personal Information
Education and Inclusion,Revenue Budgets,Childrens Services,Education Transport,A0254,Home To School Transport Sen,A32020,Home to School Transport,30007604,11/05/2022,202203,820.00,101030,Amvale Limited
Education and Inclusion,Capital Spend,Childrens Services,Cap Alloc Devolved To Schools,Y0819,Stanford Primary Dfcg,C01009,"New Construction, conversion & renovation",30019033,11/05/2022,202203,"3,300.04",1001461,Printworks Direct Ltd
Education and Inclusion,Capital Spend,Childrens Services,Backlog Maintenance Schools,Y1599,Grange Roof,C01009,"New Construction, conversion & renovation",30020856,12/05/2022,202203,"3,109.75",101510,Eton-Lincs Limited
Education and Inclusion,Capital Spend,Childrens Services,Cap Alloc Devolved To Schools,Y0799,Grange Primary Dfcg,C01009,"New Construction, conversion & renovation",30017747,13/05/2022,202203,"7,650.00",101059,Education Lincs Ltd
Education and Inclusion,Capital Spend,Childrens Services,New Nursery Places,Y1799,Grange New Nursery Places,C01009,"New Construction, conversion & renovation",30014165,15/05/2022,202203,"5,723.89",100786,Kes Building Maintenance Limited
Education and Inclusion,Revenue Budgets,Childrens Services,Sen/Inclusion,A0621,Resource Based Provision,A01002,Pay - Teachers Supply Cover,30015685,15/05/2022,202203,599.50,142253,Reed Specialist Recruitment Ltd
Education and Inclusion,Capital Spend,Childrens Services,Cap Alloc Devolved To Schools,Y0819,Stanford Primary Dfcg,C01009,"New Construction, conversion & renovation",30011642,16/05/2022,202203,"2,212.00",1001108,Surfacing Standards Ltd
Education and Inclusion,Revenue Budgets,Childrens Services,Sen/Inclusion,A1784,Other La Top-Up,A52005,Payments to Other Local Authorities,30021486,16/05/2022,202203,"3,342.00",Redacted Personal Information,Redacted Personal Information
Education and Inclusion,Revenue Budgets,Childrens Services,Sen/Inclusion,A1766,Bursar Provision,A20005,"Property Repairs, Maintenance & Alterations",30018633,17/05/2022,202203,448.00,133267,Equans Services Ltd
Education and Inclusion,Revenue Budgets,Childrens Services,Sen/Inclusion,A1766,Bursar Provision,A20005,"Property Repairs, Maintenance & Alterations",30018647,17/05/2022,202203,765.00,133267,Equans Services Ltd
Education and Inclusion,Revenue Budgets,Childrens Services,Sen/Inclusion,A1563,Top Up Funding Post 16,A56000,Other Establishments,30021466,17/05/2022,202203,"75,000.00",102742,Tec Partnership
Education and Inclusion,Revenue Budgets,Childrens Services,Sen/Inclusion,A1858,Education Other than After Schools,A52005,Payments to Other Local Authorities,30021482,18/05/2022,202203,482.79,101305,Teaching Personnel Ltd
Education and Inclusion,Revenue Budgets,Childrens Services,Pupil Support Safeguard/Wellbeing,A0513,Lac Education,A60010,Tuition &/or Board Fees,30013447,20/05/2022,202203,335.00,147507,Educla
Education and Inclusion,Capital Spend,Childrens Services,Cap Alloc Devolved To Schools,Y0803,Coomb Briggs Primary Dfcg,C01009,"New Construction, conversion & renovation",30015230,20/05/2022,202203,315.00,102044,Lincs Electrical Services Ltd
Education and Inclusion,Capital Spend,Childrens Services,Cap Alloc Devolved To Schools,Y0803,Coomb Briggs Primary Dfcg,C01009,"New Construction, conversion & renovation",30015687,23/05/2022,202203,"1,369.83",1001092,Unibuild Building Contractors Ltd
Education and Inclusion,Revenue Budgets,Childrens Services,Pupil Support Safeguard/Wellbeing,A0513,Lac Education,A60010,Tuition &/or Board Fees,30013637,25/05/2022,202203,507.50,1001057,Batul Mansur Khan
Education and Inclusion,Revenue Budgets,Childrens Services,Sen/Inclusion,A1784,Other La Top-Up,A52005,Payments to Other Local Authorities,30021478,25/05/2022,202203,"6,000.00",Redacted Personal Information,Redacted Personal Information
Education and Inclusion,Revenue Budgets,Childrens Services,Sen/Inclusion,A1784,Other La Top-Up,A52005,Payments to Other Local Authorities,30021483,25/05/2022,202203,"3,077.72",Redacted Personal Information,Redacted Personal Information
Education and Inclusion,Revenue Budgets,Childrens Services,Sen/Inclusion,A1858,Education Other than After Schools,A52005,Payments to Other Local Authorities,30021488,25/05/2022,202203,438.90,101305,Teaching Personnel Ltd
Education and Inclusion,Revenue Budgets,Childrens Services,Sen/Inclusion,A1783,Top-Up Non-Maintained & Indepe,A52005,Payments to Other Local Authorities,30014613,26/05/2022,202203,"246,005.92",Redacted Personal Information,Redacted Personal Information
Education and Inclusion,Revenue Budgets,Childrens Services,Education Transport,A0254,Home To School Transport Sen,A32020,Home to School Transport,30012928,27/05/2022,202203,"1,615.00",149599,S&B Private Hire
Education and Inclusion,Revenue Budgets,Childrens Services,Pupil Support Safeguard/Wellbeing,A0513,Lac Education,A60010,Tuition &/or Board Fees,30013446,27/05/2022,202203,335.00,147507,Educla
Education and Inclusion,Revenue Budgets,Childrens Services,Pupil Support Safeguard/Wellbeing,A0513,Lac Education,A60010,Tuition &/or Board Fees,30013459,27/05/2022,202203,320.00,149710,Holly Fenton
Education and Inclusion,Revenue Budgets,Childrens Services,Sen/Inclusion,A1783,Top-Up Non-Maintained & Indepe,A52005,Payments to Other Local Authorities,30014633,27/05/2022,202203,"33,841.36",Redacted Personal Information,Redacted Personal Information
Education and Inclusion,Revenue Budgets,Childrens Services,Education Transport,A0254,Home To School Transport Sen,A32020,Home to School Transport,30019631,27/05/2022,202203,"2,162.00",101186,North Lincolnshire Council
Education and Inclusion,Revenue Budgets,Childrens Services,Sen/Inclusion,A1783,Top-Up Non-Maintained & Indepe,A52005,Payments to Other Local Authorities,30021500,27/05/2022,202203,"4,830.00",Redacted Personal Information,Redacted Personal Information
Education and Inclusion,Revenue Budgets,Childrens Services,Sen/Inclusion,A1783,Top-Up Non-Maintained & Indepe,A52005,Payments to Other Local Authorities,30021504,27/05/2022,202203,"1,840.00",Redacted Personal Information,Redacted Personal Information
Education and Inclusion,Revenue Budgets,Childrens Services,Sen/Inclusion,A1783,Top-Up Non-Maintained & Indepe,A52005,Payments to Other Local Authorities,30021509,27/05/2022,202203,"4,830.00",Redacted Personal Information,Redacted Personal Information
Education and Inclusion,Revenue Budgets,Childrens Services,Sen/Inclusion,A1783,Top-Up Non-Maintained & Indepe,A52005,Payments to Other Local Authorities,30021512,27/05/2022,202203,"4,830.00",Redacted Personal Information,Redacted Personal Information
Education and Inclusion,Revenue Budgets,Childrens Services,Sen/Inclusion,A1783,Top-Up Non-Maintained & Indepe,A52005,Payments to Other Local Authorities,30021516,27/05/2022,202203,"4,830.00",Redacted Personal Information,Redacted Personal Information
Education and Inclusion,Revenue Budgets,Childrens Services,Sen/Inclusion,A1783,Top-Up Non-Maintained & Indepe,A52005,Payments to Other Local Authorities,30021521,27/05/2022,202203,"2,990.00",Redacted Personal Information,Redacted Personal Information
Education and Inclusion,Revenue Budgets,Childrens Services,Sen/Inclusion,A1783,Top-Up Non-Maintained & Indepe,A52005,Payments to Other Local Authorities,30021525,27/05/2022,202203,"4,830.00",Redacted Personal Information,Redacted Personal Information
Education and Inclusion,Revenue Budgets,Childrens Services,Sen/Inclusion,A1783,Top-Up Non-Maintained & Indepe,A52005,Payments to Other Local Authorities,30021528,27/05/2022,202203,"2,990.00",Redacted Personal Information,Redacted Personal Information
Education and Inclusion,Revenue Budgets,Childrens Services,Sen/Inclusion,A1783,Top-Up Non-Maintained & Indepe,A52005,Payments to Other Local Authorities,30021529,27/05/2022,202203,"4,830.00",Redacted Personal Information,Redacted Personal Information
Education and Inclusion,Revenue Budgets,Childrens Services,Sen/Inclusion,A1783,Top-Up Non-Maintained & Indepe,A52005,Payments to Other Local Authorities,30021532,27/05/2022,202203,"4,830.00",Redacted Personal Information,Redacted Personal Information
Education and Inclusion,Revenue Budgets,Childrens Services,Sen/Inclusion,A1783,Top-Up Non-Maintained & Indepe,A52005,Payments to Other Local Authorities,30021535,27/05/2022,202203,"4,830.00",Redacted Personal Information,Redacted Personal Information
Education and Inclusion,Revenue Budgets,Childrens Services,Education Transport,A0253,Home To Sch Transport Sec-Gy,A32020,Home to School Transport,30017688,28/05/2022,202203,"1,254.26",101404,Stagecoach Services
Education and Inclusion,Revenue Budgets,Childrens Services,Education Transport,A0249,Excluded And Ap Transport,A32020,Home to School Transport,30017688,28/05/2022,202203,"1,627.15",101404,Stagecoach Services
Education and Inclusion,Revenue Budgets,Childrens Services,Pupil Support Safeguard/Wellbeing,A0513,Lac Education,A60010,Tuition &/or Board Fees,30017994,28/05/2022,202203,"1,600.00",1001539,Emotion Coaching UK Limited
Education and Inclusion,Revenue Budgets,Childrens Services,Education Transport,A0254,Home To School Transport Sen,A32020,Home to School Transport,30014840,30/05/2022,202203,"1,530.00",102124,Minicabs Cleethorpes (Lincs) Ltd
Education and Inclusion,Revenue Budgets,Childrens Services,Education Transport,A0254,Home To School Transport Sen,A32020,Home to School Transport,30014846,30/05/2022,202203,"1,245.00",102124,Minicabs Cleethorpes (Lincs) Ltd
Education and Inclusion,Revenue Budgets,Childrens Services,Education Transport,A0254,Home To School Transport Sen,A32020,Home to School Transport,30014848,30/05/2022,202203,"1,900.00",102124,Minicabs Cleethorpes (Lincs) Ltd
Education and Inclusion,Revenue Budgets,Childrens Services,Education Transport,A0254,Home To School Transport Sen,A32020,Home to School Transport,30014850,30/05/2022,202203,"1,720.00",102124,Minicabs Cleethorpes (Lincs) Ltd
Education and Inclusion,Revenue Budgets,Childrens Services,Education Transport,A0252,Home To Sch Transport Pri-Grim,A32020,Home to School Transport,30014857,30/05/2022,202203,"1,245.00",102124,Minicabs Cleethorpes (Lincs) Ltd
Education and Inclusion,Revenue Budgets,Childrens Services,Education Transport,A0254,Home To School Transport Sen,A32020,Home to School Transport,30014941,30/05/2022,202203,"2,024.00",102124,Minicabs Cleethorpes (Lincs) Ltd
Education and Inclusion,Revenue Budgets,Childrens Services,Education Transport,A0253,Home To Sch Transport Sec-Gy,A32020,Home to School Transport,30016678,30/05/2022,202203,"3,752.50",101030,Amvale Limited
Education and Inclusion,Revenue Budgets,Childrens Services,Education Transport,A0254,Home To School Transport Sen,A32020,Home to School Transport,30016682,30/05/2022,202203,"2,780.00",101030,Amvale Limited
Education and Inclusion,Revenue Budgets,Childrens Services,Education Transport,A0253,Home To Sch Transport Sec-Gy,A32020,Home to School Transport,30016683,30/05/2022,202203,"3,591.00",101030,Amvale Limited
Education and Inclusion,Revenue Budgets,Childrens Services,Education Transport,A0254,Home To School Transport Sen,A32020,Home to School Transport,30012967,31/05/2022,202203,760.00,141297,Smt (Lincs) Enterprises Ltd
Education and Inclusion,Revenue Budgets,Childrens Services,Education Transport,A0254,Home To School Transport Sen,A32020,Home to School Transport,30012968,31/05/2022,202203,950.00,141297,Smt (Lincs) Enterprises Ltd
Education and Inclusion,Revenue Budgets,Childrens Services,Education Transport,A0254,Home To School Transport Sen,A32020,Home to School Transport,30012975,31/05/2022,202203,912.00,141297,Smt (Lincs) Enterprises Ltd
Education and Inclusion,Revenue Budgets,Childrens Services,Education Transport,A0254,Home To School Transport Sen,A32020,Home to School Transport,30012977,31/05/2022,202203,684.00,141297,Smt (Lincs) Enterprises Ltd
Education and Inclusion,Revenue Budgets,Childrens Services,Education Transport,A0249,Excluded And Ap Transport,A32020,Home to School Transport,30012979,31/05/2022,202203,615.00,141297,Smt (Lincs) Enterprises Ltd
Education and Inclusion,Revenue Budgets,Childrens Services,Education Transport,A0254,Home To School Transport Sen,A32020,Home to School Transport,30012979,31/05/2022,202203,"2,460.00",141297,Smt (Lincs) Enterprises Ltd
Education and Inclusion,Revenue Budgets,Childrens Services,Education Transport,A0254,Home To School Transport Sen,A32020,Home to School Transport,30012980,31/05/2022,202203,"2,035.50",141297,Smt (Lincs) Enterprises Ltd
Education and Inclusion,Revenue Budgets,Childrens Services,Education Transport,A0254,Home To School Transport Sen,A32020,Home to School Transport,30012982,31/05/2022,202203,"1,491.50",141297,Smt (Lincs) Enterprises Ltd
Education and Inclusion,Revenue Budgets,Childrens Services,Education Transport,A0254,Home To School Transport Sen,A32020,Home to School Transport,30012983,31/05/2022,202203,"1,710.00",141297,Smt (Lincs) Enterprises Ltd
Education and Inclusion,Revenue Budgets,Childrens Services,Education Transport,A0254,Home To School Transport Sen,A32020,Home to School Transport,30012984,31/05/2022,202203,880.00,141297,Smt (Lincs) Enterprises Ltd
Education and Inclusion,Revenue Budgets,Childrens Services,Education Transport,A0254,Home To School Transport Sen,A32020,Home to School Transport,30012985,31/05/2022,202203,"3,265.25",141297,Smt (Lincs) Enterprises Ltd
Education and Inclusion,Revenue Budgets,Childrens Services,Education Transport,A0254,Home To School Transport Sen,A32020,Home to School Transport,30012986,31/05/2022,202203,"2,090.00",141297,Smt (Lincs) Enterprises Ltd
Education and Inclusion,Revenue Budgets,Childrens Services,Education Transport,A0254,Home To School Transport Sen,A32020,Home to School Transport,30012988,31/05/2022,202203,"1,330.00",141297,Smt (Lincs) Enterprises Ltd
Education and Inclusion,Revenue Budgets,Childrens Services,Education Transport,A0254,Home To School Transport Sen,A32020,Home to School Transport,30012989,31/05/2022,202203,855.00,141297,Smt (Lincs) Enterprises Ltd
Education and Inclusion,Revenue Budgets,Childrens Services,Education Transport,A0254,Home To School Transport Sen,A32020,Home to School Transport,30012990,31/05/2022,202203,"2,480.00",141297,Smt (Lincs) Enterprises Ltd
Education and Inclusion,Revenue Budgets,Childrens Services,Education Transport,A0254,Home To School Transport Sen,A32020,Home to School Transport,30012991,31/05/2022,202203,912.00,141297,Smt (Lincs) Enterprises Ltd
Education and Inclusion,Revenue Budgets,Childrens Services,Education Transport,A0254,Home To School Transport Sen,A32020,Home to School Transport,30012992,31/05/2022,202203,"1,482.00",141297,Smt (Lincs) Enterprises Ltd
Education and Inclusion,Revenue Budgets,Childrens Services,Education Transport,A0249,Excluded And Ap Transport,A32020,Home to School Transport,30012995,31/05/2022,202203,855.00,141297,Smt (Lincs) Enterprises Ltd
Education and Inclusion,Revenue Budgets,Childrens Services,Education Transport,A0254,Home To School Transport Sen,A32020,Home to School Transport,30012996,31/05/2022,202203,"2,090.00",141297,Smt (Lincs) Enterprises Ltd
Education and Inclusion,Revenue Budgets,Childrens Services,Education Transport,A0249,Excluded And Ap Transport,A32020,Home to School Transport,30012997,31/05/2022,202203,380.00,141297,Smt (Lincs) Enterprises Ltd
Education and Inclusion,Revenue Budgets,Childrens Services,Education Transport,A0248,Exceptional Circumstances,A32020,Home to School Transport,30012998,31/05/2022,202203,741.00,141297,Smt (Lincs) Enterprises Ltd
Education and Inclusion,Revenue Budgets,Childrens Services,Education Transport,A0254,Home To School Transport Sen,A32020,Home to School Transport,30012998,31/05/2022,202203,"1,111.50",141297,Smt (Lincs) Enterprises Ltd
Education and Inclusion,Revenue Budgets,Childrens Services,Education Transport,A0249,Excluded And Ap Transport,A32020,Home to School Transport,30013000,31/05/2022,202203,684.00,141297,Smt (Lincs) Enterprises Ltd
Education and Inclusion,Revenue Budgets,Childrens Services,Education Transport,A0254,Home To School Transport Sen,A32020,Home to School Transport,30013002,31/05/2022,202203,665.00,141297,Smt (Lincs) Enterprises Ltd
Education and Inclusion,Revenue Budgets,Childrens Services,Education Transport,A0254,Home To School Transport Sen,A32020,Home to School Transport,30013058,31/05/2022,202203,"1,050.00",141297,Smt (Lincs) Enterprises Ltd
Education and Inclusion,Revenue Budgets,Childrens Services,Education Transport,A0254,Home To School Transport Sen,A32020,Home to School Transport,30013061,31/05/2022,202203,640.00,141297,Smt (Lincs) Enterprises Ltd
Education and Inclusion,Revenue Budgets,Childrens Services,Education Transport,A0254,Home To School Transport Sen,A32020,Home to School Transport,30013063,31/05/2022,202203,"1,980.00",141297,Smt (Lincs) Enterprises Ltd
Education and Inclusion,Revenue Budgets,Childrens Services,Education Transport,A0254,Home To School Transport Sen,A32020,Home to School Transport,30013065,31/05/2022,202203,"1,710.00",141297,Smt (Lincs) Enterprises Ltd
Education and Inclusion,Revenue Budgets,Childrens Services,Education Transport,A0254,Home To School Transport Sen,A32020,Home to School Transport,30013103,31/05/2022,202203,"1,083.00",100546,Links Taxis
Education and Inclusion,Revenue Budgets,Childrens Services,Education Transport,A0254,Home To School Transport Sen,A32020,Home to School Transport,30013105,31/05/2022,202203,"1,710.00",100546,Links Taxis
Education and Inclusion,Revenue Budgets,Childrens Services,Education Transport,A0252,Home To Sch Transport Pri-Grim,A32020,Home to School Transport,30013106,31/05/2022,202203,"1,296.00",100546,Links Taxis
Education and Inclusion,Revenue Budgets,Childrens Services,Education Transport,A0254,Home To School Transport Sen,A32020,Home to School Transport,30013108,31/05/2022,202203,"1,147.00",100546,Links Taxis
Education and Inclusion,Revenue Budgets,Childrens Services,Education Transport,A0254,Home To School Transport Sen,A32020,Home to School Transport,30013110,31/05/2022,202203,"1,120.24",100546,Links Taxis
Education and Inclusion,Revenue Budgets,Childrens Services,Education Transport,A0254,Home To School Transport Sen,A32020,Home to School Transport,30013112,31/05/2022,202203,"1,368.00",100546,Links Taxis
Education and Inclusion,Revenue Budgets,Childrens Services,Education Transport,A0254,Home To School Transport Sen,A32020,Home to School Transport,30013116,31/05/2022,202203,545.49,100546,Links Taxis
Education and Inclusion,Revenue Budgets,Childrens Services,Education Transport,A0249,Excluded And Ap Transport,A32020,Home to School Transport,30013116,31/05/2022,202203,"1,107.51",100546,Links Taxis
Education and Inclusion,Revenue Budgets,Childrens Services,Education Transport,A0254,Home To School Transport Sen,A32020,Home to School Transport,30013117,31/05/2022,202203,"1,425.00",100546,Links Taxis
Education and Inclusion,Revenue Budgets,Childrens Services,Education Transport,A0254,Home To School Transport Sen,A32020,Home to School Transport,30013119,31/05/2022,202203,756.00,100546,Links Taxis
Education and Inclusion,Revenue Budgets,Childrens Services,Education Transport,A0254,Home To School Transport Sen,A32020,Home to School Transport,30013121,31/05/2022,202203,"2,490.00",100546,Links Taxis
Education and Inclusion,Revenue Budgets,Childrens Services,Education Transport,A0254,Home To School Transport Sen,A32020,Home to School Transport,30013123,31/05/2022,202203,896.00,100546,Links Taxis
Education and Inclusion,Revenue Budgets,Childrens Services,Education Transport,A0254,Home To School Transport Sen,A32020,Home to School Transport,30013124,31/05/2022,202203,"1,710.00",100546,Links Taxis
Education and Inclusion,Revenue Budgets,Childrens Services,Education Transport,A0249,Excluded And Ap Transport,A32020,Home to School Transport,30013126,31/05/2022,202203,263.34,100546,Links Taxis
Education and Inclusion,Revenue Budgets,Childrens Services,Education Transport,A0254,Home To School Transport Sen,A32020,Home to School Transport,30013126,31/05/2022,202203,534.66,100546,Links Taxis
Education and Inclusion,Revenue Budgets,Childrens Services,Education Transport,A0254,Home To School Transport Sen,A32020,Home to School Transport,30013128,31/05/2022,202203,"1,642.00",100546,Links Taxis
Education and Inclusion,Revenue Budgets,Childrens Services,Education Transport,A0254,Home To School Transport Sen,A32020,Home to School Transport,30013130,31/05/2022,202203,741.00,100546,Links Taxis
Education and Inclusion,Revenue Budgets,Childrens Services,Education Transport,A0254,Home To School Transport Sen,A32020,Home to School Transport,30013131,31/05/2022,202203,"1,479.00",100546,Links Taxis
Education and Inclusion,Revenue Budgets,Childrens Services,Education Transport,A0254,Home To School Transport Sen,A32020,Home to School Transport,30013133,31/05/2022,202203,893.00,100546,Links Taxis
Education and Inclusion,Revenue Budgets,Childrens Services,Education Transport,A0254,Home To School Transport Sen,A32020,Home to School Transport,30013135,31/05/2022,202203,898.89,100546,Links Taxis
Education and Inclusion,Revenue Budgets,Childrens Services,Education Transport,A0254,Home To School Transport Sen,A32020,Home to School Transport,30013136,31/05/2022,202203,893.00,100546,Links Taxis
Education and Inclusion,Revenue Budgets,Childrens Services,Education Transport,A0247,Post 16 Sen,A32020,Home to School Transport,30013138,31/05/2022,202203,546.00,100546,Links Taxis
Education and Inclusion,Revenue Budgets,Childrens Services,Education Transport,A0254,Home To School Transport Sen,A32020,Home to School Transport,30013140,31/05/2022,202203,703.00,100546,Links Taxis
Education and Inclusion,Revenue Budgets,Childrens Services,Education Transport,A0248,Exceptional Circumstances,A32020,Home to School Transport,30013142,31/05/2022,202203,383.00,100546,Links Taxis
Education and Inclusion,Revenue Budgets,Childrens Services,Education Transport,A0254,Home To School Transport Sen,A32020,Home to School Transport,30013142,31/05/2022,202203,"1,149.00",100546,Links Taxis
Education and Inclusion,Revenue Budgets,Childrens Services,Education Transport,A0254,Home To School Transport Sen,A32020,Home to School Transport,30013145,31/05/2022,202203,703.00,100546,Links Taxis
Education and Inclusion,Revenue Budgets,Childrens Services,Education Transport,A0248,Exceptional Circumstances,A32020,Home to School Transport,30013147,31/05/2022,202203,541.50,100546,Links Taxis
Education and Inclusion,Revenue Budgets,Childrens Services,Education Transport,A0254,Home To School Transport Sen,A32020,Home to School Transport,30013147,31/05/2022,202203,541.50,100546,Links Taxis
Education and Inclusion,Revenue Budgets,Childrens Services,Education Transport,A0254,Home To School Transport Sen,A32020,Home to School Transport,30013148,31/05/2022,202203,855.00,100546,Links Taxis
Education and Inclusion,Revenue Budgets,Childrens Services,Education Transport,A0254,Home To School Transport Sen,A32020,Home to School Transport,30013150,31/05/2022,202203,770.00,100546,Links Taxis
Education and Inclusion,Revenue Budgets,Childrens Services,Education Transport,A0254,Home To School Transport Sen,A32020,Home to School Transport,30013152,31/05/2022,202203,266.00,100546,Links Taxis
Education and Inclusion,Revenue Budgets,Childrens Services,Education Transport,A0253,Home To Sch Transport Sec-Gy,A32020,Home to School Transport,30013152,31/05/2022,202203,"1,634.00",100546,Links Taxis
Education and Inclusion,Revenue Budgets,Childrens Services,Education Transport,A0252,Home To Sch Transport Pri-Grim,A32020,Home to School Transport,30013153,31/05/2022,202203,"1,116.00",100546,Links Taxis
Education and Inclusion,Revenue Budgets,Childrens Services,Education Transport,A0254,Home To School Transport Sen,A32020,Home to School Transport,30013154,31/05/2022,202203,728.50,100546,Links Taxis
Education and Inclusion,Revenue Budgets,Childrens Services,Education Transport,A0254,Home To School Transport Sen,A32020,Home to School Transport,30013955,31/05/2022,202203,"1,064.00",101222,Aa Radio Cars Ltd
Education and Inclusion,Revenue Budgets,Childrens Services,Education Transport,A0254,Home To School Transport Sen,A32020,Home to School Transport,30013960,31/05/2022,202203,805.00,101222,Aa Radio Cars Ltd
Education and Inclusion,Revenue Budgets,Childrens Services,Education Transport,A0254,Home To School Transport Sen,A32020,Home to School Transport,30013962,31/05/2022,202203,"1,121.00",101222,Aa Radio Cars Ltd
Education and Inclusion,Revenue Budgets,Childrens Services,Education Transport,A0254,Home To School Transport Sen,A32020,Home to School Transport,30013964,31/05/2022,202203,646.00,101222,Aa Radio Cars Ltd
Education and Inclusion,Revenue Budgets,Childrens Services,Education Transport,A0254,Home To School Transport Sen,A32020,Home to School Transport,30013965,31/05/2022,202203,836.00,101222,Aa Radio Cars Ltd
Education and Inclusion,Revenue Budgets,Childrens Services,Education Transport,A0247,Post 16 Sen,A32020,Home to School Transport,30013970,31/05/2022,202203,416.00,101222,Aa Radio Cars Ltd
Education and Inclusion,Revenue Budgets,Childrens Services,Education Transport,A0247,Post 16 Sen,A32020,Home to School Transport,30013972,31/05/2022,202203,800.00,101222,Aa Radio Cars Ltd
Education and Inclusion,Revenue Budgets,Childrens Services,Education Transport,A0254,Home To School Transport Sen,A32020,Home to School Transport,30013972,31/05/2022,202203,800.00,101222,Aa Radio Cars Ltd
Education and Inclusion,Revenue Budgets,Childrens Services,Education Transport,A0254,Home To School Transport Sen,A32020,Home to School Transport,30013974,31/05/2022,202203,"1,768.00",101222,Aa Radio Cars Ltd
Education and Inclusion,Revenue Budgets,Childrens Services,Education Transport,A0254,Home To School Transport Sen,A32020,Home to School Transport,30013979,31/05/2022,202203,832.00,101222,Aa Radio Cars Ltd
Education and Inclusion,Revenue Budgets,Childrens Services,Education Transport,A0254,Home To School Transport Sen,A32020,Home to School Transport,30014991,31/05/2022,202203,"3,990.00",102879,Pc Coaches Ltd
Education and Inclusion,Revenue Budgets,Childrens Services,Education Transport,A0254,Home To School Transport Sen,A32020,Home to School Transport,30016133,31/05/2022,202203,"5,700.00",130777,Amvale Medical Transport Ltd
Education and Inclusion,Revenue Budgets,Childrens Services,Education Transport,A0254,Home To School Transport Sen,A32020,Home to School Transport,30016135,31/05/2022,202203,"2,641.00",130777,Amvale Medical Transport Ltd
Education and Inclusion,Revenue Budgets,Childrens Services,Education Transport,A0254,Home To School Transport Sen,A32020,Home to School Transport,30016140,31/05/2022,202203,"1,881.00",130777,Amvale Medical Transport Ltd
Education and Inclusion,Revenue Budgets,Childrens Services,Education Transport,A0254,Home To School Transport Sen,A32020,Home to School Transport,30016960,31/05/2022,202203,"2,964.00",141297,Smt (Lincs) Enterprises Ltd
Education and Inclusion,Revenue Budgets,Childrens Services,Education Transport,A0254,Home To School Transport Sen,A32020,Home to School Transport,30016961,31/05/2022,202203,"1,235.00",141297,Smt (Lincs) Enterprises Ltd
Education and Inclusion,Revenue Budgets,Childrens Services,Education Transport,A0254,Home To School Transport Sen,A32020,Home to School Transport,30016963,31/05/2022,202203,"1,440.00",141297,Smt (Lincs) Enterprises Ltd
Education and Inclusion,Revenue Budgets,Childrens Services,Education Transport,A0254,Home To School Transport Sen,A32020,Home to School Transport,30016966,31/05/2022,202203,760.00,141297,Smt (Lincs) Enterprises Ltd
Education and Inclusion,Revenue Budgets,Childrens Services,Education Transport,A0254,Home To School Transport Sen,A32020,Home to School Transport,30016970,31/05/2022,202203,950.00,141297,Smt (Lincs) Enterprises Ltd
Education and Inclusion,Revenue Budgets,Childrens Services,Education Transport,A0254,Home To School Transport Sen,A32020,Home to School Transport,30016971,31/05/2022,202203,950.00,141297,Smt (Lincs) Enterprises Ltd
Education and Inclusion,Revenue Budgets,Childrens Services,Education Transport,A0254,Home To School Transport Sen,A32020,Home to School Transport,30016973,31/05/2022,202203,"1,085.00",141297,Smt (Lincs) Enterprises Ltd
Education and Inclusion,Capital Spend,Childrens Services,Cap Alloc Devolved To Schools,Y0819,Stanford Primary Dfcg,C01009,"New Construction, conversion & renovation",30018334,31/05/2022,202203,350.00,1001461,Printworks Direct Ltd
Education and Inclusion,Revenue Budgets,Childrens Services,Education Transport,A0254,Home To School Transport Sen,A32020,Home to School Transport,30018691,31/05/2022,202203,"2,451.00",130777,Amvale Medical Transport Ltd
Education and Inclusion,Revenue Budgets,Childrens Services,Education Transport,A0254,Home To School Transport Sen,A32020,Home to School Transport,30018692,31/05/2022,202203,"4,123.00",130777,Amvale Medical Transport Ltd
Education and Inclusion,Revenue Budgets,Childrens Services,Education Transport,A0254,Home To School Transport Sen,A32020,Home to School Transport,30018697,31/05/2022,202203,"2,641.00",130777,Amvale Medical Transport Ltd
Education and Inclusion,Revenue Budgets,Childrens Services,Education Transport,A0254,Home To School Transport Sen,A32020,Home to School Transport,30018704,31/05/2022,202203,"2,622.00",130777,Amvale Medical Transport Ltd
Education and Inclusion,Revenue Budgets,Childrens Services,Education Transport,A0254,Home To School Transport Sen,A32020,Home to School Transport,30018711,31/05/2022,202203,"3,781.00",130777,Amvale Medical Transport Ltd
Education and Inclusion,Revenue Budgets,Childrens Services,Education Transport,A0248,Exceptional Circumstances,A32020,Home to School Transport,30018982,31/05/2022,202203,"1,080.59",100546,Links Taxis
Education and Inclusion,Revenue Budgets,Childrens Services,Education Transport,A0253,Home To Sch Transport Sec-Gy,A32020,Home to School Transport,30018982,31/05/2022,202203,"1,440.78",100546,Links Taxis
Education and Inclusion,Revenue Budgets,Childrens Services,Education Transport,A0249,Excluded And Ap Transport,A32020,Home to School Transport,30018982,31/05/2022,202203,"1,800.98",100546,Links Taxis
Education and Inclusion,Revenue Budgets,Childrens Services,Education Transport,A0254,Home To School Transport Sen,A32020,Home to School Transport,30018982,31/05/2022,202203,"9,004.88",100546,Links Taxis
Education and Inclusion,Revenue Budgets,Childrens Services,Education Transport,A0247,Post 16 Sen,A32020,Home to School Transport,30018982,31/05/2022,202203,"22,692.29",100546,Links Taxis
Education and Inclusion,Revenue Budgets,Childrens Services,Sen/Inclusion,A1783,Top-Up Non-Maintained & Indepe,A52005,Payments to Other Local Authorities,30019212,31/05/2022,202203,"65,335.94",Redacted Personal Information,Redacted Personal Information
Education and Inclusion,Revenue Budgets,Childrens Services,Attainment and Progress,A0595,Reynolds Cc Daycare,A21005,Electricity,30013691,01/06/2022,202203,"1,326.40",122175,Reynolds Academy
Education and Inclusion,Revenue Budgets,Childrens Services,Attainment and Progress,A0595,Reynolds Cc Daycare,A21010,Gas,30013691,01/06/2022,202203,266.05,122175,Reynolds Academy
Education and Inclusion,Revenue Budgets,Childrens Services,Attainment and Progress,A0595,Reynolds Cc Daycare,A24005,Water Services,30013691,01/06/2022,202203,347.82,122175,Reynolds Academy
Education and Inclusion,Revenue Budgets,Childrens Services,Education Transport,A0254,Home To School Transport Sen,A32020,Home to School Transport,30020635,01/06/2022,202203,"1,620.00",141297,Smt (Lincs) Enterprises Ltd
Education and Inclusion,Revenue Budgets,Childrens Services,Education Transport,A0254,Home To School Transport Sen,A32020,Home to School Transport,30020637,01/06/2022,202203,665.00,141297,Smt (Lincs) Enterprises Ltd
Education and Inclusion,Revenue Budgets,Childrens Services,Education Transport,A0254,Home To School Transport Sen,A32020,Home to School Transport,30020639,01/06/2022,202203,696.00,141297,Smt (Lincs) Enterprises Ltd
Education and Inclusion,Revenue Budgets,Childrens Services,Education Transport,A0254,Home To School Transport Sen,A32020,Home to School Transport,30020640,01/06/2022,202203,950.00,141297,Smt (Lincs) Enterprises Ltd
Education and Inclusion,Revenue Budgets,Childrens Services,Education Transport,A0254,Home To School Transport Sen,A32020,Home to School Transport,30020647,01/06/2022,202203,720.00,141297,Smt (Lincs) Enterprises Ltd
Education and Inclusion,Revenue Budgets,Childrens Services,Education Transport,A0254,Home To School Transport Sen,A32020,Home to School Transport,30020649,01/06/2022,202203,"2,980.00",141297,Smt (Lincs) Enterprises Ltd
Education and Inclusion,Revenue Budgets,Childrens Services,Education Transport,A0254,Home To School Transport Sen,A32020,Home to School Transport,30020654,01/06/2022,202203,"1,870.00",141297,Smt (Lincs) Enterprises Ltd
Education and Inclusion,Revenue Budgets,Childrens Services,Education Transport,A0249,Excluded And Ap Transport,A32020,Home to School Transport,30020656,01/06/2022,202203,630.00,141297,Smt (Lincs) Enterprises Ltd
Education and Inclusion,Revenue Budgets,Childrens Services,Education Transport,A0254,Home To School Transport Sen,A32020,Home to School Transport,30020658,01/06/2022,202203,648.00,141297,Smt (Lincs) Enterprises Ltd
Education and Inclusion,Revenue Budgets,Childrens Services,Education Transport,A0254,Home To School Transport Sen,A32020,Home to School Transport,30020660,01/06/2022,202203,"1,045.00",141297,Smt (Lincs) Enterprises Ltd
Education and Inclusion,Revenue Budgets,Childrens Services,Education Transport,A0254,Home To School Transport Sen,A32020,Home to School Transport,30020661,01/06/2022,202203,"1,985.00",141297,Smt (Lincs) Enterprises Ltd
Education and Inclusion,Revenue Budgets,Childrens Services,Education Transport,A0254,Home To School Transport Sen,A32020,Home to School Transport,30020665,01/06/2022,202203,"1,170.00",141297,Smt (Lincs) Enterprises Ltd
Education and Inclusion,Revenue Budgets,Childrens Services,Education Transport,A0254,Home To School Transport Sen,A32020,Home to School Transport,30020666,01/06/2022,202203,810.00,141297,Smt (Lincs) Enterprises Ltd
Education and Inclusion,Revenue Budgets,Childrens Services,Education Transport,A0248,Exceptional Circumstances,A32020,Home to School Transport,30020668,01/06/2022,202203,741.00,141297,Smt (Lincs) Enterprises Ltd
Education and Inclusion,Revenue Budgets,Childrens Services,Education Transport,A0254,Home To School Transport Sen,A32020,Home to School Transport,30020668,01/06/2022,202203,"1,111.50",141297,Smt (Lincs) Enterprises Ltd
Education and Inclusion,Revenue Budgets,Childrens Services,Education Transport,A0254,Home To School Transport Sen,A32020,Home to School Transport,30020673,01/06/2022,202203,912.00,141297,Smt (Lincs) Enterprises Ltd
Education and Inclusion,Revenue Budgets,Childrens Services,Education Transport,A0254,Home To School Transport Sen,A32020,Home to School Transport,30020678,01/06/2022,202203,760.00,141297,Smt (Lincs) Enterprises Ltd
Education and Inclusion,Revenue Budgets,Childrens Services,Education Transport,A0254,Home To School Transport Sen,A32020,Home to School Transport,30020684,01/06/2022,202203,864.00,141297,Smt (Lincs) Enterprises Ltd
Education and Inclusion,Revenue Budgets,Childrens Services,Education Transport,A0254,Home To School Transport Sen,A32020,Home to School Transport,30020685,01/06/2022,202203,"1,900.00",141297,Smt (Lincs) Enterprises Ltd
Education and Inclusion,Revenue Budgets,Childrens Services,Education Transport,A0254,Home To School Transport Sen,A32020,Home to School Transport,30020687,01/06/2022,202203,"3,172.00",141297,Smt (Lincs) Enterprises Ltd
Education and Inclusion,Revenue Budgets,Childrens Services,Education Transport,A0249,Excluded And Ap Transport,A32020,Home to School Transport,30020693,01/06/2022,202203,684.00,141297,Smt (Lincs) Enterprises Ltd
Education and Inclusion,Revenue Budgets,Childrens Services,Education Transport,A0249,Excluded And Ap Transport,A32020,Home to School Transport,30020697,01/06/2022,202203,650.00,141297,Smt (Lincs) Enterprises Ltd
Education and Inclusion,Revenue Budgets,Childrens Services,Education Transport,A0254,Home To School Transport Sen,A32020,Home to School Transport,30020697,01/06/2022,202203,"2,600.00",141297,Smt (Lincs) Enterprises Ltd
Education and Inclusion,Revenue Budgets,Childrens Services,Education Transport,A0249,Excluded And Ap Transport,A32020,Home to School Transport,30020702,01/06/2022,202203,"1,960.00",141297,Smt (Lincs) Enterprises Ltd
Education and Inclusion,Revenue Budgets,Childrens Services,Education Transport,A0254,Home To School Transport Sen,A32020,Home to School Transport,30020703,01/06/2022,202203,"1,430.00",141297,Smt (Lincs) Enterprises Ltd
Education and Inclusion,Revenue Budgets,Childrens Services,Education Transport,A0254,Home To School Transport Sen,A32020,Home to School Transport,30020707,01/06/2022,202203,"3,154.25",141297,Smt (Lincs) Enterprises Ltd
Education and Inclusion,Revenue Budgets,Childrens Services,Education Transport,A0254,Home To School Transport Sen,A32020,Home to School Transport,30020708,01/06/2022,202203,"1,710.00",141297,Smt (Lincs) Enterprises Ltd
Education and Inclusion,Revenue Budgets,Childrens Services,Education Transport,A0254,Home To School Transport Sen,A32020,Home to School Transport,30020710,01/06/2022,202203,"2,660.00",141297,Smt (Lincs) Enterprises Ltd
Education and Inclusion,Revenue Budgets,Childrens Services,Education Transport,A0254,Home To School Transport Sen,A32020,Home to School Transport,30020711,01/06/2022,202203,"1,491.50",141297,Smt (Lincs) Enterprises Ltd
Education and Inclusion,Revenue Budgets,Childrens Services,Education Transport,A0254,Home To School Transport Sen,A32020,Home to School Transport,30020714,01/06/2022,202203,"1,190.00",141297,Smt (Lincs) Enterprises Ltd
Education and Inclusion,Revenue Budgets,Childrens Services,Education Transport,A0254,Home To School Transport Sen,A32020,Home to School Transport,30020715,01/06/2022,202203,"2,165.00",141297,Smt (Lincs) Enterprises Ltd
Education and Inclusion,Revenue Budgets,Childrens Services,Education Transport,A0249,Excluded And Ap Transport,A32020,Home to School Transport,30020718,01/06/2022,202203,380.00,141297,Smt (Lincs) Enterprises Ltd
Education and Inclusion,Revenue Budgets,Childrens Services,Education Transport,A0254,Home To School Transport Sen,A32020,Home to School Transport,30020721,01/06/2022,202203,750.00,141297,Smt (Lincs) Enterprises Ltd
Education and Inclusion,Revenue Budgets,Childrens Services,Education Transport,A0254,Home To School Transport Sen,A32020,Home to School Transport,30020727,01/06/2022,202203,"1,710.00",141297,Smt (Lincs) Enterprises Ltd
Education and Inclusion,Revenue Budgets,Childrens Services,Education Transport,A0254,Home To School Transport Sen,A32020,Home to School Transport,30020730,01/06/2022,202203,"1,520.00",141297,Smt (Lincs) Enterprises Ltd
Education and Inclusion,Capital Spend,Childrens Services,Cap Alloc Devolved To Schools,Y0821,Western Primary Dfcg,C01009,"New Construction, conversion & renovation",30013373,02/06/2022,202203,"3,980.00",119571,Technology Support Solutions Ltd
Education and Inclusion,Revenue Budgets,Childrens Services,Sen/Inclusion,A1563,Top Up Funding Post 16,A52005,Payments to Other Local Authorities,30018484,06/06/2022,202203,"5,680.50",Redacted Personal Information,Redacted Personal Information
Education and Inclusion,Revenue Budgets,Childrens Services,Education Transport,A0254,Home To School Transport Sen,A32020,Home to School Transport,30014825,08/06/2022,202203,820.00,101030,Amvale Limited
Education and Inclusion,Revenue Budgets,Childrens Services,Education Transport,A0254,Home To School Transport Sen,A32020,Home to School Transport,30014877,08/06/2022,202203,"1,470.00",101030,Amvale Limited
Education and Inclusion,Revenue Budgets,Childrens Services,Education Transport,A0254,Home To School Transport Sen,A32020,Home to School Transport,30014880,08/06/2022,202203,820.00,101030,Amvale Limited
Education and Inclusion,Revenue Budgets,Childrens Services,Pupil Support Safeguard/Wellbeing,A0513,Lac Education,A60010,Tuition &/or Board Fees,30014913,10/06/2022,202203,335.00,147507,Educla
Education and Inclusion,Revenue Budgets,Childrens Services,Sen/Inclusion,A0277,Ap And Other High Needs,A49105,Other Supplies & Services,30020324,10/06/2022,202203,"11,167.00",1001291,Nisai Virtual academy
Education and Inclusion,Revenue Budgets,Childrens Services,Sen/Inclusion,A1715,Early Years Inclusion Fund,A47008,Contributions - Other,30015500,14/06/2022,202203,"1,368.00",149044,Tec Partnership - Little Stars Nursery
Education and Inclusion,Revenue Budgets,Childrens Services,Sen/Inclusion,A1715,Early Years Inclusion Fund,A47008,Contributions - Other,30015500,14/06/2022,202203,"1,368.00",149044,Tec Partnership - Little Stars Nursery
Education and Inclusion,Revenue Budgets,Childrens Services,Sen/Inclusion,A1715,Early Years Inclusion Fund,A47008,Contributions - Other,30015721,14/06/2022,202203,"1,710.00",122861,Oasis Academy School (Nunsthorpe School)
Education and Inclusion,Revenue Budgets,Childrens Services,Sen/Inclusion,A1715,Early Years Inclusion Fund,A47008,Contributions - Other,30015723,14/06/2022,202203,"1,140.00",129629,Elliston Primary Academy
Education and Inclusion,Revenue Budgets,Childrens Services,Sen/Inclusion,A1715,Early Years Inclusion Fund,A47008,Contributions - Other,30015723,14/06/2022,202203,"1,140.00",129629,Elliston Primary Academy
Education and Inclusion,Revenue Budgets,Childrens Services,Sen/Inclusion,A1715,Early Years Inclusion Fund,A47008,Contributions - Other,30015725,14/06/2022,202203,"1,140.00",114491,Humberston Pre School
Education and Inclusion,Revenue Budgets,Childrens Services,Sen/Inclusion,A1715,Early Years Inclusion Fund,A47008,Contributions - Other,30015725,14/06/2022,202203,"1,140.00",114491,Humberston Pre School
Education and Inclusion,Revenue Budgets,Childrens Services,Sen/Inclusion,A1715,Early Years Inclusion Fund,A47008,Contributions - Other,30015725,14/06/2022,202203,"1,368.00",114491,Humberston Pre School
Education and Inclusion,Revenue Budgets,Childrens Services,Sen/Inclusion,A1715,Early Years Inclusion Fund,A47008,Contributions - Other,30015725,14/06/2022,202203,"1,368.00",114491,Humberston Pre School
Education and Inclusion,Revenue Budgets,Childrens Services,Sen/Inclusion,A1715,Early Years Inclusion Fund,A47008,Contributions - Other,30015728,14/06/2022,202203,684.00,114491,Humberston Pre School
Education and Inclusion,Revenue Budgets,Childrens Services,Sen/Inclusion,A1715,Early Years Inclusion Fund,A47008,Contributions - Other,30015728,14/06/2022,202203,"1,368.00",114491,Humberston Pre School
Education and Inclusion,Revenue Budgets,Childrens Services,Sen/Inclusion,A1715,Early Years Inclusion Fund,A47008,Contributions - Other,30015728,14/06/2022,202203,"1,710.00",114491,Humberston Pre School
Education and Inclusion,Revenue Budgets,Childrens Services,Sen/Inclusion,A1715,Early Years Inclusion Fund,A47008,Contributions - Other,30015730,14/06/2022,202203,"1,140.00",145026,Explorosity Education Ltd
Education and Inclusion,Revenue Budgets,Childrens Services,Sen/Inclusion,A1715,Early Years Inclusion Fund,A47008,Contributions - Other,30015730,14/06/2022,202203,"1,140.00",145026,Explorosity Education Ltd
Education and Inclusion,Revenue Budgets,Childrens Services,Sen/Inclusion,A1715,Early Years Inclusion Fund,A47008,Contributions - Other,30015730,14/06/2022,202203,"1,368.00",145026,Explorosity Education Ltd
Education and Inclusion,Revenue Budgets,Childrens Services,Sen/Inclusion,A1715,Early Years Inclusion Fund,A47008,Contributions - Other,30015730,14/06/2022,202203,"1,710.00",145026,Explorosity Education Ltd
Education and Inclusion,Revenue Budgets,Childrens Services,Sen/Inclusion,A1715,Early Years Inclusion Fund,A47008,Contributions - Other,30015734,14/06/2022,202203,"7,638.00",110493,Lisle Marsden Childcare Limited
Education and Inclusion,Revenue Budgets,Childrens Services,Sen/Inclusion,A1783,Top-Up Non-Maintained & Indepe,A52005,Payments to Other Local Authorities,30020646,14/06/2022,202203,"3,800.00",Redacted Personal Information,Redacted Personal Information
Education and Inclusion,Revenue Budgets,Childrens Services,Sen/Inclusion,A1715,Early Years Inclusion Fund,A47008,Contributions - Other,30016134,15/06/2022,202203,"1,140.00",101694,Butterflies Day Nursery
Education and Inclusion,Revenue Budgets,Childrens Services,Sen/Inclusion,A1715,Early Years Inclusion Fund,A47008,Contributions - Other,30016134,15/06/2022,202203,"1,368.00",101694,Butterflies Day Nursery
Education and Inclusion,Revenue Budgets,Childrens Services,Sen/Inclusion,A1715,Early Years Inclusion Fund,A47008,Contributions - Other,30016134,15/06/2022,202203,"2,850.00",101694,Butterflies Day Nursery
Education and Inclusion,Revenue Budgets,Childrens Services,Sen/Inclusion,A1858,Education Other than After Schools,A52005,Payments to Other Local Authorities,30021484,15/06/2022,202203,351.12,101305,Teaching Personnel Ltd
Education and Inclusion,Revenue Budgets,Childrens Services,Sen/Inclusion,A1715,Early Years Inclusion Fund,A47008,Contributions - Other,30016604,16/06/2022,202203,"2,964.00",101591,Cleethorpes Childcare
Education and Inclusion,Revenue Budgets,Childrens Services,Sen/Inclusion,A1715,Early Years Inclusion Fund,A47008,Contributions - Other,30016606,16/06/2022,202203,"2,599.00",100833,Jenx Ltd
Education and Inclusion,Revenue Budgets,Childrens Services,Pupil Support Safeguard/Wellbeing,A0513,Lac Education,A60010,Tuition &/or Board Fees,30016918,17/06/2022,202203,335.00,147507,Educla
Education and Inclusion,Revenue Budgets,Childrens Services,Sen/Inclusion,A0621,Resource Based Provision,A01002,Pay - Teachers Supply Cover,30018953,17/06/2022,202203,599.50,142253,Reed Specialist Recruitment Ltd
Education and Inclusion,Revenue Budgets,Childrens Services,Sen/Inclusion,A0621,Resource Based Provision,A01002,Pay - Teachers Supply Cover,30019555,17/06/2022,202203,599.50,142253,Reed Specialist Recruitment Ltd
Education and Inclusion,Revenue Budgets,Childrens Services,Sen/Inclusion,A1783,Top-Up Non-Maintained & Indepe,A52005,Payments to Other Local Authorities,30017759,22/06/2022,202203,"2,415.00",Redacted Personal Information,Redacted Personal Information
Education and Inclusion,Revenue Budgets,Childrens Services,Sen/Inclusion,A1783,Top-Up Non-Maintained & Indepe,A52005,Payments to Other Local Authorities,30017759,22/06/2022,202203,"2,415.00",Redacted Personal Information,Redacted Personal Information
Education and Inclusion,Revenue Budgets,Childrens Services,Sen/Inclusion,A1783,Top-Up Non-Maintained & Indepe,A52005,Payments to Other Local Authorities,30017760,22/06/2022,202203,"1,495.00",Redacted Personal Information,Redacted Personal Information
Education and Inclusion,Revenue Budgets,Childrens Services,Sen/Inclusion,A1783,Top-Up Non-Maintained & Indepe,A52005,Payments to Other Local Authorities,30017760,22/06/2022,202203,"3,334.99",Redacted Personal Information,Redacted Personal Information
Education and Inclusion,Revenue Budgets,Childrens Services,Sen/Inclusion,A1783,Top-Up Non-Maintained & Indepe,A52005,Payments to Other Local Authorities,30017764,22/06/2022,202203,"4,830.00",Redacted Personal Information,Redacted Personal Information
Education and Inclusion,Revenue Budgets,Childrens Services,Sen/Inclusion,A1783,Top-Up Non-Maintained & Indepe,A52005,Payments to Other Local Authorities,30017767,22/06/2022,202203,"4,830.00",Redacted Personal Information,Redacted Personal Information
Education and Inclusion,Revenue Budgets,Childrens Services,Sen/Inclusion,A1783,Top-Up Non-Maintained & Indepe,A52005,Payments to Other Local Authorities,30017769,22/06/2022,202203,"4,830.00",Redacted Personal Information,Redacted Personal Information
Education and Inclusion,Revenue Budgets,Childrens Services,Sen/Inclusion,A1783,Top-Up Non-Maintained & Indepe,A52005,Payments to Other Local Authorities,30017770,22/06/2022,202203,"2,990.00",Redacted Personal Information,Redacted Personal Information
Education and Inclusion,Revenue Budgets,Childrens Services,Sen/Inclusion,A1783,Top-Up Non-Maintained & Indepe,A52005,Payments to Other Local Authorities,30017774,22/06/2022,202203,"4,830.00",Redacted Personal Information,Redacted Personal Information
Education and Inclusion,Revenue Budgets,Childrens Services,Sen/Inclusion,A1783,Top-Up Non-Maintained & Indepe,A52005,Payments to Other Local Authorities,30017776,22/06/2022,202203,"1,840.00",Redacted Personal Information,Redacted Personal Information
Education and Inclusion,Revenue Budgets,Childrens Services,Sen/Inclusion,A1783,Top-Up Non-Maintained & Indepe,A52005,Payments to Other Local Authorities,30017787,22/06/2022,202203,"2,990.00",Redacted Personal Information,Redacted Personal Information
Education and Inclusion,Revenue Budgets,Childrens Services,Sen/Inclusion,A1783,Top-Up Non-Maintained & Indepe,A52005,Payments to Other Local Authorities,30017794,22/06/2022,202203,"4,830.00",Redacted Personal Information,Redacted Personal Information
Education and Inclusion,Revenue Budgets,Childrens Services,Sen/Inclusion,A1783,Top-Up Non-Maintained & Indepe,A52005,Payments to Other Local Authorities,30017819,22/06/2022,202203,"4,830.00",Redacted Personal Information,Redacted Personal Information
Education and Inclusion,Revenue Budgets,Childrens Services,Pupil Support Safeguard/Wellbeing,A0513,Lac Education,A60010,Tuition &/or Board Fees,30017868,22/06/2022,202203,528.00,147504,Pauline Quirk Academy
Education and Inclusion,Revenue Budgets,Childrens Services,Sen/Inclusion,A1858,Education Other than After Schools,A52005,Payments to Other Local Authorities,30021463,22/06/2022,202203,438.90,101305,Teaching Personnel Ltd
Education and Inclusion,Revenue Budgets,Childrens Services,Pupil Support Safeguard/Wellbeing,A0513,Lac Education,A60010,Tuition &/or Board Fees,30019632,23/06/2022,202203,275.00,147504,Pauline Quirk Academy
Education and Inclusion,Revenue Budgets,Childrens Services,Education Transport,A0254,Home To School Transport Sen,A47008,Contributions - Other,30018976,24/06/2022,202203,"1,866.60",Redacted Personal Information,Redacted Personal Information
Education and Inclusion,Revenue Budgets,Childrens Services,Pupil Support Safeguard/Wellbeing,A0513,Lac Education,A60010,Tuition &/or Board Fees,30019622,25/06/2022,202203,"1,620.00",144120,Learning4life-Gy-Cic
Education and Inclusion,Revenue Budgets,Childrens Services,Pupil Support Safeguard/Wellbeing,A0513,Lac Education,A60010,Tuition &/or Board Fees,30019626,25/06/2022,202203,"1,462.50",144120,Learning4life-Gy-Cic
Education and Inclusion,Revenue Budgets,Childrens Services,Pupil Support Safeguard/Wellbeing,A0245,Schools Services,A49105,Other Supplies & Services,30021526,25/06/2022,202203,"1,919.31",144120,Learning4life-Gy-Cic
Education and Inclusion,Revenue Budgets,Childrens Services,Sen/Inclusion,A1783,Top-Up Non-Maintained & Indepe,A52005,Payments to Other Local Authorities,30020593,27/06/2022,202203,"246,005.92",Redacted Personal Information,Redacted Personal Information
Education and Inclusion,Revenue Budgets,Childrens Services,Education Transport,A0254,Home To School Transport Sen,A32020,Home to School Transport,30021172,27/06/2022,202203,"1,572.50",149599,S&B Private Hire
Education and Inclusion,Revenue Budgets,Childrens Services,Education Transport,A0254,Home To School Transport Sen,A32020,Home to School Transport,30020369,28/06/2022,202203,"1,926.00",111879,Hansons Airport Express
Education and Inclusion,Revenue Budgets,Childrens Services,Education Transport,A0254,Home To School Transport Sen,A32020,Home to School Transport,30020396,28/06/2022,202203,"1,926.00",111879,Hansons Airport Express
Education and Inclusion,Revenue Budgets,Childrens Services,Education Transport,A0254,Home To School Transport Sen,A32020,Home to School Transport,30020642,30/06/2022,202203,"1,406.00",102124,Minicabs Cleethorpes (Lincs) Ltd
Education and Inclusion,Revenue Budgets,Childrens Services,Education Transport,A0254,Home To School Transport Sen,A32020,Home to School Transport,30020680,30/06/2022,202203,"1,710.00",102124,Minicabs Cleethorpes (Lincs) Ltd
Education and Inclusion,Revenue Budgets,Childrens Services,Education Transport,A0254,Home To School Transport Sen,A32020,Home to School Transport,30020716,30/06/2022,202203,"1,953.00",102124,Minicabs Cleethorpes (Lincs) Ltd
Education and Inclusion,Revenue Budgets,Childrens Services,Education Transport,A0254,Home To School Transport Sen,A32020,Home to School Transport,30020719,30/06/2022,202203,"1,520.00",102124,Minicabs Cleethorpes (Lincs) Ltd
Education and Inclusion,Revenue Budgets,Childrens Services,Education Transport,A0254,Home To School Transport Sen,A32020,Home to School Transport,30020722,30/06/2022,202203,"1,170.00",102124,Minicabs Cleethorpes (Lincs) Ltd
Education and Inclusion,Revenue Budgets,Childrens Services,Education Transport,A0254,Home To School Transport Sen,A32020,Home to School Transport,30020945,30/06/2022,202203,"2,390.00",101522,The Bus Run
Education and Inclusion,Revenue Budgets,Childrens Services,Education Transport,A0247,Post 16 Sen,A32020,Home to School Transport,30021471,30/06/2022,202203,"1,937.00",141083,Drs Taxi Service
Education and Inclusion,Revenue Budgets,Childrens Services,Education Transport,A0254,Home To School Transport Sen,A32020,Home to School Transport,30021550,30/06/2022,202203,660.00,100578,Coxons Cars Limited
Education and Inclusion,Revenue Budgets,Childrens Services,Education Transport,A0248,Exceptional Circumstances,A32020,Home to School Transport,30021555,30/06/2022,202203,420.00,100578,Coxons Cars Limited
Education and Inclusion,Revenue Budgets,Childrens Services,Education Transport,A0254,Home To School Transport Sen,A32020,Home to School Transport,30021555,30/06/2022,202203,420.00,100578,Coxons Cars Limited
Education and Inclusion,Revenue Budgets,Childrens Services,Education Transport,A0254,Home To School Transport Sen,A32020,Home to School Transport,30021559,30/06/2022,202203,648.00,100578,Coxons Cars Limited
Education and Inclusion,Revenue Budgets,Childrens Services,Education Transport,A0253,Home To Sch Transport Sec-Gy,A32020,Home to School Transport,30021562,30/06/2022,202203,760.00,100578,Coxons Cars Limited
Education and Inclusion,Revenue Budgets,Childrens Services,Education Transport,A0249,Excluded And Ap Transport,A32020,Home to School Transport,30021564,30/06/2022,202203,348.00,100578,Coxons Cars Limited
Education and Inclusion,Revenue Budgets,Childrens Services,Education Transport,A0254,Home To School Transport Sen,A32020,Home to School Transport,30021564,30/06/2022,202203,348.00,100578,Coxons Cars Limited
Education and Inclusion,Revenue Budgets,Childrens Services,Education Transport,A0254,Home To School Transport Sen,A32020,Home to School Transport,30021567,30/06/2022,202203,790.00,100578,Coxons Cars Limited
Education and Inclusion,Revenue Budgets,Childrens Services,Education Transport,A0254,Home To School Transport Sen,A32020,Home to School Transport,30021569,30/06/2022,202203,672.00,100578,Coxons Cars Limited
Education and Inclusion,Revenue Budgets,Childrens Services,Education Transport,A0254,Home To School Transport Sen,A32020,Home to School Transport,30021716,30/06/2022,202203,"2,142.00",101222,Aa Radio Cars Ltd
Education and Inclusion,Revenue Budgets,Childrens Services,Education Transport,A0254,Home To School Transport Sen,A32020,Home to School Transport,30021718,30/06/2022,202203,"1,121.00",101222,Aa Radio Cars Ltd
Education and Inclusion,Revenue Budgets,Childrens Services,Education Transport,A0254,Home To School Transport Sen,A32020,Home to School Transport,30021722,30/06/2022,202203,728.00,101222,Aa Radio Cars Ltd
Education and Inclusion,Revenue Budgets,Childrens Services,Education Transport,A0254,Home To School Transport Sen,A32020,Home to School Transport,30021723,30/06/2022,202203,690.00,101222,Aa Radio Cars Ltd
Education and Inclusion,Revenue Budgets,Childrens Services,Education Transport,A0254,Home To School Transport Sen,A32020,Home to School Transport,30021725,30/06/2022,202203,"2,405.00",101222,Aa Radio Cars Ltd
Education and Inclusion,Revenue Budgets,Childrens Services,Education Transport,A0247,Post 16 Sen,A32020,Home to School Transport,30021727,30/06/2022,202203,400.00,101222,Aa Radio Cars Ltd
Education and Inclusion,Revenue Budgets,Childrens Services,Education Transport,A0254,Home To School Transport Sen,A32020,Home to School Transport,30021727,30/06/2022,202203,400.00,101222,Aa Radio Cars Ltd
Education and Inclusion,Revenue Budgets,Childrens Services,Education Transport,A0254,Home To School Transport Sen,A32020,Home to School Transport,30021729,30/06/2022,202203,792.00,101222,Aa Radio Cars Ltd
Education and Inclusion,Revenue Budgets,Childrens Services,Education Transport,A0254,Home To School Transport Sen,A32020,Home to School Transport,30021731,30/06/2022,202203,561.00,101222,Aa Radio Cars Ltd
Education and Inclusion,Revenue Budgets,Childrens Services,Education Transport,A0254,Home To School Transport Sen,A32020,Home to School Transport,30021732,30/06/2022,202203,868.00,101222,Aa Radio Cars Ltd
Education and Inclusion,Revenue Budgets,Childrens Services,Pupil Support Safeguard/Wellbeing,A0513,Lac Education,A60010,Tuition &/or Board Fees,30021880,30/06/2022,202203,280.00,149710,Holly Fenton
Education and Inclusion,Revenue Budgets,Childrens Services,Education Transport,A0254,Home To School Transport Sen,A32020,Home to School Transport,30021459,01/07/2022,202203,900.80,121524,Grimsby Minibuses Ltd
Education and Inclusion,Revenue Budgets,Childrens Services,Education Transport,A0254,Home To School Transport Sen,A32020,Home to School Transport,30021462,01/07/2022,202203,"2,534.40",121524,Grimsby Minibuses Ltd
Education and Inclusion,Revenue Budgets,Childrens Services,Education Transport,A0254,Home To School Transport Sen,A32020,Home to School Transport,30021464,01/07/2022,202203,"2,188.80",121524,Grimsby Minibuses Ltd
Education and Inclusion,Revenue Budgets,Childrens Services,Education Transport,A0254,Home To School Transport Sen,A32020,Home to School Transport,30021477,01/07/2022,202203,"1,858.20",121524,Grimsby Minibuses Ltd
Education and Inclusion,Revenue Budgets,Childrens Services,Education Transport,A0253,Home To Sch Transport Sec-Gy,A32020,Home to School Transport,30021480,01/07/2022,202203,"2,846.20",121524,Grimsby Minibuses Ltd
Education and Inclusion,Revenue Budgets,Childrens Services,Education Transport,A0254,Home To School Transport Sen,A32020,Home to School Transport,30021485,01/07/2022,202203,"2,846.20",121524,Grimsby Minibuses Ltd
Education and Inclusion,Revenue Budgets,Childrens Services,Education Transport,A0253,Home To Sch Transport Sec-Gy,A32020,Home to School Transport,30021536,01/07/2022,202203,"2,163.60",121524,Grimsby Minibuses Ltd
Education and Inclusion,Revenue Budgets,Childrens Services,Pupil Support Safeguard/Wellbeing,A0245,Schools Services,A49105,Other Supplies & Services,30022187,04/07/2022,202203,"1,919.31",144120,Learning4life-Gy-Cic
Environment,Revenue Budgets,Environment,Garage & Fleet Strategy,A0665,Garage - Lab Holding,A30010,Vehicles Repairs,30016782,16/11/2021,202203,275.00,1001387,AUTOCRAFT EQUIPMENT LTD
Environment,Revenue Budgets,Environment,Garage & Fleet Strategy,A0665,Garage - Lab Holding,A30010,Vehicles Repairs,30019287,14/01/2022,202203,-895.48,100886,Fleet Factors Ltd
Environment,Revenue Budgets,Environment,Grounds & Bereavement Services,A0646,Grimsby Crematorium,A27505,Grounds Maintenance,30017896,09/03/2022,202203,804.70,1001107,Landscape Supply Company (Endura Group Ltd t/a)
Environment,Revenue Budgets,Environment,Grounds & Bereavement Services,A0646,Grimsby Crematorium,A40920,Purchase of Equipment,30015614,17/03/2022,202203,717.48,100549,F G Marshall Ltd
Environment,Revenue Budgets,Environment,Grounds & Bereavement Services,A0646,Grimsby Crematorium,A27505,Grounds Maintenance,30017807,24/03/2022,202203,"2,963.00",1001107,Landscape Supply Company (Endura Group Ltd t/a)
Environment,Revenue Budgets,Environment,Grounds & Bereavement Services,A0661,Grounds Maint And Parks,A56000,Other Establishments,10005679,30/03/2022,202203,-395.00,102305,Bsb Services
Environment,Revenue Budgets,Environment,Grounds & Bereavement Services,A0661,Grounds Maint And Parks,A56000,Other Establishments,30013258,30/03/2022,202203,395.00,102305,Bsb Services
Environment,Revenue Budgets,Environment,Grounds & Bereavement Services,A0646,Grimsby Crematorium,A56000,Other Establishments,30015752,31/03/2022,202203,"2,015.00",147281,Vivedia Ltd
Environment,Revenue Budgets,Environment,Garage & Fleet Strategy,A0665,Garage - Lab Holding,A45020,Telephones,30012892,01/04/2022,202203,"2,977.50",147152,Ctrack Uk Ltd
Environment,Capital Spend,Environment,Public Sector Decarbonisation,Y1849,Salix Europarc Innov Centre,C01009,"New Construction, conversion & renovation",30014037,01/04/2022,202203,"48,455.77",144341,Watt Energy Saver Ltd
Environment,Revenue Budgets,Environment,Grounds & Bereavement Services,A0646,Grimsby Crematorium,A40920,Purchase of Equipment,30020281,04/04/2022,202203,625.75,100621,The Columbaria Company
Environment,Revenue Budgets,Environment,Regulatory Services,A0664,Taxis,A40070,Stock Materials,30015782,08/04/2022,202203,518.02,101697,Vip System Ltd
Environment,Revenue Budgets,Environment,Regulatory Services,A0664,Taxis,A40070,Stock Materials,30015782,08/04/2022,202203,791.67,101697,Vip System Ltd
Environment,Revenue Budgets,Environment,Garage & Fleet Strategy,A0665,Garage - Lab Holding,A30010,Vehicles Repairs,30021627,13/04/2022,202203,313.21,101828,B A Bush & Son Ltd
Environment,Revenue Budgets,Environment,Garage & Fleet Strategy,A0665,Garage - Lab Holding,A30010,Vehicles Repairs,30021634,14/04/2022,202203,354.32,101828,B A Bush & Son Ltd
Environment,Revenue Budgets,Environment,Garage & Fleet Strategy,A0665,Garage - Lab Holding,A30010,Vehicles Repairs,30013915,21/04/2022,202203,-943.50,148165,At Auto
Environment,Revenue Budgets,Environment,Garage & Fleet Strategy,A0665,Garage - Lab Holding,A30010,Vehicles Repairs,30013915,21/04/2022,202203,500.00,148165,At Auto
Environment,Revenue Budgets,Environment,Garage & Fleet Strategy,A0665,Garage - Lab Holding,A30010,Vehicles Repairs,30013915,21/04/2022,202203,943.50,148165,At Auto
Environment,Revenue Budgets,Environment,Regulatory Services,A0653,Commercial Regulatory Team,A11005,Agency Supply Staff,30013873,22/04/2022,202203,454.45,143357,The Best Connection
Environment,Revenue Budgets,Environment,Grounds & Bereavement Services,A0646,Grimsby Crematorium,A40920,Purchase of Equipment,30021583,27/04/2022,202203,617.00,100621,The Columbaria Company
Environment,Revenue Budgets,Environment,Regulatory Services,A0653,Commercial Regulatory Team,A11005,Agency Supply Staff,30015944,29/04/2022,202203,335.25,143357,The Best Connection
Environment,Revenue Budgets,Environment,Grounds & Bereavement Services,A0661,Grounds Maint And Parks,A40920,Purchase of Equipment,30016461,29/04/2022,202203,297.98,104939,Trade Uk Account
Environment,Revenue Budgets,Environment,Grounds & Bereavement Services,A0661,Grounds Maint And Parks,A56000,Other Establishments,30013682,30/04/2022,202203,791.75,101116,Grimsby Operations Ltd
Environment,Capital Spend,Environment,Depot Rationalisation,Y1812,Depot Rationalisation,C01005,Purchase of Land & Buildings,30013695,30/04/2022,202203,427.50,1000372,GBM Demolition
Environment,Revenue Budgets,Environment,Grounds & Bereavement Services,A0661,Grounds Maint And Parks,A30010,Vehicles Repairs,30015751,30/04/2022,202203,397.57,1000180,Vale Engineering (York) Ltd
Environment,Revenue Budgets,Environment,Grounds & Bereavement Services,A0646,Grimsby Crematorium,A56000,Other Establishments,30015808,30/04/2022,202203,"1,143.00",147281,Vivedia Ltd
Environment,Revenue Budgets,Environment,Garage & Fleet Strategy,A0665,Garage - Lab Holding,A45020,Telephones,30015229,01/05/2022,202203,507.00,1000343,Ctrack Ltd
Environment,Revenue Budgets,Environment,Garage & Fleet Strategy,A0665,Garage - Lab Holding,A45020,Telephones,30015590,01/05/2022,202203,"1,302.75",1000343,Ctrack Ltd
Environment,Revenue Budgets,Environment,Garage & Fleet Strategy,A0665,Garage - Lab Holding,A30010,Vehicles Repairs,30013888,05/05/2022,202203,"-6,343.25",148165,At Auto
Environment,Revenue Budgets,Environment,Garage & Fleet Strategy,A0665,Garage - Lab Holding,A30010,Vehicles Repairs,30013888,05/05/2022,202203,500.00,148165,At Auto
Environment,Revenue Budgets,Environment,Garage & Fleet Strategy,A0665,Garage - Lab Holding,A30010,Vehicles Repairs,30013888,05/05/2022,202203,"6,343.25",148165,At Auto
Environment,Capital Spend,Environment,Enhancement Bereavement Serv,Y1761,Tearoom / Flower Shop,C01009,"New Construction, conversion & renovation",30011092,06/05/2022,202203,"114,326.47",144162,Topcon Building Ltd
Environment,Revenue Budgets,Environment,Regulatory Services,A0653,Commercial Regulatory Team,A11005,Agency Supply Staff,30015760,06/05/2022,202203,447.00,143357,The Best Connection
Environment,Revenue Budgets,Environment,Grounds & Bereavement Services,A0661,Grounds Maint And Parks,A57115,Payments to Private Contractors,30010028,13/05/2022,202203,"3,150.00",101597,Immingham Town Council
Environment,Revenue Budgets,Environment,Grounds & Bereavement Services,A0661,Grounds Maint And Parks,A57115,Payments to Private Contractors,30010028,13/05/2022,202203,"5,107.62",101597,Immingham Town Council
Environment,Revenue Budgets,Environment,Street Cleansing,A0673,Street Cleansing,A57115,Payments to Private Contractors,30010028,13/05/2022,202203,"5,138.84",101597,Immingham Town Council
Environment,Revenue Budgets,Environment,Regulatory Services,A0653,Commercial Regulatory Team,A11005,Agency Supply Staff,30015919,13/05/2022,202203,312.90,143357,The Best Connection
Environment,Revenue Budgets,Environment,Waste Services,A0683,Refuse - Domestic / Recycling,A11005,Agency Supply Staff,30011397,15/05/2022,202203,"1,082.57",144850,On Line People Ltd
Environment,Capital Spend,Environment,Scartho Cem Lodge/Waiting Rooms,Y1827,Scartho Cem Lodge/Waiting Rm,C01009,"New Construction, conversion & renovation",30016714,17/05/2022,202203,"3,000.00",133267,Equans Services Ltd
Environment,Capital Spend,Environment,Enhancement Bereavement Serv,Y1764,Extension To Clee Cemetary,C01009,"New Construction, conversion & renovation",10006151,18/05/2022,202203,"-16,679.28",140951,Southam Services (Lincs) Ltd
Environment,Capital Spend,Environment,Enhancement Bereavement Serv,Y1764,Extension To Clee Cemetary,C01009,"New Construction, conversion & renovation",30013402,18/05/2022,202203,"16,679.28",140951,Southam Services (Lincs) Ltd
Environment,Capital Spend,Environment,Enhancement Bereavement Serv,Y1764,Extension To Clee Cemetary,C01009,"New Construction, conversion & renovation",30014263,18/05/2022,202203,"16,679.28",140951,Southam Services (Lincs) Ltd
Environment,Revenue Budgets,Environment,Grounds & Bereavement Services,A0680,Foreshore,A20005,"Property Repairs, Maintenance & Alterations",30014294,19/05/2022,202203,373.50,100587,Rentokil Pest Control
Environment,Revenue Budgets,Environment,Regulatory Services,A0653,Commercial Regulatory Team,A11005,Agency Supply Staff,30013967,20/05/2022,202203,514.05,143357,The Best Connection
Environment,Capital Spend,Environment,Resort Management,Y1835,Resort Management,C01009,"New Construction, conversion & renovation",30016658,20/05/2022,202203,556.88,105081,Mobile Mini Uk Ltd
Environment,Revenue Budgets,Environment,Garage & Fleet Strategy,A0665,Garage - Lab Holding,A30010,Vehicles Repairs,30016688,20/05/2022,202203,"2,879.92",100886,Fleet Factors Ltd
Environment,Revenue Budgets,Environment,Garage & Fleet Strategy,A0665,Garage - Lab Holding,A42005,Clothing & Uniforms & Laundry,30015929,22/05/2022,202203,484.05,100810,Johnsons Apparelmaster
Environment,Revenue Budgets,Environment,Grounds & Bereavement Services,A0661,Grounds Maint And Parks,A56000,Other Establishments,10005678,23/05/2022,202203,"-2,200.00",1000702,Woodpecker Trees Limited
Environment,Revenue Budgets,Environment,Grounds & Bereavement Services,A0661,Grounds Maint And Parks,A56000,Other Establishments,30013275,23/05/2022,202203,"2,200.00",1000702,Woodpecker Trees Limited
Environment,Capital Spend,Environment,Enhancement Bereavement Serv,Y1761,Tearoom / Flower Shop,C01009,"New Construction, conversion & renovation",30016698,23/05/2022,202203,650.00,141310,Total Computer Networks Ltd
Environment,Revenue Budgets,Environment,Countryside Management,A0647,Parks & Open Spaces,A49105,Other Supplies & Services,30020029,23/05/2022,202203,"2,325.00",1000155,Kompan Ltd
Environment,Capital Spend,Environment,Play Areas,Y1852,Play Areas,C01009,"New Construction, conversion & renovation",30020032,23/05/2022,202203,"28,540.60",1000155,Kompan Ltd
Environment,Capital Spend,Environment,Peoples Park Refurbishment,Y1786,Playarea - Peoples Park,C01009,"New Construction, conversion & renovation",30020032,23/05/2022,202203,"30,000.00",1000155,Kompan Ltd
Environment,Revenue Budgets,Environment,Garage & Fleet Strategy,A0665,Garage - Lab Holding,A30010,Vehicles Repairs,30013567,25/05/2022,202203,250.95,101828,B A Bush & Son Ltd
Environment,Revenue Budgets,Environment,Garage & Fleet Strategy,A0665,Garage - Lab Holding,A30010,Vehicles Repairs,30013573,25/05/2022,202203,297.05,101828,B A Bush & Son Ltd
Environment,Revenue Budgets,Environment,Regulatory Services,A1574,Environmental Protection,A49105,Other Supplies & Services,30017667,25/05/2022,202203,400.00,143071,Fresh Pharma
Environment,Capital Spend,Environment,Public Sector Decarbonisation,Y1849,Salix Europarc Innov Centre,C01009,"New Construction, conversion & renovation",30019569,26/05/2022,202203,"23,709.85",144341,Watt Energy Saver Ltd
Environment,Revenue Budgets,Environment,Waste Services,A0683,Refuse - Domestic / Recycling,A11015,Other Agency Staff,30013478,27/05/2022,202203,250.56,143357,The Best Connection
Environment,Revenue Budgets,Environment,Garage & Fleet Strategy,A0665,Garage - Lab Holding,A30010,Vehicles Repairs,30013562,27/05/2022,202203,315.99,101828,B A Bush & Son Ltd
Environment,Revenue Budgets,Environment,Garage & Fleet Strategy,A0665,Garage - Lab Holding,A30010,Vehicles Repairs,30016758,27/05/2022,202203,726.60,100886,Fleet Factors Ltd
Environment,Revenue Budgets,Environment,Waste Services,A0683,Refuse - Domestic / Recycling,A20005,"Property Repairs, Maintenance & Alterations",30016674,28/05/2022,202203,717.60,100575,Sign Of The Times
Environment,Revenue Budgets,Environment,Waste Services,A0683,Refuse - Domestic / Recycling,A11005,Agency Supply Staff,30012865,29/05/2022,202203,"1,246.49",144850,On Line People Ltd
Environment,Revenue Budgets,Environment,Waste Services,A0683,Refuse - Domestic / Recycling,A56000,Other Establishments,30017082,30/05/2022,202203,479.40,101147,Systematic Print Management Ltd
Environment,Revenue Budgets,Environment,Waste Services,A0683,Refuse - Domestic / Recycling,A56000,Other Establishments,30017083,30/05/2022,202203,532.83,101147,Systematic Print Management Ltd
Environment,Revenue Budgets,Environment,Regulatory Services,A0653,Commercial Regulatory Team,A47010,Subscriptions (non staff),30012926,31/05/2022,202203,421.86,145373,Maritime Cargo Processing Plc
Environment,Revenue Budgets,Environment,Grounds & Bereavement Services,A0661,Grounds Maint And Parks,A56000,Other Establishments,30013680,31/05/2022,202203,633.40,101116,Grimsby Operations Ltd
Environment,Revenue Budgets,Environment,Regulatory Services,A1721,Environmental Enforcement,A56000,Other Establishments,30013931,31/05/2022,202203,"2,878.00",103270,Sangreat Kennels
Environment,Capital Spend,Environment,Depot Rationalisation,Y1812,Depot Rationalisation,C01005,Purchase of Land & Buildings,30014782,31/05/2022,202203,"1,137.00",149901,Cleveland Containers Ltd
Environment,Revenue Budgets,Environment,Grounds & Bereavement Services,A0661,Grounds Maint And Parks,A30017,Other Vehicle Costs,30014884,31/05/2022,202203,"1,505.75",108278,Allstar Business Solutions Ltd
Environment,Revenue Budgets,Environment,Garage & Fleet Strategy,A0665,Garage - Lab Holding,A30010,Vehicles Repairs,30014997,31/05/2022,202203,"3,743.60",145938,Gc Agricultural
Environment,Revenue Budgets,Environment,Waste Services,A0683,Refuse - Domestic / Recycling,A56000,Other Establishments,30016037,31/05/2022,202203,426.70,1000550,UK Container Maintenance Ltd
Environment,Revenue Budgets,Environment,Waste Services,A0683,Refuse - Domestic / Recycling,A56000,Other Establishments,30016037,31/05/2022,202203,818.60,1000550,UK Container Maintenance Ltd
Environment,Revenue Budgets,Environment,Garage & Fleet Strategy,A0665,Garage - Lab Holding,A30010,Vehicles Repairs,30016043,31/05/2022,202203,560.00,100604,Harris & Garrod Ltd
Environment,Capital Spend,Environment,Depot Rationalisation,Y1812,Depot Rationalisation,C01005,Purchase of Land & Buildings,30016576,31/05/2022,202203,341.99,1000372,GBM Demolition
Environment,Revenue Budgets,Environment,Grounds & Bereavement Services,A0661,Grounds Maint And Parks,A32005,Hire of Transport - Non Staff,30017094,31/05/2022,202203,"1,170.00",1000180,Vale Engineering (York) Ltd
Environment,Revenue Budgets,Environment,Waste Services,A0683,Refuse - Domestic / Recycling,A56000,Other Establishments,30017101,31/05/2022,202203,354.08,101147,Systematic Print Management Ltd
Environment,Capital Spend,Environment,Depot Rationalisation,Y1812,Depot Rationalisation,C01005,Purchase of Land & Buildings,30017247,31/05/2022,202203,"2,209.38",143214,4way Consulting Ltd
Environment,Revenue Budgets,Environment,Waste Disposal And Strategy,A0669,Waste Disposal / Recycling,A57115,Payments to Private Contractors,30017326,31/05/2022,202203,"669,919.08",101125,Newlincs Development Ltd
Environment,Revenue Budgets,Environment,Waste Disposal And Strategy,A0669,Waste Disposal / Recycling,A57116,Payments to Private Contractors - Landfill Tax,30017326,31/05/2022,202203,"18,663.02",101125,Newlincs Development Ltd
Environment,Revenue Budgets,Environment,Waste Disposal And Strategy,A0669,Waste Disposal / Recycling,A92035,Sales General,30017326,31/05/2022,202203,"-44,841.91",101125,Newlincs Development Ltd
Environment,Revenue Budgets,Environment,Waste Disposal And Strategy,A1765,Nlc Waste Disposal,A57115,Payments to Private Contractors,30017406,31/05/2022,202203,"81,342.80",101125,Newlincs Development Ltd
Environment,Revenue Budgets,Environment,Waste Disposal And Strategy,A1765,Nlc Waste Disposal,A57116,Payments to Private Contractors - Landfill Tax,30017406,31/05/2022,202203,"4,277.27",101125,Newlincs Development Ltd
Environment,Revenue Budgets,Environment,Street Cleansing,A0673,Street Cleansing,A56000,Other Establishments,30017638,31/05/2022,202203,"1,120.53",102009,Srcl Ltd
Environment,Revenue Budgets,Environment,Grounds & Bereavement Services,A0646,Grimsby Crematorium,A27015,Refuse Collection,30018707,31/05/2022,202203,274.89,101433,Ellgia Limited
Environment,Revenue Budgets,Environment,Regulatory Services,A0653,Commercial Regulatory Team,A11005,Agency Supply Staff,30012887,01/06/2022,202203,335.25,143357,The Best Connection
Environment,Revenue Budgets,Environment,Grounds & Bereavement Services,A0661,Grounds Maint And Parks,A40920,Purchase of Equipment,30014777,01/06/2022,202203,525.00,100752,F G Adamson & Son
Environment,Revenue Budgets,Environment,Garage & Fleet Strategy,A0665,Garage - Lab Holding,A30010,Vehicles Repairs,30014994,01/06/2022,202203,524.00,100886,Fleet Factors Ltd
Environment,Capital Spend,Environment,Enhancement Bereavement Serv,Y1761,Tearoom / Flower Shop,C01009,"New Construction, conversion & renovation",30015497,01/06/2022,202203,"78,064.09",144162,Topcon Building Ltd
Environment,Revenue Budgets,Environment,Waste Services,A0683,Refuse - Domestic / Recycling,A11005,Agency Supply Staff,30016528,05/06/2022,202203,850.34,144850,On Line People Ltd
Environment,Revenue Budgets,Environment,Grounds & Bereavement Services,A0661,Grounds Maint And Parks,A56000,Other Establishments,10006727,06/06/2022,202203,"-1,500.00",1000702,Woodpecker Trees Limited
Environment,Revenue Budgets,Environment,Grounds & Bereavement Services,A0661,Grounds Maint And Parks,A56000,Other Establishments,10006727,06/06/2022,202203,"-1,400.00",1000702,Woodpecker Trees Limited
Environment,Revenue Budgets,Environment,Grounds & Bereavement Services,A0661,Grounds Maint And Parks,A56000,Other Establishments,30013672,06/06/2022,202203,"1,400.00",1000702,Woodpecker Trees Limited
Environment,Revenue Budgets,Environment,Grounds & Bereavement Services,A0661,Grounds Maint And Parks,A56000,Other Establishments,30013672,06/06/2022,202203,"1,500.00",1000702,Woodpecker Trees Limited
Environment,Revenue Budgets,Environment,Regulatory Services,A0653,Commercial Regulatory Team,A49105,Other Supplies & Services,30014820,06/06/2022,202203,398.01,139602,Eurofins Water Hygiene Testing Uk Ltd
Environment,Revenue Budgets,Environment,Grounds & Bereavement Services,A0661,Grounds Maint And Parks,A56000,Other Establishments,30015137,06/06/2022,202203,"2,900.00",1000702,Woodpecker Trees Limited
Environment,Revenue Budgets,Environment,Energy Project,A1853,Smarter Energy Poject,A44065,Consultancy Services,30015222,06/06/2022,202203,"18,459.82",122549,E-Factor Group Ltd
Environment,Revenue Budgets,Environment,Grounds & Bereavement Services,A0646,Grimsby Crematorium,A40920,Purchase of Equipment,30014719,07/06/2022,202203,654.42,147941,Pws (Protective Wear Supplies) Ltd
Environment,Capital Spend,Environment,Enhancement Bereavement Serv,Y1761,Tearoom / Flower Shop,C01009,"New Construction, conversion & renovation",30014291,09/06/2022,202203,"4,945.00",123706,R W Stokes & Sons Ltd
Environment,Revenue Budgets,Environment,Regulatory Services,A0653,Commercial Regulatory Team,A11005,Agency Supply Staff,30018486,10/06/2022,202203,335.25,143357,The Best Connection
Environment,Revenue Budgets,Environment,Garage & Fleet Strategy,A0665,Garage - Lab Holding,A30010,Vehicles Repairs,30019275,10/06/2022,202203,"1,369.66",100886,Fleet Factors Ltd
Environment,Revenue Budgets,Environment,Garage & Fleet Strategy,A0665,Garage - Lab Holding,A30010,Vehicles Repairs,30019282,10/06/2022,202203,431.49,100886,Fleet Factors Ltd
Environment,Revenue Budgets,Environment,Garage & Fleet Strategy,A0665,Garage - Lab Holding,A30010,Vehicles Repairs,30019286,10/06/2022,202203,"6,616.81",100886,Fleet Factors Ltd
Environment,Revenue Budgets,Environment,Garage & Fleet Strategy,A0665,Garage - Lab Holding,A30010,Vehicles Repairs,30019291,10/06/2022,202203,"9,520.37",100886,Fleet Factors Ltd
Environment,Revenue Budgets,Environment,Waste Services,A0683,Refuse - Domestic / Recycling,A11005,Agency Supply Staff,30017897,12/06/2022,202203,"1,280.63",144850,On Line People Ltd
Environment,Revenue Budgets,Environment,Grounds & Bereavement Services,A0661,Grounds Maint And Parks,A40920,Purchase of Equipment,30015231,13/06/2022,202203,498.00,101138,Ellis Hardware Limited
Environment,Revenue Budgets,Environment,Grounds & Bereavement Services,A0661,Grounds Maint And Parks,A40920,Purchase of Equipment,30016396,13/06/2022,202203,"1,430.00",100595,Fleet Line Markers Limited
Environment,Revenue Budgets,Environment,Grounds & Bereavement Services,A0646,Grimsby Crematorium,A33005,Public Transport - Non Staff,30016469,13/06/2022,202203,759.60,100557,Ready Rent A Car
Environment,Revenue Budgets,Environment,Grounds & Bereavement Services,A0661,Grounds Maint And Parks,A45005,IT Hardware Purchase,30018393,13/06/2022,202203,"1,320.00",141310,Total Computer Networks Ltd
Environment,Revenue Budgets,Environment,Energy Project,A1853,Smarter Energy Poject,A44065,Consultancy Services,30015780,14/06/2022,202203,"10,182.45",149739,Grimsby Community Energy Ltd
Environment,Revenue Budgets,Environment,Garage & Fleet Strategy,A0665,Garage - Lab Holding,A30010,Vehicles Repairs,30016246,15/06/2022,202203,"1,073.13",100542,Larco Ltd
Environment,Revenue Budgets,Environment,Waste Services,A0683,Refuse - Domestic / Recycling,A42005,Clothing & Uniforms & Laundry,30016765,16/06/2022,202203,690.90,102378,Westbury Industrial Supplies Ltd
Environment,Revenue Budgets,Environment,Waste Services,A0683,Refuse - Domestic / Recycling,A42005,Clothing & Uniforms & Laundry,30016765,16/06/2022,202203,690.90,102378,Westbury Industrial Supplies Ltd
Environment,Revenue Budgets,Environment,Regulatory Services,A0653,Commercial Regulatory Team,A11005,Agency Supply Staff,30016659,17/06/2022,202203,454.45,143357,The Best Connection
Environment,Revenue Budgets,Environment,Garage & Fleet Strategy,A0665,Garage - Lab Holding,A30010,Vehicles Repairs,30017078,17/06/2022,202203,780.00,100886,Fleet Factors Ltd
Environment,Revenue Budgets,Environment,Garage & Fleet Strategy,A0665,Garage - Lab Holding,A30010,Vehicles Repairs,30017080,17/06/2022,202203,426.22,100886,Fleet Factors Ltd
Environment,Revenue Budgets,Environment,Garage & Fleet Strategy,A0665,Garage - Lab Holding,A30010,Vehicles Repairs,30017090,17/06/2022,202203,275.88,100886,Fleet Factors Ltd
Environment,Revenue Budgets,Environment,Garage & Fleet Strategy,A0665,Garage - Lab Holding,A30010,Vehicles Repairs,30017095,17/06/2022,202203,"2,290.40",100886,Fleet Factors Ltd
Environment,Revenue Budgets,Environment,Garage & Fleet Strategy,A0665,Garage - Lab Holding,A30010,Vehicles Repairs,30017102,17/06/2022,202203,"1,747.52",100886,Fleet Factors Ltd
Environment,Revenue Budgets,Environment,Grounds & Bereavement Services,A0646,Grimsby Crematorium,A40920,Purchase of Equipment,30017806,17/06/2022,202203,646.75,100621,The Columbaria Company
Environment,Revenue Budgets,Environment,Grounds & Bereavement Services,A0646,Grimsby Crematorium,A40920,Purchase of Equipment,30017824,17/06/2022,202203,620.50,100621,The Columbaria Company
Environment,Revenue Budgets,Environment,Waste Services,A0683,Refuse - Domestic / Recycling,A56000,Other Establishments,30018634,17/06/2022,202203,334.40,101147,Systematic Print Management Ltd
Environment,Revenue Budgets,Environment,Waste Services,A0683,Refuse - Domestic / Recycling,A56000,Other Establishments,30018642,17/06/2022,202203,424.00,101147,Systematic Print Management Ltd
Environment,Capital Spend,Environment,Resort Management,Y1835,Resort Management,C01009,"New Construction, conversion & renovation",30018771,17/06/2022,202203,556.88,105081,Mobile Mini Uk Ltd
Environment,Revenue Budgets,Environment,Grounds & Bereavement Services,A0646,Grimsby Crematorium,A21010,Gas,42105576,17/06/2022,202203,"2,716.35",103611,Total Energies Gas & Power Ltd
Environment,Revenue Budgets,Environment,Waste Services,A0683,Refuse - Domestic / Recycling,A11005,Agency Supply Staff,30020866,19/06/2022,202203,266.37,144850,On Line People Ltd
Environment,Revenue Budgets,Environment,Energy Project,A1853,Smarter Energy Poject,A44065,Consultancy Services,30017031,20/06/2022,202203,"28,800.00",122549,E-Factor Group Ltd
Environment,Revenue Budgets,Environment,Grounds & Bereavement Services,A0679,Resort,A42005,Clothing & Uniforms & Laundry,30018755,20/06/2022,202203,399.60,100575,Sign Of The Times
Environment,Revenue Budgets,Environment,Grounds & Bereavement Services,A0661,Grounds Maint And Parks,A42005,Clothing & Uniforms & Laundry,30018057,21/06/2022,202203,747.62,147941,Pws (Protective Wear Supplies) Ltd
Environment,Revenue Budgets,Environment,Regulatory Services,A0653,Commercial Regulatory Team,A22005,Building Rents,30022113,21/06/2022,202203,698.76,128437,Great Grimsby Seafood Village Ltd
Environment,Revenue Budgets,Environment,Grounds & Bereavement Services,A0646,Grimsby Crematorium,A40920,Purchase of Equipment,30019500,22/06/2022,202203,708.89,100549,F G Marshall Ltd
Environment,Revenue Budgets,Environment,Regulatory Services,A0653,Commercial Regulatory Team,A44968,Legal & Conveyancing Charges,30021685,22/06/2022,202203,500.00,113665,Bridge McFarland LLP
Environment,Revenue Budgets,Environment,Grounds & Bereavement Services,A0681,Boating Lake Area,A21005,Electricity,42134121,22/06/2022,202203,289.15,103611,Total Energies Gas & Power Ltd
Environment,Revenue Budgets,Environment,Grounds & Bereavement Services,A0679,Resort,A21005,Electricity,42134121,22/06/2022,202203,321.26,103611,Total Energies Gas & Power Ltd
Environment,Revenue Budgets,Environment,Grounds & Bereavement Services,A0681,Boating Lake Area,A21005,Electricity,42134121,22/06/2022,202203,505.44,103611,Total Energies Gas & Power Ltd
Environment,Revenue Budgets,Environment,Grounds & Bereavement Services,A0661,Grounds Maint And Parks,A21005,Electricity,42134121,22/06/2022,202203,842.50,103611,Total Energies Gas & Power Ltd
Environment,Revenue Budgets,Environment,Grounds & Bereavement Services,A0646,Grimsby Crematorium,A21005,Electricity,42134121,22/06/2022,202203,"1,590.00",103611,Total Energies Gas & Power Ltd
Environment,Revenue Budgets,Environment,Grounds & Bereavement Services,A0680,Foreshore,A24005,Water Services,42134456,23/06/2022,202203,306.50,103611,Total Energies Gas & Power Ltd
Environment,Revenue Budgets,Environment,Regulatory Services,A0653,Commercial Regulatory Team,A44968,Legal & Conveyancing Charges,30018893,28/06/2022,202203,388.00,1000279,HMRC
Environment,Revenue Budgets,Environment,Garage & Fleet Strategy,A0665,Garage - Lab Holding,A30010,Vehicles Repairs,30021629,28/06/2022,202203,688.40,100886,Fleet Factors Ltd
Environment,Revenue Budgets,Environment,Garage & Fleet Strategy,A0665,Garage - Lab Holding,A30010,Vehicles Repairs,30021642,28/06/2022,202203,"6,303.56",100886,Fleet Factors Ltd
Environment,Revenue Budgets,Environment,Garage & Fleet Strategy,A0665,Garage - Lab Holding,A30010,Vehicles Repairs,30021644,28/06/2022,202203,428.54,100886,Fleet Factors Ltd
Environment,Revenue Budgets,Environment,Garage & Fleet Strategy,A0665,Garage - Lab Holding,A30010,Vehicles Repairs,30021645,28/06/2022,202203,356.97,100886,Fleet Factors Ltd
Environment,Capital Spend,Environment,Regulatory Services Mgt System,Y1844,Regulatory Serv Mgt System,C01006,Purchase of Vehicles & Plant,30020893,30/06/2022,202203,"11,954.97",111799,Arcus Global Limited
Environment,Revenue Budgets,Environment,Garage & Fleet Strategy,A0665,Garage - Lab Holding,A30010,Vehicles Repairs,30021615,01/07/2022,202203,"1,263.70",100886,Fleet Factors Ltd
Environment,Revenue Budgets,Environment,Garage & Fleet Strategy,A0665,Garage - Lab Holding,A30010,Vehicles Repairs,30021639,01/07/2022,202203,"3,968.23",100886,Fleet Factors Ltd
Environment,Revenue Budgets,Environment,Grounds & Bereavement Services,A0679,Resort,A40920,Purchase of Equipment,30022117,01/07/2022,202203,803.20,1001275,Norfloat International Ltd
Environment,Revenue Budgets,Environment,Grounds & Bereavement Services,A0679,Resort,A40920,Purchase of Equipment,30022117,01/07/2022,202203,"1,606.40",1001275,Norfloat International Ltd
Environment,Revenue Budgets,Environment,Regulatory Services,A0653,Commercial Regulatory Team,A22005,Building Rents,30022118,01/07/2022,202203,"2,361.67",128437,Great Grimsby Seafood Village Ltd
Environment,Revenue Budgets,Environment,Regulatory Services,A1574,Environmental Protection,A49105,Other Supplies & Services,30021469,04/07/2022,202203,"1,350.00",1000829,Bureau Veritas UK Ltd
Environment,Capital Spend,Environment,Depot Rationalisation,Y1812,Depot Rationalisation,C01005,Purchase of Land & Buildings,30022142,05/07/2022,202203,"3,379.27",103407,Network Rail
"Housing, Highways and Transport",Capital Spend,Economy And Growth,Local Transport Plan Schemes,Y0038,Maintenance Of Structures,C01009,"New Construction, conversion & renovation",30014940,16/12/2021,202203,"14,135.00",140951,Southam Services (Lincs) Ltd
"Housing, Highways and Transport",Revenue Budgets,Economy And Growth,Home Options & Hous Rel Supp,A0955,Crisis Accomodation,A22020,Rental Property Service Charge,30019563,02/02/2022,202203,365.92,100894,North East Lincolnshire Council
"Housing, Highways and Transport",Capital Spend,Economy And Growth,Local Transport Plan Schemes,Y0002,Cycle Route,C01009,"New Construction, conversion & renovation",30016473,21/02/2022,202203,"4,100.00",133267,Equans Services Ltd
"Housing, Highways and Transport",Capital Spend,Economy And Growth,Hps-Disabled Fac. Grants,Y0436,Disab Facil Grant Mandatory,C01012,Payment of Grants/Advances,30013861,28/02/2022,202203,733.15,100632,E S Rudkin Ltd
"Housing, Highways and Transport",Capital Spend,Economy And Growth,St Nicholas Drive Flood Allev,Y1815,St Nicholas Drive Flood Allev,C01009,"New Construction, conversion & renovation",30013617,17/03/2022,202203,656.63,125951,EC Surfacing Ltd
"Housing, Highways and Transport",Capital Spend,Economy And Growth,Local Transport Plan Schemes,Y0389,Ltp Unclassified Roads,C01009,"New Construction, conversion & renovation",30014068,17/03/2022,202203,"33,039.22",125951,EC Surfacing Ltd
"Housing, Highways and Transport",Capital Spend,Economy And Growth,Local Transport Plan Schemes,Y0388,Ltp Non Principal Roads,C01009,"New Construction, conversion & renovation",30016957,21/03/2022,202203,"1,866.76",133267,Equans Services Ltd
"Housing, Highways and Transport",Capital Spend,Economy And Growth,Accelerated Cons Funding,Y1804,Acc Cons Funding Matthew Humb,C01009,"New Construction, conversion & renovation",30015324,23/03/2022,202203,"7,000.00",125923,Anglian Water Services Limited
"Housing, Highways and Transport",Capital Spend,Economy And Growth,Accelerated Cons Funding,Y1804,Acc Cons Funding Matthew Humb,C01009,"New Construction, conversion & renovation",30015327,23/03/2022,202203,"22,979.59",125923,Anglian Water Services Limited
"Housing, Highways and Transport",Revenue Budgets,Economy And Growth,Transport Policy,A1803,DfT Active Travel Fund,A44065,Consultancy Services,30014483,29/03/2022,202203,"4,850.00",133423,Sustrans Ltd
"Housing, Highways and Transport",Revenue Budgets,Economy And Growth,Transport Policy,A1803,DfT Active Travel Fund,A44065,Consultancy Services,30014484,29/03/2022,202203,"3,305.00",133423,Sustrans Ltd
"Housing, Highways and Transport",Capital Spend,Economy And Growth,Local Transport Plan Schemes,Y0263,Public Transport Schemes,C01005,Purchase of Land & Buildings,30015750,30/03/2022,202203,"13,775.00",129692,Swarco UK & Ireland Ltd
"Housing, Highways and Transport",Revenue Budgets,Economy And Growth,Home Options & Hous Rel Supp,A0955,Crisis Accomodation,A56000,Other Establishments,30010102,31/03/2022,202203,378.47,108375,Sse (Southern Electric)
"Housing, Highways and Transport",Revenue Budgets,Economy And Growth,Home Options & Hous Rel Supp,A0953,Home Options,A47005,"Grants, Contributions & Donations",30014949,31/03/2022,202203,"14,000.00",119878,We Are With You
"Housing, Highways and Transport",Revenue Budgets,Economy And Growth,Home Options & Hous Rel Supp,A0955,Crisis Accomodation,A22005,Building Rents,30021319,01/04/2022,202203,"4,700.64",Redacted Personal Information,Redacted Personal Information
"Housing, Highways and Transport",Revenue Budgets,Economy And Growth,Home Options & Hous Rel Supp,A0956,Bed & Breakfast,A22005,Building Rents,30016694,05/04/2022,202203,413.13,Redacted Personal Information,Redacted Personal Information
"Housing, Highways and Transport",Revenue Budgets,Economy And Growth,Home Options & Hous Rel Supp,A0956,Bed & Breakfast,A22005,Building Rents,30016694,05/04/2022,202203,769.24,Redacted Personal Information,Redacted Personal Information
"Housing, Highways and Transport",Capital Spend,Economy And Growth,Housing Assist Grants And Loan,Y0511,Housing Assistance,C01012,Payment of Grants/Advances,30013836,14/04/2022,202203,"5,550.00",103981,Vic Hansen Building & Joinery Ltd
"Housing, Highways and Transport",Revenue Budgets,Economy And Growth,Home Options & Hous Rel Supp,A0956,Bed & Breakfast,A22005,Building Rents,30016708,14/04/2022,202203,350.00,Redacted Personal Information,Redacted Personal Information
"Housing, Highways and Transport",Revenue Budgets,Economy And Growth,Home Options & Hous Rel Supp,A0956,Bed & Breakfast,A22005,Building Rents,30018477,14/04/2022,202203,538.48,Redacted Personal Information,Redacted Personal Information
"Housing, Highways and Transport",Revenue Budgets,Economy And Growth,Home Options & Hous Rel Supp,A0956,Bed & Breakfast,A22005,Building Rents,30018477,14/04/2022,202203,"1,251.27",Redacted Personal Information,Redacted Personal Information
"Housing, Highways and Transport",Revenue Budgets,Economy And Growth,Home Options & Hous Rel Supp,A0963,Home Choice Lincs,A45040,IT Software Purchase,30012811,21/04/2022,202203,"24,000.00",103029,Civica Uk Limited
"Housing, Highways and Transport",Capital Spend,Economy And Growth,Housing Assist Grants And Loan,Y0511,Housing Assistance,C01012,Payment of Grants/Advances,30015542,22/04/2022,202203,"1,058.74",133267,Equans Services Ltd
"Housing, Highways and Transport",Capital Spend,Economy And Growth,Hps-Disabled Fac. Grants,Y0436,Disab Facil Grant Mandatory,C01012,Payment of Grants/Advances,30015546,22/04/2022,202203,"8,078.45",133267,Equans Services Ltd
"Housing, Highways and Transport",Capital Spend,Economy And Growth,Hps-Disabled Fac. Grants,Y0436,Disab Facil Grant Mandatory,C01012,Payment of Grants/Advances,30019775,22/04/2022,202203,"4,812.50",133267,Equans Services Ltd
"Housing, Highways and Transport",Capital Spend,Economy And Growth,Hps-Disabled Fac. Grants,Y0436,Disab Facil Grant Mandatory,C01012,Payment of Grants/Advances,30019842,22/04/2022,202203,847.00,133267,Equans Services Ltd
"Housing, Highways and Transport",Capital Spend,Economy And Growth,Local Transport Plan Schemes,Y0187,Footway Maintenance,C01014,Other Capital Costs,30021243,22/04/2022,202203,"2,500.00",133267,Equans Services Ltd
"Housing, Highways and Transport",Revenue Budgets,Economy And Growth,Transport Policy,A1803,DfT Active Travel Fund,A47006,Contributions - Communities,30015363,25/04/2022,202203,"7,028.00",101779,Lock It Safe Ltd
"Housing, Highways and Transport",Capital Spend,Economy And Growth,Local Transport Plan Schemes,Y0018,Junction Imp,C01009,"New Construction, conversion & renovation",30016007,27/04/2022,202203,"77,224.12",125951,EC Surfacing Ltd
"Housing, Highways and Transport",Revenue Budgets,Economy And Growth,Transport Policy,A1803,DfT Active Travel Fund,A44942,Promotions and Events,30017024,27/04/2022,202203,"1,080.00",119476,Cycle Hub Lincs Cic
"Housing, Highways and Transport",Capital Spend,Economy And Growth,Local Transport Plan Schemes,Y0187,Footway Maintenance,C01009,"New Construction, conversion & renovation",30015537,28/04/2022,202203,"1,002.00",100841,J Mccann & Co Ltd
"Housing, Highways and Transport",Capital Spend,Economy And Growth,Hps-Disabled Fac. Grants,Y0436,Disab Facil Grant Mandatory,C01012,Payment of Grants/Advances,30014839,29/04/2022,202203,"9,171.73",120159,Able 4 Enterprise Ltd
"Housing, Highways and Transport",Capital Spend,Economy And Growth,Hps-Disabled Fac. Grants,Y0436,Disab Facil Grant Mandatory,C01012,Payment of Grants/Advances,30014946,29/04/2022,202203,"17,066.92",146603,Tspro Ltd
"Housing, Highways and Transport",Capital Spend,Economy And Growth,Hps-Disabled Fac. Grants,Y1855,DFG - Strategic Housing,C01012,Payment of Grants/Advances,30016717,01/05/2022,202203,"11,040.00",100908,North East Lincs Carelink
"Housing, Highways and Transport",Capital Spend,Economy And Growth,Hps-Disabled Fac. Grants,Y0436,Disab Facil Grant Mandatory,C01012,Payment of Grants/Advances,30022048,03/05/2022,202203,"2,417.00",101317,Dolphin Mobility East Midlands Ltd
"Housing, Highways and Transport",Capital Spend,Economy And Growth,Local Transport Plan Schemes,Y0072,Studies,C01009,"New Construction, conversion & renovation",30013629,06/05/2022,202203,"3,389.00",142378,Cgc Ecology Ltd
"Housing, Highways and Transport",Capital Spend,Economy And Growth,Hps-Disabled Fac. Grants,Y0436,Disab Facil Grant Mandatory,C01012,Payment of Grants/Advances,30021021,06/05/2022,202203,"11,850.00",101317,Dolphin Mobility East Midlands Ltd
"Housing, Highways and Transport",Capital Spend,Economy And Growth,Hps-Disabled Fac. Grants,Y0436,Disab Facil Grant Mandatory,C01012,Payment of Grants/Advances,30014730,09/05/2022,202203,"1,732.00",112666,Obam Lift Services Ltd
"Housing, Highways and Transport",Revenue Budgets,Economy And Growth,Transport Policy,A1803,DfT Active Travel Fund,A44942,Promotions and Events,30014744,09/05/2022,202203,"2,075.00",129985,Almega Promotional Gifts Ltd
"Housing, Highways and Transport",Revenue Budgets,Economy And Growth,Transport Policy,A1274,Transport,A57126,Concessionary Fares,30007391,10/05/2022,202203,"14,646.48",100980,Gy Clps & District Dial A Ride
"Housing, Highways and Transport",Capital Spend,Economy And Growth,Green Homes LAD Phase 2,Y1838,Green Homes LAD Phase 2,C01012,Payment of Grants/Advances,30008220,10/05/2022,202203,400.00,138575,Yes Energy Solutions
"Housing, Highways and Transport",Capital Spend,Economy And Growth,Housing Assist Grants And Loan,Y0512,Compulsary Purchase Order,C01012,Payment of Grants/Advances,30013170,10/05/2022,202203,"4,030.00",146757,East Marsh Construction Cic
"Housing, Highways and Transport",Revenue Budgets,Economy And Growth,Drainage & Coastal Defence,A1229,Land Drainage Works,A56000,Other Establishments,30013636,10/05/2022,202203,595.00,1001178,Intelligent Drainage Solutions Ltd
"Housing, Highways and Transport",Capital Spend,Economy And Growth,Local Transport Plan Schemes,Y0074,LTP Programme Management,C01011,External Professional Fees,30015684,10/05/2022,202203,"227,645.43",133267,Equans Services Ltd
"Housing, Highways and Transport",Capital Spend,Economy And Growth,Local Transport Plan Schemes,Y0389,Ltp Unclassified Roads,C01009,"New Construction, conversion & renovation",30017022,10/05/2022,202203,"14,320.00",128602,Oneway Tm Limited
"Housing, Highways and Transport",Capital Spend,Economy And Growth,Green Homes LAD Phase 2,Y1838,Green Homes LAD Phase 2,C01009,"New Construction, conversion & renovation",30017232,10/05/2022,202203,"48,400.00",133267,Equans Services Ltd
"Housing, Highways and Transport",Capital Spend,Economy And Growth,Green Homes LAD Phase 2,Y1838,Green Homes LAD Phase 2,C01009,"New Construction, conversion & renovation",30019148,10/05/2022,202203,"-48,400.00",133267,Equans Services Ltd
"Housing, Highways and Transport",Capital Spend,Economy And Growth,Green Homes LAD Phase 2,Y1838,Green Homes LAD Phase 2,C01009,"New Construction, conversion & renovation",30019149,10/05/2022,202203,"-48,400.00",133267,Equans Services Ltd
"Housing, Highways and Transport",Capital Spend,Economy And Growth,Local Transport Plan Schemes,Y0187,Footway Maintenance,C01009,"New Construction, conversion & renovation",30013213,11/05/2022,202203,"9,383.88",128602,Oneway Tm Limited
"Housing, Highways and Transport",Capital Spend,Economy And Growth,A18 Laceby To Ludborough,Y1689,A18 Laceby To Ludborugh,C01009,"New Construction, conversion & renovation",30013208,12/05/2022,202203,"1,360.00",128602,Oneway Tm Limited
"Housing, Highways and Transport",Capital Spend,Economy And Growth,Hps-Disabled Fac. Grants,Y0436,Disab Facil Grant Mandatory,C01012,Payment of Grants/Advances,30011333,17/05/2022,202203,"12,185.97",120159,Able 4 Enterprise Ltd
"Housing, Highways and Transport",Revenue Budgets,Economy And Growth,Home Options & Hous Rel Supp,A0955,Crisis Accomodation,A22020,Rental Property Service Charge,30012273,17/05/2022,202203,620.37,133267,Equans Services Ltd
"Housing, Highways and Transport",Revenue Budgets,Economy And Growth,Home Options & Hous Rel Supp,A0955,Crisis Accomodation,A22020,Rental Property Service Charge,30014293,17/05/2022,202203,398.53,133267,Equans Services Ltd
"Housing, Highways and Transport",Capital Spend,Economy And Growth,Hps-Disabled Fac. Grants,Y0436,Disab Facil Grant Mandatory,C01012,Payment of Grants/Advances,30016681,17/05/2022,202203,"3,752.04",133267,Equans Services Ltd
"Housing, Highways and Transport",Capital Spend,Economy And Growth,Hps-Disabled Fac. Grants,Y0436,Disab Facil Grant Mandatory,C01012,Payment of Grants/Advances,30016757,17/05/2022,202203,"1,700.00",133267,Equans Services Ltd
"Housing, Highways and Transport",Capital Spend,Economy And Growth,Housing Assist Grants And Loan,Y0511,Housing Assistance,C01012,Payment of Grants/Advances,30016833,17/05/2022,202203,455.49,133267,Equans Services Ltd
"Housing, Highways and Transport",Capital Spend,Economy And Growth,Hps-Disabled Fac. Grants,Y0436,Disab Facil Grant Mandatory,C01012,Payment of Grants/Advances,30016833,17/05/2022,202203,"6,951.06",133267,Equans Services Ltd
"Housing, Highways and Transport",Capital Spend,Economy And Growth,Corporation Rd Bridge Refurb,Y1803,Corporation Rd Bridge Refurb,C01009,"New Construction, conversion & renovation",30017243,17/05/2022,202203,"3,500.00",133267,Equans Services Ltd
"Housing, Highways and Transport",Capital Spend,Economy And Growth,Local Transport Plan Schemes,Y0022,Local Road Safety Improvements,C01010,Internal Professional Fees,30017245,17/05/2022,202203,"4,435.65",133267,Equans Services Ltd
"Housing, Highways and Transport",Capital Spend,Economy And Growth,Hps-Disabled Fac. Grants,Y0436,Disab Facil Grant Mandatory,C01012,Payment of Grants/Advances,30022449,18/05/2022,202203,"8,322.82",146603,Tspro Ltd
"Housing, Highways and Transport",Revenue Budgets,Economy And Growth,Home Options & Hous Rel Supp,A0955,Crisis Accomodation,A22005,Building Rents,30021322,19/05/2022,202203,"4,281.12",Redacted Personal Information,Redacted Personal Information
"Housing, Highways and Transport",Capital Spend,Economy And Growth,Local Transport Plan Schemes,Y0403,Public Trans Infrastru Improve,C01005,Purchase of Land & Buildings,30013206,22/05/2022,202203,"7,184.32",1001063,Bus Shelters Ltd
"Housing, Highways and Transport",Capital Spend,Economy And Growth,Local Transport Plan Schemes,Y0403,Public Trans Infrastru Improve,C01005,Purchase of Land & Buildings,30013210,22/05/2022,202203,"6,531.81",1001063,Bus Shelters Ltd
"Housing, Highways and Transport",Revenue Budgets,Economy And Growth,Home Options & Hous Rel Supp,A0955,Crisis Accomodation,A22005,Building Rents,30021234,23/05/2022,202203,"4,469.28",Redacted Personal Information,Redacted Personal Information
"Housing, Highways and Transport",Capital Spend,Economy And Growth,Local Transport Plan Schemes,Y1650,Pothole Action,C01009,"New Construction, conversion & renovation",10006147,24/05/2022,202203,"-4,701.70",100841,J Mccann & Co Ltd
"Housing, Highways and Transport",Revenue Budgets,Economy And Growth,Traffic Management,A1266,Traffic Management Works,A40095,Equipment Maintenance and Repair,10006148,24/05/2022,202203,"-1,395.36",100841,J Mccann & Co Ltd
"Housing, Highways and Transport",Capital Spend,Economy And Growth,Hps-Disabled Fac. Grants,Y0436,Disab Facil Grant Mandatory,C01012,Payment of Grants/Advances,30009956,24/05/2022,202203,"2,243.20",145694,Askerton Homes Ltd
"Housing, Highways and Transport",Revenue Budgets,Economy And Growth,Supporting People,A0762,Housing Related Support,A47005,"Grants, Contributions & Donations",30012891,24/05/2022,202203,"4,527.00",121549,Nhs North East Lincolnshire Ccg
"Housing, Highways and Transport",Capital Spend,Economy And Growth,Local Transport Plan Schemes,Y1650,Pothole Action,C01009,"New Construction, conversion & renovation",30013425,24/05/2022,202203,"4,701.70",100841,J Mccann & Co Ltd
"Housing, Highways and Transport",Revenue Budgets,Economy And Growth,Traffic Management,A1266,Traffic Management Works,A40095,Equipment Maintenance and Repair,30013576,24/05/2022,202203,"1,395.36",100841,J Mccann & Co Ltd
"Housing, Highways and Transport",Revenue Budgets,Economy And Growth,Home Options & Hous Rel Supp,A0956,Bed & Breakfast,A22005,Building Rents,30013638,24/05/2022,202203,333.33,Redacted Personal Information,Redacted Personal Information
"Housing, Highways and Transport",Capital Spend,Economy And Growth,Hps-Disabled Fac. Grants,Y0436,Disab Facil Grant Mandatory,C01012,Payment of Grants/Advances,30013840,24/05/2022,202203,"12,861.00",120159,Able 4 Enterprise Ltd
"Housing, Highways and Transport",Revenue Budgets,Economy And Growth,Traffic Management,A1266,Traffic Management Works,A40095,Equipment Maintenance and Repair,30014253,24/05/2022,202203,"1,395.36",100841,J Mccann & Co Ltd
"Housing, Highways and Transport",Capital Spend,Economy And Growth,Local Transport Plan Schemes,Y1650,Pothole Action,C01009,"New Construction, conversion & renovation",30014262,24/05/2022,202203,"4,701.70",100841,J Mccann & Co Ltd
"Housing, Highways and Transport",Revenue Budgets,Economy And Growth,Home Options & Hous Rel Supp,A0955,Crisis Accomodation,A22020,Rental Property Service Charge,30012872,26/05/2022,202203,287.25,Redacted Personal Information,Redacted Personal Information
"Housing, Highways and Transport",Capital Spend,Economy And Growth,Local Transport Plan Schemes,Y0187,Footway Maintenance,C01009,"New Construction, conversion & renovation",30011605,27/05/2022,202203,"7,070.00",100579,Specialist Surfacing Limited
"Housing, Highways and Transport",Revenue Budgets,Economy And Growth,Home Options & Hous Rel Supp,A0956,Bed & Breakfast,A22005,Building Rents,30015616,27/05/2022,202203,"1,120.00",Redacted Personal Information,Redacted Personal Information
"Housing, Highways and Transport",Revenue Budgets,Economy And Growth,Transport Policy,A1274,Transport,A57125,Bus Services,30012091,28/05/2022,202203,"12,945.37",101404,Stagecoach Services
"Housing, Highways and Transport",Revenue Budgets,Economy And Growth,Transport Policy,A1274,Transport,A57125,Bus Services,30014712,28/05/2022,202203,"12,898.63",101404,Stagecoach Services
"Housing, Highways and Transport",Revenue Budgets,Economy And Growth,Traffic Management,A1266,Traffic Management Works,A44005,Publicity Materials,30012418,29/05/2022,202203,314.25,141974,Reach Publishing Services Limited
"Housing, Highways and Transport",Revenue Budgets,Economy And Growth,Traffic Management,A1266,Traffic Management Works,A44005,Publicity Materials,30012427,29/05/2022,202203,452.52,141974,Reach Publishing Services Limited
"Housing, Highways and Transport",Capital Spend,Economy And Growth,Green Homes LAD Phase 2,Y1838,Green Homes LAD Phase 2,C01012,Payment of Grants/Advances,30011796,30/05/2022,202203,360.00,138575,Yes Energy Solutions
"Housing, Highways and Transport",Capital Spend,Economy And Growth,Green Homes LAD Phase 2,Y1838,Green Homes LAD Phase 2,C01012,Payment of Grants/Advances,30011796,30/05/2022,202203,"2,565.34",138575,Yes Energy Solutions
"Housing, Highways and Transport",Capital Spend,Economy And Growth,Green Homes LAD Phase 2,Y1838,Green Homes LAD Phase 2,C01012,Payment of Grants/Advances,30011798,30/05/2022,202203,360.00,138575,Yes Energy Solutions
"Housing, Highways and Transport",Capital Spend,Economy And Growth,Green Homes LAD Phase 2,Y1838,Green Homes LAD Phase 2,C01012,Payment of Grants/Advances,30011798,30/05/2022,202203,"10,111.32",138575,Yes Energy Solutions
"Housing, Highways and Transport",Capital Spend,Economy And Growth,Green Homes LAD Phase 2,Y1838,Green Homes LAD Phase 2,C01012,Payment of Grants/Advances,30011811,30/05/2022,202203,360.00,138575,Yes Energy Solutions
"Housing, Highways and Transport",Capital Spend,Economy And Growth,Green Homes LAD Phase 2,Y1838,Green Homes LAD Phase 2,C01012,Payment of Grants/Advances,30011811,30/05/2022,202203,"6,588.00",138575,Yes Energy Solutions
"Housing, Highways and Transport",Revenue Budgets,Economy And Growth,Home Options & Hous Rel Supp,A0956,Bed & Breakfast,A22005,Building Rents,30014816,30/05/2022,202203,595.00,Redacted Personal Information,Redacted Personal Information
"Housing, Highways and Transport",Revenue Budgets,Economy And Growth,Home Options & Hous Rel Supp,A0956,Bed & Breakfast,A22005,Building Rents,30014821,30/05/2022,202203,630.00,Redacted Personal Information,Redacted Personal Information
"Housing, Highways and Transport",Revenue Budgets,Economy And Growth,Home Options & Hous Rel Supp,A0956,Bed & Breakfast,A22005,Building Rents,30014829,30/05/2022,202203,420.00,Redacted Personal Information,Redacted Personal Information
"Housing, Highways and Transport",Revenue Budgets,Economy And Growth,Home Options & Hous Rel Supp,A0956,Bed & Breakfast,A22005,Building Rents,30014830,30/05/2022,202203,350.00,Redacted Personal Information,Redacted Personal Information
"Housing, Highways and Transport",Revenue Budgets,Economy And Growth,Home Options & Hous Rel Supp,A0956,Bed & Breakfast,A22005,Building Rents,30014834,30/05/2022,202203,420.00,Redacted Personal Information,Redacted Personal Information
"Housing, Highways and Transport",Revenue Budgets,Economy And Growth,Home Options & Hous Rel Supp,A0956,Bed & Breakfast,A22005,Building Rents,30014838,30/05/2022,202203,255.00,Redacted Personal Information,Redacted Personal Information
"Housing, Highways and Transport",Revenue Budgets,Economy And Growth,Home Options & Hous Rel Supp,A0956,Bed & Breakfast,A22005,Building Rents,30014842,30/05/2022,202203,560.00,Redacted Personal Information,Redacted Personal Information
"Housing, Highways and Transport",Revenue Budgets,Economy And Growth,Home Options & Hous Rel Supp,A0956,Bed & Breakfast,A22005,Building Rents,30014849,30/05/2022,202203,560.00,Redacted Personal Information,Redacted Personal Information
"Housing, Highways and Transport",Revenue Budgets,Economy And Growth,Home Options & Hous Rel Supp,A0956,Bed & Breakfast,A22005,Building Rents,30014855,30/05/2022,202203,630.00,Redacted Personal Information,Redacted Personal Information
"Housing, Highways and Transport",Capital Spend,Economy And Growth,Local Transport Plan Schemes,Y0046,Lighting Columns Def,C01009,"New Construction, conversion & renovation",10005677,31/05/2022,202203,"-4,793.91",100841,J Mccann & Co Ltd
"Housing, Highways and Transport",Revenue Budgets,Economy And Growth,Transport Policy,A1803,DfT Active Travel Fund,A44942,Promotions and Events,30013060,31/05/2022,202203,675.00,141974,Reach Publishing Services Limited
"Housing, Highways and Transport",Capital Spend,Economy And Growth,Local Transport Plan Schemes,Y0046,Lighting Columns Def,C01009,"New Construction, conversion & renovation",30013276,31/05/2022,202203,"4,793.91",100841,J Mccann & Co Ltd
"Housing, Highways and Transport",Revenue Budgets,Economy And Growth,Street Lighting,A0678,Illuminations,A20005,"Property Repairs, Maintenance & Alterations",30013396,31/05/2022,202203,"1,563.65",100841,J Mccann & Co Ltd
"Housing, Highways and Transport",Revenue Budgets,Economy And Growth,Street Lighting,A1262,Street Lighting Non-Principal,A40035,PAT Testing,30013396,31/05/2022,202203,"7,542.87",100841,J Mccann & Co Ltd
"Housing, Highways and Transport",Revenue Budgets,Economy And Growth,Street Lighting,A1260,Amenity Lighting Works,A44130,Street Lighting,30013396,31/05/2022,202203,"1,382.75",100841,J Mccann & Co Ltd
"Housing, Highways and Transport",Revenue Budgets,Economy And Growth,Street Lighting,A1262,Street Lighting Non-Principal,A44130,Street Lighting,30013396,31/05/2022,202203,"7,990.44",100841,J Mccann & Co Ltd
"Housing, Highways and Transport",Revenue Budgets,Economy And Growth,Street Lighting,A1261,Street Lighting Principal,A44131,Traffic Maintenance,30013396,31/05/2022,202203,"1,332.95",100841,J Mccann & Co Ltd
"Housing, Highways and Transport",Revenue Budgets,Economy And Growth,Street Lighting,A1262,Street Lighting Non-Principal,A44131,Traffic Maintenance,30013396,31/05/2022,202203,"2,521.36",100841,J Mccann & Co Ltd
"Housing, Highways and Transport",Revenue Budgets,Economy And Growth,Street Lighting,A1259,Eng Cons-Street Lighting,A56000,Other Establishments,30013396,31/05/2022,202203,"4,854.99",100841,J Mccann & Co Ltd
"Housing, Highways and Transport",Capital Spend,Economy And Growth,Local Transport Plan Schemes,Y0072,Studies,C01009,"New Construction, conversion & renovation",30014731,31/05/2022,202203,900.00,122455,Delta-Simons Environmental Consultants Ltd
"Housing, Highways and Transport",Revenue Budgets,Economy And Growth,Home Options & Hous Rel Supp,A0953,Home Options,A56000,Other Establishments,30014818,31/05/2022,202203,526.50,100546,Links Taxis
"Housing, Highways and Transport",Revenue Budgets,Economy And Growth,Home Options & Hous Rel Supp,A0956,Bed & Breakfast,A22005,Building Rents,30016560,31/05/2022,202203,"1,036.23",Redacted Personal Information,Redacted Personal Information
"Housing, Highways and Transport",Revenue Budgets,Economy And Growth,Home Options & Hous Rel Supp,A0956,Bed & Breakfast,A22005,Building Rents,30016561,31/05/2022,202203,"2,311.59",Redacted Personal Information,Redacted Personal Information
"Housing, Highways and Transport",Revenue Budgets,Economy And Growth,Home Options & Hous Rel Supp,A0956,Bed & Breakfast,A22005,Building Rents,30016568,31/05/2022,202203,"1,195.65",Redacted Personal Information,Redacted Personal Information
"Housing, Highways and Transport",Revenue Budgets,Economy And Growth,Home Options & Hous Rel Supp,A0956,Bed & Breakfast,A22005,Building Rents,30016580,31/05/2022,202203,557.97,Redacted Personal Information,Redacted Personal Information
"Housing, Highways and Transport",Revenue Budgets,Economy And Growth,Home Options & Hous Rel Supp,A0956,Bed & Breakfast,A22005,Building Rents,30016599,31/05/2022,202203,876.81,Redacted Personal Information,Redacted Personal Information
"Housing, Highways and Transport",Capital Spend,Economy And Growth,Hps-Disabled Fac. Grants,Y0436,Disab Facil Grant Mandatory,C01012,Payment of Grants/Advances,30019584,31/05/2022,202203,"8,259.92",146557,R G Carter Lincoln Ltd
"Housing, Highways and Transport",Revenue Budgets,Economy And Growth,Home Options & Hous Rel Supp,A0955,Crisis Accomodation,A22020,Rental Property Service Charge,30012867,01/06/2022,202203,598.77,Redacted Personal Information,Redacted Personal Information
"Housing, Highways and Transport",Revenue Budgets,Economy And Growth,Home Options & Hous Rel Supp,A0956,Bed & Breakfast,A22005,Building Rents,30013585,01/06/2022,202203,"1,560.00",Redacted Personal Information,Redacted Personal Information
"Housing, Highways and Transport",Revenue Budgets,Economy And Growth,Home Options & Hous Rel Supp,A0956,Bed & Breakfast,A22005,Building Rents,30013586,01/06/2022,202203,"1,560.00",Redacted Personal Information,Redacted Personal Information
"Housing, Highways and Transport",Revenue Budgets,Economy And Growth,Home Options & Hous Rel Supp,A0956,Bed & Breakfast,A22005,Building Rents,30013591,01/06/2022,202203,"1,500.00",Redacted Personal Information,Redacted Personal Information
"Housing, Highways and Transport",Revenue Budgets,Economy And Growth,Home Options & Hous Rel Supp,A0956,Bed & Breakfast,A22005,Building Rents,30013595,01/06/2022,202203,"1,300.00",Redacted Personal Information,Redacted Personal Information
"Housing, Highways and Transport",Revenue Budgets,Economy And Growth,Transport Policy,A1274,Transport,A57126,Concessionary Fares,30013847,01/06/2022,202203,850.00,1000583,ITSO LTD
"Housing, Highways and Transport",Revenue Budgets,Economy And Growth,Home Options & Hous Rel Supp,A0955,Crisis Accomodation,A22020,Rental Property Service Charge,30014851,01/06/2022,202203,-270.53,Redacted Personal Information,Redacted Personal Information
"Housing, Highways and Transport",Revenue Budgets,Economy And Growth,Drainage & Coastal Defence,A1229,Land Drainage Works,A57115,Payments to Private Contractors,10006149,06/06/2022,202203,"-1,565.14",104444,Civil Engineering Specialist
"Housing, Highways and Transport",Revenue Budgets,Economy And Growth,Home Options & Hous Rel Supp,A0953,Home Options,A56000,Other Establishments,30013418,06/06/2022,202203,325.00,Redacted Personal Information,Redacted Personal Information
"Housing, Highways and Transport",Revenue Budgets,Economy And Growth,Transport Policy,A1274,Transport,A57126,Concessionary Fares,30013663,06/06/2022,202203,"4,681.40",100980,Gy Clps & District Dial A Ride
"Housing, Highways and Transport",Revenue Budgets,Economy And Growth,Drainage & Coastal Defence,A1229,Land Drainage Works,A57115,Payments to Private Contractors,30013875,06/06/2022,202203,"1,565.14",104444,Civil Engineering Specialist
"Housing, Highways and Transport",Revenue Budgets,Economy And Growth,Drainage & Coastal Defence,A1229,Land Drainage Works,A57115,Payments to Private Contractors,30014255,06/06/2022,202203,"1,565.14",104444,Civil Engineering Specialist
"Housing, Highways and Transport",Revenue Budgets,Economy And Growth,Home Options & Hous Rel Supp,A0956,Bed & Breakfast,A22005,Building Rents,30015718,06/06/2022,202203,420.00,Redacted Personal Information,Redacted Personal Information
"Housing, Highways and Transport",Revenue Budgets,Economy And Growth,Home Options & Hous Rel Supp,A0956,Bed & Breakfast,A22005,Building Rents,30015719,06/06/2022,202203,630.00,Redacted Personal Information,Redacted Personal Information
"Housing, Highways and Transport",Revenue Budgets,Economy And Growth,Home Options & Hous Rel Supp,A0956,Bed & Breakfast,A22005,Building Rents,30015729,06/06/2022,202203,630.00,Redacted Personal Information,Redacted Personal Information
"Housing, Highways and Transport",Revenue Budgets,Economy And Growth,Home Options & Hous Rel Supp,A0956,Bed & Breakfast,A22005,Building Rents,30015731,06/06/2022,202203,420.00,Redacted Personal Information,Redacted Personal Information
"Housing, Highways and Transport",Revenue Budgets,Economy And Growth,Home Options & Hous Rel Supp,A0956,Bed & Breakfast,A22005,Building Rents,30015740,06/06/2022,202203,595.00,Redacted Personal Information,Redacted Personal Information
"Housing, Highways and Transport",Revenue Budgets,Economy And Growth,Home Options & Hous Rel Supp,A0956,Bed & Breakfast,A22005,Building Rents,30015765,06/06/2022,202203,595.00,Redacted Personal Information,Redacted Personal Information
"Housing, Highways and Transport",Revenue Budgets,Economy And Growth,Home Options & Hous Rel Supp,A0956,Bed & Breakfast,A22005,Building Rents,30015771,06/06/2022,202203,350.00,Redacted Personal Information,Redacted Personal Information
"Housing, Highways and Transport",Revenue Budgets,Economy And Growth,Home Options & Hous Rel Supp,A0956,Bed & Breakfast,A22005,Building Rents,30015778,06/06/2022,202203,560.00,Redacted Personal Information,Redacted Personal Information
"Housing, Highways and Transport",Revenue Budgets,Economy And Growth,Home Options & Hous Rel Supp,A0956,Bed & Breakfast,A22005,Building Rents,30015784,06/06/2022,202203,560.00,Redacted Personal Information,Redacted Personal Information
"Housing, Highways and Transport",Capital Spend,Economy And Growth,Housing Assist Grants And Loan,Y0511,Housing Assistance,C01012,Payment of Grants/Advances,30018715,06/06/2022,202203,"7,823.30",103981,Vic Hansen Building & Joinery Ltd
"Housing, Highways and Transport",Revenue Budgets,Economy And Growth,Transport Policy,A1274,Transport,A57126,Concessionary Fares,30014708,07/06/2022,202203,547.50,101786,Grayscroft Bus Services Limited
"Housing, Highways and Transport",Revenue Budgets,Economy And Growth,Home Options & Hous Rel Supp,A0953,Home Options,A56000,Other Establishments,30015027,09/06/2022,202203,886.66,Redacted Personal Information,Redacted Personal Information
"Housing, Highways and Transport",Revenue Budgets,Economy And Growth,Home Options & Hous Rel Supp,A0953,Home Options,A56000,Other Establishments,30015582,09/06/2022,202203,400.00,Redacted Personal Information,Redacted Personal Information
"Housing, Highways and Transport",Revenue Budgets,Economy And Growth,Home Options & Hous Rel Supp,A0953,Home Options,A56000,Other Establishments,30015587,09/06/2022,202203,400.00,Redacted Personal Information,Redacted Personal Information
"Housing, Highways and Transport",Revenue Budgets,Economy And Growth,Supporting People,A1663,Syrian Refugees Resettlement,A56000,Other Establishments,30016467,09/06/2022,202203,260.00,122711,He Words
"Housing, Highways and Transport",Revenue Budgets,Economy And Growth,In Scope Contract,A0985,Contract Fee Building Control,A57115,Payments to Private Contractors,30016178,10/06/2022,202203,"15,911.00",133267,Equans Services Ltd
"Housing, Highways and Transport",Revenue Budgets,Economy And Growth,In Scope Contract,A0976,Contract Fee Renaissance,A57115,Payments to Private Contractors,30016178,10/06/2022,202203,"58,239.00",133267,Equans Services Ltd
"Housing, Highways and Transport",Revenue Budgets,Economy And Growth,In Scope Contract,A1527,Cont Fee Building Surveyors,A57115,Payments to Private Contractors,30016178,10/06/2022,202203,"106,571.00",133267,Equans Services Ltd
"Housing, Highways and Transport",Revenue Budgets,Economy And Growth,In Scope Contract,A1435,Contract Fee Strategic Housing,A57115,Payments to Private Contractors,30016178,10/06/2022,202203,"210,140.00",133267,Equans Services Ltd
"Housing, Highways and Transport",Revenue Budgets,Economy And Growth,In Scope Contract,A0643,Contract Fee Development Cont,A57115,Payments to Private Contractors,30016178,10/06/2022,202203,"259,673.00",133267,Equans Services Ltd
"Housing, Highways and Transport",Revenue Budgets,Economy And Growth,In Scope Contract,A0975,Contract Fee Asset Management,A57115,Payments to Private Contractors,30016178,10/06/2022,202203,"943,230.00",133267,Equans Services Ltd
"Housing, Highways and Transport",Revenue Budgets,Economy And Growth,In Scope Contract,A0977,Contract Fee Hways/Trans/Plan,A57115,Payments to Private Contractors,30016178,10/06/2022,202203,"1,395,800.07",133267,Equans Services Ltd
"Housing, Highways and Transport",Revenue Budgets,Economy And Growth,Home Options & Hous Rel Supp,A0955,Crisis Accomodation,A22020,Rental Property Service Charge,30018467,10/06/2022,202203,"13,138.66",133267,Equans Services Ltd
"Housing, Highways and Transport",Capital Spend,Economy And Growth,Hps-Disabled Fac. Grants,Y0436,Disab Facil Grant Mandatory,C01012,Payment of Grants/Advances,30019734,11/06/2022,202203,"9,932.76",145694,Askerton Homes Ltd
"Housing, Highways and Transport",Revenue Budgets,Economy And Growth,Traffic Management,A1266,Traffic Management Works,A44005,Publicity Materials,30015145,12/06/2022,202203,427.38,141974,Reach Publishing Services Limited
"Housing, Highways and Transport",Revenue Budgets,Economy And Growth,Car Parks,A1219,Car Parks Works,A93161,Season Tickets,10006268,13/06/2022,202203,"7,500.00",122036,Focus Independent Social Work
"Housing, Highways and Transport",Capital Spend,Economy And Growth,A18 Laceby To Ludborough,Y1689,A18 Laceby To Ludborugh,C01011,External Professional Fees,30014714,13/06/2022,202203,588.00,121248,Local Transport Projects Ltd
"Housing, Highways and Transport",Revenue Budgets,Economy And Growth,Home Options & Hous Rel Supp,A0956,Bed & Breakfast,A22005,Building Rents,30016558,13/06/2022,202203,420.00,Redacted Personal Information,Redacted Personal Information
"Housing, Highways and Transport",Revenue Budgets,Economy And Growth,Home Options & Hous Rel Supp,A0956,Bed & Breakfast,A22005,Building Rents,30016566,13/06/2022,202203,595.00,Redacted Personal Information,Redacted Personal Information
"Housing, Highways and Transport",Revenue Budgets,Economy And Growth,Home Options & Hous Rel Supp,A0956,Bed & Breakfast,A22005,Building Rents,30016572,13/06/2022,202203,350.00,Redacted Personal Information,Redacted Personal Information
"Housing, Highways and Transport",Revenue Budgets,Economy And Growth,Home Options & Hous Rel Supp,A0956,Bed & Breakfast,A22005,Building Rents,30016579,13/06/2022,202203,595.00,Redacted Personal Information,Redacted Personal Information
"Housing, Highways and Transport",Revenue Budgets,Economy And Growth,Home Options & Hous Rel Supp,A0956,Bed & Breakfast,A22005,Building Rents,30016584,13/06/2022,202203,560.00,Redacted Personal Information,Redacted Personal Information
"Housing, Highways and Transport",Revenue Budgets,Economy And Growth,Home Options & Hous Rel Supp,A0956,Bed & Breakfast,A22005,Building Rents,30016591,13/06/2022,202203,420.00,Redacted Personal Information,Redacted Personal Information
"Housing, Highways and Transport",Revenue Budgets,Economy And Growth,Home Options & Hous Rel Supp,A0956,Bed & Breakfast,A22005,Building Rents,30016592,13/06/2022,202203,630.00,Redacted Personal Information,Redacted Personal Information
"Housing, Highways and Transport",Revenue Budgets,Economy And Growth,Home Options & Hous Rel Supp,A0956,Bed & Breakfast,A22005,Building Rents,30016594,13/06/2022,202203,560.00,Redacted Personal Information,Redacted Personal Information
"Housing, Highways and Transport",Capital Spend,Economy And Growth,Hps-Disabled Fac. Grants,Y0436,Disab Facil Grant Mandatory,C01012,Payment of Grants/Advances,30014943,14/06/2022,202203,"9,935.98",145694,Askerton Homes Ltd
"Housing, Highways and Transport",Capital Spend,Economy And Growth,Local Transport Plan Schemes,Y0388,Ltp Non Principal Roads,C01009,"New Construction, conversion & renovation",30015866,14/06/2022,202203,"2,368.41",100579,Specialist Surfacing Limited
"Housing, Highways and Transport",Revenue Budgets,Economy And Growth,Home Options & Hous Rel Supp,A0956,Bed & Breakfast,A22005,Building Rents,30016533,14/06/2022,202203,780.00,Redacted Personal Information,Redacted Personal Information
"Housing, Highways and Transport",Revenue Budgets,Economy And Growth,Home Options & Hous Rel Supp,A0956,Bed & Breakfast,A22005,Building Rents,30016535,14/06/2022,202203,780.00,Redacted Personal Information,Redacted Personal Information
"Housing, Highways and Transport",Revenue Budgets,Economy And Growth,Home Options & Hous Rel Supp,A0956,Bed & Breakfast,A22005,Building Rents,30016538,14/06/2022,202203,780.00,Redacted Personal Information,Redacted Personal Information
"Housing, Highways and Transport",Capital Spend,Economy And Growth,Local Transport Plan Schemes,Y0022,Local Road Safety Improvements,C01009,"New Construction, conversion & renovation",30018368,14/06/2022,202203,"1,250.00",121248,Local Transport Projects Ltd
"Housing, Highways and Transport",Capital Spend,Economy And Growth,Local Transport Plan Schemes,Y0002,Cycle Route,C01009,"New Construction, conversion & renovation",30018389,14/06/2022,202203,"1,300.00",121248,Local Transport Projects Ltd
"Housing, Highways and Transport",Revenue Budgets,Economy And Growth,Home Options & Hous Rel Supp,A0953,Home Options,A56000,Other Establishments,30019059,14/06/2022,202203,783.34,Redacted Personal Information,Redacted Personal Information
"Housing, Highways and Transport",Revenue Budgets,Economy And Growth,Supporting People,A1663,Syrian Refugees Resettlement,A56000,Other Establishments,30015878,15/06/2022,202203,"2,000.00",123788,1st Call Properties
"Housing, Highways and Transport",Revenue Budgets,Economy And Growth,Home Options & Hous Rel Supp,A0953,Home Options,A56000,Other Establishments,30015917,15/06/2022,202203,320.00,Redacted Personal Information,Redacted Personal Information
"Housing, Highways and Transport",Revenue Budgets,Economy And Growth,Car Parks,A1219,Car Parks Works,A49105,Other Supplies & Services,30016586,15/06/2022,202203,"2,782.08",134124,Flowbird Smart City Uk Limited
"Housing, Highways and Transport",Revenue Budgets,Economy And Growth,Home Options & Hous Rel Supp,A0953,Home Options,A56000,Other Establishments,30018099,15/06/2022,202203,400.00,Redacted Personal Information,Redacted Personal Information
"Housing, Highways and Transport",Revenue Budgets,Economy And Growth,Highways Dso,A1231,Highways Dso,A30015,Vehicle Fuel,30018622,15/06/2022,202203,"28,097.49",138198,Your Nrg
"Housing, Highways and Transport",Revenue Budgets,Economy And Growth,Home Options & Hous Rel Supp,A0956,Bed & Breakfast,A22005,Building Rents,30016522,16/06/2022,202203,650.00,Redacted Personal Information,Redacted Personal Information
"Housing, Highways and Transport",Capital Spend,Economy And Growth,Hps-Disabled Fac. Grants,Y0436,Disab Facil Grant Mandatory,C01007,Purchase of Furniture & Equipment,30019155,17/06/2022,202203,"1,848.27",143385,Safespaces (Cornholme) Ltd
"Housing, Highways and Transport",Revenue Budgets,Economy And Growth,Traffic Management,A1266,Traffic Management Works,A44005,Publicity Materials,30017145,19/06/2022,202203,326.82,141974,Reach Publishing Services Limited
"Housing, Highways and Transport",Revenue Budgets,Economy And Growth,Home Options & Hous Rel Supp,A0953,Home Options,A56000,Other Establishments,30016831,20/06/2022,202203,"1,000.00",Redacted Personal Information,Redacted Personal Information
"Housing, Highways and Transport",Revenue Budgets,Economy And Growth,Home Options & Hous Rel Supp,A0953,Home Options,A56000,Other Establishments,30017171,20/06/2022,202203,433.00,Redacted Personal Information,Redacted Personal Information
"Housing, Highways and Transport",Capital Spend,Economy And Growth,Hps-Disabled Fac. Grants,Y0436,Disab Facil Grant Mandatory,C01012,Payment of Grants/Advances,30017817,20/06/2022,202203,"7,060.00",112666,Obam Lift Services Ltd
"Housing, Highways and Transport",Revenue Budgets,Economy And Growth,Home Options & Hous Rel Supp,A0956,Bed & Breakfast,A22005,Building Rents,30019189,20/06/2022,202203,350.00,Redacted Personal Information,Redacted Personal Information
"Housing, Highways and Transport",Revenue Budgets,Economy And Growth,Home Options & Hous Rel Supp,A0956,Bed & Breakfast,A22005,Building Rents,30019191,20/06/2022,202203,400.00,Redacted Personal Information,Redacted Personal Information
"Housing, Highways and Transport",Revenue Budgets,Economy And Growth,Home Options & Hous Rel Supp,A0956,Bed & Breakfast,A22005,Building Rents,30019196,20/06/2022,202203,630.00,Redacted Personal Information,Redacted Personal Information
"Housing, Highways and Transport",Revenue Budgets,Economy And Growth,Home Options & Hous Rel Supp,A0956,Bed & Breakfast,A22005,Building Rents,30019201,20/06/2022,202203,595.00,Redacted Personal Information,Redacted Personal Information
"Housing, Highways and Transport",Revenue Budgets,Economy And Growth,Home Options & Hous Rel Supp,A0956,Bed & Breakfast,A22005,Building Rents,30019203,20/06/2022,202203,420.00,Redacted Personal Information,Redacted Personal Information
"Housing, Highways and Transport",Revenue Budgets,Economy And Growth,Home Options & Hous Rel Supp,A0956,Bed & Breakfast,A22005,Building Rents,30019205,20/06/2022,202203,420.00,Redacted Personal Information,Redacted Personal Information
"Housing, Highways and Transport",Revenue Budgets,Economy And Growth,Home Options & Hous Rel Supp,A0956,Bed & Breakfast,A22005,Building Rents,30019207,20/06/2022,202203,560.00,Redacted Personal Information,Redacted Personal Information
"Housing, Highways and Transport",Revenue Budgets,Economy And Growth,Home Options & Hous Rel Supp,A0956,Bed & Breakfast,A22005,Building Rents,30019208,20/06/2022,202203,595.00,Redacted Personal Information,Redacted Personal Information
"Housing, Highways and Transport",Revenue Budgets,Economy And Growth,Home Options & Hous Rel Supp,A0956,Bed & Breakfast,A22005,Building Rents,30019210,20/06/2022,202203,300.00,Redacted Personal Information,Redacted Personal Information
"Housing, Highways and Transport",Revenue Budgets,Economy And Growth,Home Options & Hous Rel Supp,A0956,Bed & Breakfast,A22005,Building Rents,30019213,20/06/2022,202203,320.00,Redacted Personal Information,Redacted Personal Information
"Housing, Highways and Transport",Revenue Budgets,Economy And Growth,Home Options & Hous Rel Supp,A0953,Home Options,A56000,Other Establishments,30017303,21/06/2022,202203,"3,660.36",Redacted Personal Information,Redacted Personal Information
"Housing, Highways and Transport",Revenue Budgets,Economy And Growth,Home Options & Hous Rel Supp,A0953,Home Options,A56000,Other Establishments,30017305,21/06/2022,202203,"5,058.90",Redacted Personal Information,Redacted Personal Information
"Housing, Highways and Transport",Revenue Budgets,Economy And Growth,Home Options & Hous Rel Supp,A0953,Home Options,A56000,Other Establishments,30017634,21/06/2022,202203,"1,290.00",Redacted Personal Information,Redacted Personal Information
"Housing, Highways and Transport",Revenue Budgets,Economy And Growth,Highways Dso,A1231,Highways Dso,A21005,Electricity,42134121,22/06/2022,202203,261.26,103611,Total Energies Gas & Power Ltd
"Housing, Highways and Transport",Revenue Budgets,Economy And Growth,Car Parks,A1219,Car Parks Works,A21005,Electricity,42134121,22/06/2022,202203,"1,581.07",103611,Total Energies Gas & Power Ltd
"Housing, Highways and Transport",Revenue Budgets,Economy And Growth,Street Lighting,A1262,Street Lighting Non-Principal,A21025,Street Lighting - Energy Costs,42134333,22/06/2022,202203,"38,461.79",103611,Total Energies Gas & Power Ltd
"Housing, Highways and Transport",Revenue Budgets,Economy And Growth,Home Options & Hous Rel Supp,A0953,Home Options,A56000,Other Establishments,30018388,23/06/2022,202203,634.61,Redacted Personal Information,Redacted Personal Information
"Housing, Highways and Transport",Revenue Budgets,Economy And Growth,Highways Dso,A1231,Highways Dso,A30015,Vehicle Fuel,30021429,24/06/2022,202203,"28,701.43",138198,Your Nrg
"Housing, Highways and Transport",Capital Spend,Economy And Growth,Hps-Disabled Fac. Grants,Y0436,Disab Facil Grant Mandatory,C01012,Payment of Grants/Advances,30021519,24/06/2022,202203,"6,483.25",103981,Vic Hansen Building & Joinery Ltd
"Housing, Highways and Transport",Revenue Budgets,Economy And Growth,Supporting People,A1663,Syrian Refugees Resettlement,A56000,Other Establishments,30019100,25/06/2022,202203,"2,026.00",144120,Learning4life-Gy-Cic
"Housing, Highways and Transport",Capital Spend,Economy And Growth,Housing Assist Grants And Loan,Y0511,Housing Assistance,C01012,Payment of Grants/Advances,30021167,25/06/2022,202203,"8,060.00",142857,P & P Plumbing & Heating Services (Uk) Ltd
"Housing, Highways and Transport",Capital Spend,Economy And Growth,Green Homes LAD Phase 2,Y1838,Green Homes LAD Phase 2,C01012,Payment of Grants/Advances,30019193,27/06/2022,202203,360.00,138575,Yes Energy Solutions
"Housing, Highways and Transport",Capital Spend,Economy And Growth,Green Homes LAD Phase 2,Y1838,Green Homes LAD Phase 2,C01012,Payment of Grants/Advances,30019193,27/06/2022,202203,"2,383.52",138575,Yes Energy Solutions
"Housing, Highways and Transport",Capital Spend,Economy And Growth,Green Homes LAD Phase 2,Y1838,Green Homes LAD Phase 2,C01012,Payment of Grants/Advances,30019393,27/06/2022,202203,360.00,138575,Yes Energy Solutions
"Housing, Highways and Transport",Capital Spend,Economy And Growth,Green Homes LAD Phase 2,Y1838,Green Homes LAD Phase 2,C01012,Payment of Grants/Advances,30019393,27/06/2022,202203,"12,500.00",138575,Yes Energy Solutions
"Housing, Highways and Transport",Revenue Budgets,Economy And Growth,Home Options & Hous Rel Supp,A0955,Crisis Accomodation,A22005,Building Rents,30021318,27/06/2022,202203,"4,700.64",Redacted Personal Information,Redacted Personal Information
"Housing, Highways and Transport",Revenue Budgets,Economy And Growth,Supporting People,A1663,Syrian Refugees Resettlement,A56000,Other Establishments,30019675,28/06/2022,202203,280.00,1001565,Coast2Coast Transport Ltd
"Housing, Highways and Transport",Revenue Budgets,Economy And Growth,Home Options & Hous Rel Supp,A0953,Home Options,A56000,Other Establishments,30019689,28/06/2022,202203,307.16,Redacted Personal Information,Redacted Personal Information
"Housing, Highways and Transport",Revenue Budgets,Economy And Growth,Home Options & Hous Rel Supp,A0953,Home Options,A56000,Other Establishments,30020362,29/06/2022,202203,400.00,Redacted Personal Information,Redacted Personal Information
"Housing, Highways and Transport",Revenue Budgets,Economy And Growth,Transport Policy,A1274,Transport,A57126,Concessionary Fares,30020389,29/06/2022,202203,540.97,101786,Grayscroft Bus Services Limited
"Housing, Highways and Transport",Capital Spend,Economy And Growth,Local Transport Plan Schemes,Y0187,Footway Maintenance,C01009,"New Construction, conversion & renovation",30020418,30/06/2022,202203,"6,522.17",128602,Oneway Tm Limited
"Housing, Highways and Transport",Capital Spend,Economy And Growth,Local Transport Plan Schemes,Y0018,Junction Imp,C01009,"New Construction, conversion & renovation",30021580,30/06/2022,202203,320.00,128602,Oneway Tm Limited
"Housing, Highways and Transport",Revenue Budgets,Economy And Growth,Transport Policy,A1274,Transport,A57126,Concessionary Fares,30022109,01/07/2022,202203,"4,008.30",100980,Gy Clps & District Dial A Ride
"Housing, Highways and Transport",Capital Spend,Economy And Growth,Local Transport Plan Schemes,Y0002,Cycle Route,C01014,Other Capital Costs,30021467,03/07/2022,202203,"3,570.00",127290,Nationwide Data Collection
"Housing, Highways and Transport",Revenue Budgets,Economy And Growth,Supporting People,A1663,Syrian Refugees Resettlement,A56000,Other Establishments,30021513,04/07/2022,202203,"2,026.00",144120,Learning4life-Gy-Cic
"Housing, Highways and Transport",Capital Spend,Economy And Growth,Hps-Disabled Fac. Grants,Y0436,Disab Facil Grant Mandatory,C01012,Payment of Grants/Advances,30021807,04/07/2022,202203,"10,900.00",100699,Xma Limited
"Housing, Highways and Transport",Capital Spend,Economy And Growth,Local Transport Plan Schemes,Y0046,Lighting Columns Def,C01009,"New Construction, conversion & renovation",30022343,06/07/2022,202203,"19,143.13",100841,J Mccann & Co Ltd
"Housing, Highways and Transport",Revenue Budgets,Economy And Growth,Private Sector Housing,A1218,Private Sector Housing,A45040,IT Software Purchase,30022403,06/07/2022,202203,"3,500.00",139611,Pentagull Limited
"Law, Governance and Assets",Revenue Budgets,Resources,Facilities Management,A1770,Redacted,A21005,Electricity,30017411,18/01/2021,202203,584.69,1001285,Bulb Energy
"Law, Governance and Assets",Revenue Budgets,Resources,Facilities Management,A1770,Redacted,A21010,Gas,30017411,18/01/2021,202203,988.63,1001285,Bulb Energy
"Law, Governance and Assets",Revenue Budgets,Resources,Legal Services,A0473,Ccare Legal,A44968,Legal & Conveyancing Charges,30018761,27/09/2021,202203,700.00,1001509,33 Bedford Row
"Law, Governance and Assets",Revenue Budgets,Resources,Facilities Management,A1770,Redacted,A21005,Electricity,30017418,16/02/2022,202203,435.57,1001285,Bulb Energy
"Law, Governance and Assets",Revenue Budgets,Resources,Facilities Management,A1770,Redacted,A21005,Electricity,30017763,16/02/2022,202203,400.55,1001285,Bulb Energy
"Law, Governance and Assets",Revenue Budgets,Resources,Facilities Management,A1770,Redacted,A21010,Gas,30017763,16/02/2022,202203,392.67,1001285,Bulb Energy
"Law, Governance and Assets",Capital Spend,Resources,Business Centre Improvements,Y1831,Business Centre Improvements,C01009,"New Construction, conversion & renovation",30015533,24/02/2022,202203,"16,353.36",102044,Lincs Electrical Services Ltd
"Law, Governance and Assets",Capital Spend,Resources,Backlog Maintenance,Y1445,Gilbey Rd Depot Backlog Maint,C01009,"New Construction, conversion & renovation",30016089,07/03/2022,202203,879.08,105081,Mobile Mini Uk Ltd
"Law, Governance and Assets",Revenue Budgets,Resources,Facilities Management,A1130,Redacted,A23005,Rates,30019666,07/03/2022,202203,"1,604.98",100894,North East Lincolnshire Council
"Law, Governance and Assets",Revenue Budgets,Resources,Legal Services,A0473,Ccare Legal,A49105,Other Supplies & Services,30015941,08/03/2022,202203,"1,501.80",149336,Payeme
"Law, Governance and Assets",Capital Spend,Resources,Cartergate Office Development,Y1610,Cartergate Office Development,C01009,"New Construction, conversion & renovation",30011093,23/03/2022,202203,"32,197.17",127459,Pbs Construction (North East) Ltd
"Law, Governance and Assets",Capital Spend,Resources,Backlog Maintenance,Y1415,Planned Property Repair - Hsi,C01009,"New Construction, conversion & renovation",30016959,24/03/2022,202203,329.50,133267,Equans Services Ltd
"Law, Governance and Assets",Capital Spend,Resources,Backlog Maintenance,Y1577,Innovation Centre,C01009,"New Construction, conversion & renovation",30011143,25/03/2022,202203,"28,631.44",100632,E S Rudkin Ltd
"Law, Governance and Assets",Revenue Budgets,Resources,Legal Services,A0473,Ccare Legal,A44968,Legal & Conveyancing Charges,30015759,29/03/2022,202203,"2,000.00",147197,Crown Chambers
"Law, Governance and Assets",Revenue Budgets,Resources,Legal Services,A0473,Ccare Legal,A44968,Legal & Conveyancing Charges,30019216,29/03/2022,202203,"1,480.00",143988,Miss Gemma Carr
"Law, Governance and Assets",Revenue Budgets,Resources,Commercial Estate,A1180,Wilton Road Ent Centre,A27015,Refuse Collection,30014290,31/03/2022,202203,446.36,101433,Ellgia Limited
"Law, Governance and Assets",Revenue Budgets,Resources,Legal Services,A0473,Ccare Legal,A49105,Other Supplies & Services,30015933,31/03/2022,202203,405.00,143651,Mewa Llp
"Law, Governance and Assets",Revenue Budgets,Resources,Legal Services,A0225,Legal Consultancy,A47010,Subscriptions (non staff),30018716,01/04/2022,202203,555.00,1001508,Lawyers in Local Government
"Law, Governance and Assets",Capital Spend,Resources,Backlog Maintenance,Y1445,Gilbey Rd Depot Backlog Maint,C01009,"New Construction, conversion & renovation",30019681,04/04/2022,202203,879.08,105081,Mobile Mini Uk Ltd
"Law, Governance and Assets",Revenue Budgets,Resources,Legal Services,A0473,Ccare Legal,A44968,Legal & Conveyancing Charges,30002731,05/04/2022,202203,"1,122.67",1000146,Aaqib Javed
"Law, Governance and Assets",Revenue Budgets,Resources,Legal Services,A0473,Ccare Legal,A49105,Other Supplies & Services,30018758,06/04/2022,202203,"3,080.00",125634,Lextox Drug & Alcohol Testing
"Law, Governance and Assets",Revenue Budgets,Resources,Legal Services,A0473,Ccare Legal,A49105,Other Supplies & Services,30018769,06/04/2022,202203,"3,080.00",125634,Lextox Drug & Alcohol Testing
"Law, Governance and Assets",Revenue Budgets,Resources,Legal Services,A0473,Ccare Legal,A49105,Other Supplies & Services,30018768,07/04/2022,202203,"2,528.00",125634,Lextox Drug & Alcohol Testing
"Law, Governance and Assets",Revenue Budgets,Resources,Legal Services,A0473,Ccare Legal,A44968,Legal & Conveyancing Charges,30008931,12/04/2022,202203,540.00,147197,Crown Chambers
"Law, Governance and Assets",Capital Spend,Resources,Cartergate Office Development,Y1610,Cartergate Office Development,C01009,"New Construction, conversion & renovation",30011101,12/04/2022,202203,"22,650.77",127459,Pbs Construction (North East) Ltd
"Law, Governance and Assets",Revenue Budgets,Resources,Legal Services,A0473,Ccare Legal,A49105,Other Supplies & Services,30015916,12/04/2022,202203,585.00,106320,Carter Brown The Expert Service
"Law, Governance and Assets",Revenue Budgets,Resources,Facilities Management,A0469,Void Property Costs,A21005,Electricity,30020317,12/04/2022,202203,429.50,102096,Siemens Plc
"Law, Governance and Assets",Revenue Budgets,Resources,Audit Shared Service,A0177,Audit Shared Service,A57115,Payments to Private Contractors,30020821,19/04/2022,202203,"8,914.80",147004,Tiaa Ltd
"Law, Governance and Assets",Revenue Budgets,Resources,Legal Services,A0473,Ccare Legal,A44968,Legal & Conveyancing Charges,30018760,20/04/2022,202203,264.15,100389,Lincolnshire County Council
"Law, Governance and Assets",Revenue Budgets,Resources,Facilities Management,A0320,Immingham Cc Premises,A21005,Electricity,30015139,22/04/2022,202203,536.42,121907,Eastfield Primary Academy
"Law, Governance and Assets",Capital Spend,Resources,Poplar Rd Business Unit Expansion,Y1828,Business Unit,C01011,External Professional Fees,30019398,22/04/2022,202203,"2,000.00",133267,Equans Services Ltd
"Law, Governance and Assets",Revenue Budgets,Resources,Legal Services,A0225,Legal Consultancy,A47010,Subscriptions (non staff),30018751,25/04/2022,202203,"12,759.04",101186,North Lincolnshire Council
"Law, Governance and Assets",Revenue Budgets,Resources,Legal Services,A0473,Ccare Legal,A47010,Subscriptions (non staff),30018751,25/04/2022,202203,"14,353.24",101186,North Lincolnshire Council
"Law, Governance and Assets",Revenue Budgets,Resources,Facilities Management,A1579,Old Clee Youth Centre,A21010,Gas,30016025,26/04/2022,202203,349.24,119822,Old Clee Primary Academy
"Law, Governance and Assets",Revenue Budgets,Resources,Legal Services,A0473,Ccare Legal,A44968,Legal & Conveyancing Charges,30011398,28/04/2022,202203,"12,000.00",1000141,Park Place
"Law, Governance and Assets",Capital Spend,Resources,Cartergate Office Development,Y1610,Cartergate Office Development,C01009,"New Construction, conversion & renovation",30015535,28/04/2022,202203,"6,686.95",100841,J Mccann & Co Ltd
"Law, Governance and Assets",Capital Spend,Resources,Property Rationalisation Prog,Y1548,Various - Prop Rationalisation,C01011,External Professional Fees,30014912,29/04/2022,202203,"4,970.00",1001216,Hollis Global Limited
"Law, Governance and Assets",Revenue Budgets,Resources,Legal Services,A0473,Ccare Legal,A49105,Other Supplies & Services,30022055,30/04/2022,202203,819.00,146960,Pthey Limited
"Law, Governance and Assets",Capital Spend,Resources,Backlog Maintenance,Y1667,Clee Lc Backlog Maintenance,C01009,"New Construction, conversion & renovation",30011820,02/05/2022,202203,"9,120.00",100786,Kes Building Maintenance Limited
"Law, Governance and Assets",Capital Spend,Resources,Backlog Maintenance,Y1445,Gilbey Rd Depot Backlog Maint,C01009,"New Construction, conversion & renovation",30012852,02/05/2022,202203,879.08,105081,Mobile Mini Uk Ltd
"Law, Governance and Assets",Revenue Budgets,Resources,Coroners,A0229,Coroners Court,A61176,Post Mortems,30015536,04/05/2022,202203,"3,741.90",101012,Dr W M Peters
"Law, Governance and Assets",Revenue Budgets,Resources,Legal Services,A0473,Ccare Legal,A44968,Legal & Conveyancing Charges,30021070,04/05/2022,202203,610.00,1001767,Reagan Persaud
"Law, Governance and Assets",Revenue Budgets,Resources,Legal Services,A0473,Ccare Legal,A44968,Legal & Conveyancing Charges,30021481,04/05/2022,202203,525.00,1001800,Miss Andrea Ferguson
"Law, Governance and Assets",Revenue Budgets,Resources,Legal Services,A0473,Ccare Legal,A44968,Legal & Conveyancing Charges,30018717,05/05/2022,202203,525.00,1001509,33 Bedford Row
"Law, Governance and Assets",Revenue Budgets,Resources,Legal Services,A0473,Ccare Legal,A49105,Other Supplies & Services,30015694,06/05/2022,202203,753.00,125634,Lextox Drug & Alcohol Testing
"Law, Governance and Assets",Capital Spend,Resources,Backlog Maintenance,Y1287,Backlog Gy Business Centre,C01011,External Professional Fees,30015602,10/05/2022,202203,580.00,133267,Equans Services Ltd
"Law, Governance and Assets",Capital Spend,Resources,Backlog Maintenance,Y1434,Civic Off Backlog Maint,C01011,External Professional Fees,30015689,10/05/2022,202203,"1,275.00",133267,Equans Services Ltd
"Law, Governance and Assets",Capital Spend,Resources,Backlog Maintenance,Y1453,Health & Safe Emergency Work,C01009,"New Construction, conversion & renovation",30015692,10/05/2022,202203,"17,700.00",133267,Equans Services Ltd
"Law, Governance and Assets",Capital Spend,Resources,Backlog Maintenance,Y1453,Health & Safe Emergency Work,C01009,"New Construction, conversion & renovation",30016040,10/05/2022,202203,"37,493.00",133267,Equans Services Ltd
"Law, Governance and Assets",Revenue Budgets,Resources,Facilities Management,A1579,Old Clee Youth Centre,A21005,Electricity,30016383,10/05/2022,202203,601.30,119822,Old Clee Primary Academy
"Law, Governance and Assets",Revenue Budgets,Resources,Legal Services,A0473,Ccare Legal,A49105,Other Supplies & Services,30018759,10/05/2022,202203,570.00,106512,Aztec Translations
"Law, Governance and Assets",Capital Spend,Resources,Cartergate Office Development,Y1610,Cartergate Office Development,C01009,"New Construction, conversion & renovation",30019628,10/05/2022,202203,"10,347.50",1001458,Grec Systems LTD
"Law, Governance and Assets",Revenue Budgets,Resources,Legal Services,A0473,Ccare Legal,A49105,Other Supplies & Services,30016394,11/05/2022,202203,257.33,146277,Psychology Experts Ltd
"Law, Governance and Assets",Revenue Budgets,Resources,Commercial Estate,A1206,South Quay Food Units,A24005,Water Services,30013978,12/05/2022,202203,"3,972.39",100834,Associated British Ports
"Law, Governance and Assets",Revenue Budgets,Resources,Legal Services,A0473,Ccare Legal,A49105,Other Supplies & Services,30021039,13/05/2022,202203,474.00,125634,Lextox Drug & Alcohol Testing
"Law, Governance and Assets",Revenue Budgets,Resources,Legal Services,A0473,Ccare Legal,A49105,Other Supplies & Services,30014065,14/05/2022,202203,957.60,136501,Reflective Minds Ltd
"Law, Governance and Assets",Revenue Budgets,Resources,Facilities Management,A0986,Energy Mngt Project Group,A45045,IT Software Maintenance,30013980,15/05/2022,202203,"8,697.19",105082,Team (Eaa Ltd)
"Law, Governance and Assets",Capital Spend,Resources,Gy Lc Fire Segregation Works,Y1791,Gy Lc Fire Segregation Works,C01009,"New Construction, conversion & renovation",30017234,17/05/2022,202203,"2,770.00",133267,Equans Services Ltd
"Law, Governance and Assets",Capital Spend,Resources,Backlog Maintenance,Y1576,3a Townhall Sq (Former Registr,C01009,"New Construction, conversion & renovation",30017700,17/05/2022,202203,"7,659.52",133267,Equans Services Ltd
"Law, Governance and Assets",Capital Spend,Resources,Backlog Maintenance,Y1668,King George V Backlog Maint,C01009,"New Construction, conversion & renovation",30018624,17/05/2022,202203,"3,646.18",133267,Equans Services Ltd
"Law, Governance and Assets",Capital Spend,Resources,Backlog Maintenance,Y1453,Health & Safe Emergency Work,C01009,"New Construction, conversion & renovation",30018632,17/05/2022,202203,845.00,133267,Equans Services Ltd
"Law, Governance and Assets",Capital Spend,Resources,Backlog Maintenance,Y1453,Health & Safe Emergency Work,C01009,"New Construction, conversion & renovation",30018645,17/05/2022,202203,475.00,133267,Equans Services Ltd
"Law, Governance and Assets",Revenue Budgets,Resources,Legal Services,A0473,Ccare Legal,A44968,Legal & Conveyancing Charges,30015688,18/05/2022,202203,420.00,146667,Miss Chloe Lee
"Law, Governance and Assets",Revenue Budgets,Resources,Facilities Management,A1059,Doughty Road Depot,A21015,Heating Oil,30016769,18/05/2022,202203,"2,077.99",138198,Your Nrg
"Law, Governance and Assets",Revenue Budgets,Resources,Legal Services,A0473,Ccare Legal,A44968,Legal & Conveyancing Charges,30020595,18/05/2022,202203,750.00,139686,Miss Joanne F Jenkins
"Law, Governance and Assets",Revenue Budgets,Resources,Legal Services,A0473,Ccare Legal,A44968,Legal & Conveyancing Charges,30021044,18/05/2022,202203,490.00,146667,Miss Chloe Lee
"Law, Governance and Assets",Revenue Budgets,Resources,Legal Services,A0473,Ccare Legal,A44968,Legal & Conveyancing Charges,30015665,19/05/2022,202203,540.00,147197,Crown Chambers
"Law, Governance and Assets",Revenue Budgets,Resources,Legal Services,A0473,Ccare Legal,A44968,Legal & Conveyancing Charges,30015672,19/05/2022,202203,504.00,147197,Crown Chambers
"Law, Governance and Assets",Revenue Budgets,Resources,Legal Services,A0473,Ccare Legal,A44968,Legal & Conveyancing Charges,30015697,19/05/2022,202203,"1,560.00",147197,Crown Chambers
"Law, Governance and Assets",Revenue Budgets,Resources,Legal Services,A0473,Ccare Legal,A44968,Legal & Conveyancing Charges,30016531,19/05/2022,202203,"1,556.00",147197,Crown Chambers
"Law, Governance and Assets",Revenue Budgets,Resources,Facilities Management,A1722,New Oxford House,A22005,Building Rents,30019359,19/05/2022,202203,"28,986.52",146503,Attenti Consulting
"Law, Governance and Assets",Revenue Budgets,Resources,Legal Services,A0473,Ccare Legal,A44968,Legal & Conveyancing Charges,30020587,19/05/2022,202203,828.00,147197,Crown Chambers
"Law, Governance and Assets",Revenue Budgets,Resources,Legal Services,A0473,Ccare Legal,A44968,Legal & Conveyancing Charges,30020588,19/05/2022,202203,845.00,140404,Rebecca Miller
"Law, Governance and Assets",Revenue Budgets,Resources,Legal Services,A0473,Ccare Legal,A44968,Legal & Conveyancing Charges,30020589,19/05/2022,202203,315.00,139686,Miss Joanne F Jenkins
"Law, Governance and Assets",Revenue Budgets,Resources,Legal Services,A0473,Ccare Legal,A44968,Legal & Conveyancing Charges,30020590,19/05/2022,202203,740.00,147197,Crown Chambers
"Law, Governance and Assets",Revenue Budgets,Resources,Legal Services,A0473,Ccare Legal,A44968,Legal & Conveyancing Charges,30020594,19/05/2022,202203,"1,529.60",147197,Crown Chambers
"Law, Governance and Assets",Revenue Budgets,Resources,Legal Services,A0473,Ccare Legal,A44968,Legal & Conveyancing Charges,30020596,19/05/2022,202203,882.00,147197,Crown Chambers
"Law, Governance and Assets",Revenue Budgets,Resources,Legal Services,A0473,Ccare Legal,A44968,Legal & Conveyancing Charges,30020597,19/05/2022,202203,462.00,147197,Crown Chambers
"Law, Governance and Assets",Revenue Budgets,Resources,Legal Services,A0473,Ccare Legal,A44968,Legal & Conveyancing Charges,30021165,19/05/2022,202203,323.40,147197,Crown Chambers
"Law, Governance and Assets",Revenue Budgets,Resources,Facilities Management,A0323,Riverside Cc Premises,A27010,Contract Cleaning,30014459,20/05/2022,202203,"1,293.56",146901,Bidvest Noonan (Uk) Ltd
"Law, Governance and Assets",Revenue Budgets,Resources,Legal Services,A0473,Ccare Legal,A44968,Legal & Conveyancing Charges,30014957,20/05/2022,202203,"2,388.00",147197,Crown Chambers
"Law, Governance and Assets",Revenue Budgets,Resources,Legal Services,A0473,Ccare Legal,A44968,Legal & Conveyancing Charges,30016019,20/05/2022,202203,"28,800.00",1000141,Park Place
"Law, Governance and Assets",Capital Spend,Resources,Property Rationalisation Prog,Y1548,Various - Prop Rationalisation,C01009,"New Construction, conversion & renovation",30017863,20/05/2022,202203,"1,100.00",100811,W R Cullum
"Law, Governance and Assets",Revenue Budgets,Resources,Legal Services,A0473,Ccare Legal,A49105,Other Supplies & Services,30021080,20/05/2022,202203,"2,788.80",1001577,Elm View Medico Legal Consultancy
"Law, Governance and Assets",Revenue Budgets,Resources,Facilities Management,A1101,Boating Lake Car Park Toilets,A57115,Payments to Private Contractors,30015210,23/05/2022,202203,"1,764.58",142148,Danfo (Uk) Limited
"Law, Governance and Assets",Revenue Budgets,Resources,Facilities Management,A1088,Peoples Park,A57115,Payments to Private Contractors,30015210,23/05/2022,202203,"1,764.58",142148,Danfo (Uk) Limited
"Law, Governance and Assets",Revenue Budgets,Resources,Facilities Management,A1112,Market Hall Toilets,A57115,Payments to Private Contractors,30015210,23/05/2022,202203,"2,184.42",142148,Danfo (Uk) Limited
"Law, Governance and Assets",Revenue Budgets,Resources,Facilities Management,A1109,St Peters Avenue Toilets,A57115,Payments to Private Contractors,30015210,23/05/2022,202203,"2,200.92",142148,Danfo (Uk) Limited
"Law, Governance and Assets",Revenue Budgets,Resources,Facilities Management,A1106,Kingsway Toilets,A57115,Payments to Private Contractors,30015210,23/05/2022,202203,"2,618.67",142148,Danfo (Uk) Limited
"Law, Governance and Assets",Revenue Budgets,Resources,Facilities Management,A1107,Sea Road Toilets,A57115,Payments to Private Contractors,30015210,23/05/2022,202203,"4,185.08",142148,Danfo (Uk) Limited
"Law, Governance and Assets",Revenue Budgets,Resources,Legal Services,A0473,Ccare Legal,A44968,Legal & Conveyancing Charges,30015681,23/05/2022,202203,336.00,147197,Crown Chambers
"Law, Governance and Assets",Revenue Budgets,Resources,Legal Services,A0473,Ccare Legal,A49105,Other Supplies & Services,30022130,23/05/2022,202203,900.00,130862,Medserv Ltd
"Law, Governance and Assets",Revenue Budgets,Resources,Legal Services,A0473,Ccare Legal,A49105,Other Supplies & Services,30021048,25/05/2022,202203,508.63,1001523,Maura McKevitt
"Law, Governance and Assets",Revenue Budgets,Resources,Legal Services,A0473,Ccare Legal,A49105,Other Supplies & Services,30015677,26/05/2022,202203,483.60,124337,Forensic Testing Service
"Law, Governance and Assets",Revenue Budgets,Resources,Facilities Management,A1722,New Oxford House,A22005,Building Rents,30014348,27/05/2022,202203,"30,000.00",140205,Purple Emperor Ltd
"Law, Governance and Assets",Revenue Budgets,Resources,Coroners,A0229,Coroners Court,A44042,Alternative Provision,30015532,27/05/2022,202203,813.00,109470,Wilkin Chapman Llp Solicitors
"Law, Governance and Assets",Revenue Budgets,Resources,Legal Services,A0473,Ccare Legal,A44968,Legal & Conveyancing Charges,30021053,27/05/2022,202203,525.00,148144,Michael Forrest
"Law, Governance and Assets",Revenue Budgets,Resources,Legal Services,A0473,Ccare Legal,A49105,Other Supplies & Services,30021062,27/05/2022,202203,648.45,1001590,Psychologists in Law
"Law, Governance and Assets",Revenue Budgets,Resources,Legal Services,A0473,Ccare Legal,A44968,Legal & Conveyancing Charges,30021088,27/05/2022,202203,742.50,134849,Mr Alan Carnie
"Law, Governance and Assets",Revenue Budgets,Resources,Legal Services,A0473,Ccare Legal,A44968,Legal & Conveyancing Charges,30021091,27/05/2022,202203,705.00,134849,Mr Alan Carnie
"Law, Governance and Assets",Revenue Budgets,Resources,Legal Services,A0473,Ccare Legal,A44968,Legal & Conveyancing Charges,30021096,27/05/2022,202203,530.00,140404,Rebecca Miller
"Law, Governance and Assets",Capital Spend,Resources,Property Rationalisation Prog,Y1548,Various - Prop Rationalisation,C01009,"New Construction, conversion & renovation",30012740,30/05/2022,202203,"2,371.08",143057,Professional Telecom Installations Ltd
"Law, Governance and Assets",Capital Spend,Resources,Backlog Maintenance,Y1445,Gilbey Rd Depot Backlog Maint,C01009,"New Construction, conversion & renovation",30013584,30/05/2022,202203,879.08,105081,Mobile Mini Uk Ltd
"Law, Governance and Assets",Revenue Budgets,Resources,Facilities Management,A1728,Estuary House,A21015,Heating Oil,30013635,30/05/2022,202203,977.90,138198,Your Nrg
"Law, Governance and Assets",Revenue Budgets,Resources,Facilities Management,A0320,Immingham Cc Premises,A21005,Electricity,30013959,30/05/2022,202203,536.42,121907,Eastfield Primary Academy
"Law, Governance and Assets",Revenue Budgets,Resources,Facilities Management,A0320,Immingham Cc Premises,A21005,Electricity,30015142,30/05/2022,202203,536.42,121907,Eastfield Primary Academy
"Law, Governance and Assets",Revenue Budgets,Resources,Legal Services,A0473,Ccare Legal,A44968,Legal & Conveyancing Charges,30021084,30/05/2022,202203,"2,482.50",1000545,Brett Davies
"Law, Governance and Assets",Revenue Budgets,Resources,Commercial Estate,A1180,Wilton Road Ent Centre,A27015,Refuse Collection,30018688,31/05/2022,202203,768.10,101433,Ellgia Limited
"Law, Governance and Assets",Revenue Budgets,Resources,Commercial Estate,A1178,King Edward St Ent. Centre,A27015,Refuse Collection,30018694,31/05/2022,202203,689.41,101433,Ellgia Limited
"Law, Governance and Assets",Revenue Budgets,Resources,Commercial Estate,A1175,Europarc Innovation Centre,A27015,Refuse Collection,30018698,31/05/2022,202203,296.46,101433,Ellgia Limited
"Law, Governance and Assets",Revenue Budgets,Resources,Legal Services,A0473,Ccare Legal,A49105,Other Supplies & Services,30021678,31/05/2022,202203,590.67,125634,Lextox Drug & Alcohol Testing
"Law, Governance and Assets",Revenue Budgets,Resources,Facilities Management,A0319,Reynolds Cc Premises,A21005,Electricity,30013976,01/06/2022,202203,787.48,122175,Reynolds Academy
"Law, Governance and Assets",Revenue Budgets,Resources,Facilities Management,A0319,Reynolds Cc Premises,A21010,Gas,30013976,01/06/2022,202203,-590.62,122175,Reynolds Academy
"Law, Governance and Assets",Revenue Budgets,Resources,Facilities Management,A0319,Reynolds Cc Premises,A21010,Gas,30013976,01/06/2022,202203,981.24,122175,Reynolds Academy
"Law, Governance and Assets",Revenue Budgets,Resources,Facilities Management,A0319,Reynolds Cc Premises,A24005,Water Services,30013976,01/06/2022,202203,257.31,122175,Reynolds Academy
"Law, Governance and Assets",Revenue Budgets,Resources,Coroners,A0229,Coroners Court,A61176,Post Mortems,30014922,01/06/2022,202203,"4,120.00",Redacted Personal Information,Redacted Personal Information
"Law, Governance and Assets",Revenue Budgets,Resources,Coroners,A0229,Coroners Court,A61176,Post Mortems,30016636,01/06/2022,202203,"1,350.00",Redacted Personal Information,Redacted Personal Information
"Law, Governance and Assets",Capital Spend,Resources,Property Rationalisation Prog,Y1548,Various - Prop Rationalisation,C01011,External Professional Fees,30016715,01/06/2022,202203,"2,502.81",102869,Foresight Nel Ltd
"Law, Governance and Assets",Revenue Budgets,Resources,Coroners,A0229,Coroners Court,A45040,IT Software Purchase,30013928,07/06/2022,202203,428.44,101275,Trustmarque Solutions Ltd
"Law, Governance and Assets",Revenue Budgets,Resources,Facilities Management,A0981,Facilities Management,A27010,Contract Cleaning,30015573,07/06/2022,202203,"1,778.02",100554,Phs Group Ltd
"Law, Governance and Assets",Revenue Budgets,Resources,Coroners,A0229,Coroners Court,A61176,Post Mortems,30018773,07/06/2022,202203,"5,241.27",107238,University Hospitals Of Leicester Nhs Trust
"Law, Governance and Assets",Capital Spend,Resources,Backlog Maintenance,Y1667,Clee Lc Backlog Maintenance,C01009,"New Construction, conversion & renovation",30019347,07/06/2022,202203,"10,925.00",100786,Kes Building Maintenance Limited
"Law, Governance and Assets",Revenue Budgets,Resources,Legal Services,A0473,Ccare Legal,A44968,Legal & Conveyancing Charges,30021054,07/06/2022,202203,"17,100.00",147197,Crown Chambers
"Law, Governance and Assets",Revenue Budgets,Resources,Legal Services,A0473,Ccare Legal,A44968,Legal & Conveyancing Charges,30022591,07/06/2022,202203,570.00,1001800,Miss Andrea Ferguson
"Law, Governance and Assets",Revenue Budgets,Resources,Commercial Estate,A1668,Cartergate,A20005,"Property Repairs, Maintenance & Alterations",30018683,08/06/2022,202203,"1,129.00",101314,Fabrique Specialist Glazing Systems Ltd
"Law, Governance and Assets",Revenue Budgets,Resources,Legal Services,A0473,Ccare Legal,A44968,Legal & Conveyancing Charges,30021042,08/06/2022,202203,320.00,148641,Holly Littlewood
"Law, Governance and Assets",Revenue Budgets,Resources,Commercial Estate,A1204,Spencer St Factory Units,A44005,Publicity Materials,30015663,09/06/2022,202203,266.67,101276,Pph Commercial Ltd
"Law, Governance and Assets",Revenue Budgets,Resources,Commercial Estate,A1204,Spencer St Factory Units,A44005,Publicity Materials,30015663,09/06/2022,202203,600.00,101276,Pph Commercial Ltd
"Law, Governance and Assets",Revenue Budgets,Resources,Coroners,A0229,Coroners Court,A44042,Alternative Provision,30018987,09/06/2022,202203,563.00,109470,Wilkin Chapman Llp Solicitors
